Department,Entity, Transaction Date, Expense Type, Expense Area, Supplier Name,Transaction number, Amount, Invoice Description
DFID,DFID,01/11/2016,Air fares ,East and Central Africa ,Corporate Travel Provider ,100016-107 ,605.05,
DFID,DFID,01/11/2016,Air fares ,East and Central Africa ,Corporate Travel Provider ,100016-107 ,"1,290.60",
DFID,DFID,01/11/2016,Air fares ,East and Central Africa ,Corporate Travel Provider ,100016-107 ,"1,590.00",
DFID,DFID,01/11/2016,Air fares ,East and Central Africa ,Corporate Travel Provider ,100016-107 ,774.55,
DFID,DFID,01/11/2016,Air fares ,Research and Evidence Division ,Corporate Travel Provider ,100039-108 ,910.15,
DFID,DFID,01/11/2016,Air fares ,Conflict  Humanitarian  Security & Stabilisation Division ,Corporate Travel Provider ,202410-108,"1,026.95",
DFID,DFID,01/11/2016,Air fares ,Conflict  Humanitarian  Security & Stabilisation Division ,Corporate Travel Provider ,100049-133 ,517.79,
DFID,DFID,01/11/2016,Hotels - Accommodation only ,Conflict  Humanitarian  Security & Stabilisation Division ,Corporate Travel Provider ,100049-133 ,987.14,
DFID,DFID,01/11/2016,Air fares ,Conflict  Humanitarian  Security & Stabilisation Division ,Corporate Travel Provider ,100049-133 ,536.85,
DFID,DFID,01/11/2016,Air fares ,Conflict  Humanitarian  Security & Stabilisation Division ,Corporate Travel Provider ,100049-134 ,683.41,
DFID,DFID,01/11/2016,Air fares ,West and Southern Africa ,Corporate Travel Provider ,100068-101 ,932.17,
DFID,DFID,01/11/2016,Hotels - Accommodation only ,West and Southern Africa ,Corporate Travel Provider ,100068-101 ,"1,218.82",
DFID,DFID,01/11/2016,Air fares ,West and Southern Africa ,Corporate Travel Provider ,100068-101 ,932.17,
DFID,DFID,23/11/2016,Water charges,East and Central Africa ,Foreign & Commonwealth Office ,100082-101 ,"1,220.04",
DFID,DFID,01/11/2016,Hotels - Accommodation only ,East and Central Africa ,Corporate Travel Provider ,100082-101 ,"1,052.55",
DFID,DFID,01/11/2016,Air fares ,Asia  Caribbean and Overseas Territories ,Corporate Travel Provider ,100084-101 ,"1,251.35",
DFID,DFID,01/11/2016,Air fares ,Asia  Caribbean and Overseas Territories ,Corporate Travel Provider ,100084-101 ,944.02,
DFID,DFID,01/11/2016,Air fares ,International Relations Division ,Corporate Travel Provider ,100086-101 ,564.45,
DFID,DFID,01/11/2016,Air fares ,International Relations Division ,Corporate Travel Provider ,100086-101 ,524.45,
DFID,DFID,01/11/2016,Air fares ,Global Funds ,Corporate Travel Provider ,100098-101 ,"1,227.55",
DFID,DFID,01/11/2016,Air fares ,Global Funds ,Corporate Travel Provider ,100098-101 ,"1,341.66",
DFID,DFID,01/11/2016,Air fares ,Global Funds ,Corporate Travel Provider ,100098-101 ,150.00,
DFID,DFID,01/11/2016,Air fares ,Global Funds ,Corporate Travel Provider ,100098-101 ,150.00,
DFID,DFID,01/11/2016,Air fares ,Global Funds ,Corporate Travel Provider ,100098-101 ,948.91,
DFID,DFID,02/11/2016,Training - Course Fees ,Finance and Corporate Performance Division , BPP Professional Development,100008-104 ,952.20,
DFID,DFID,02/11/2016,Medical Equipment ,Group Operations ,RNIB,100106-101 ,603.29,
DFID,DFID,01/11/2016,Air fares ,Internal Audit ,Corporate Travel Provider ,100121-101 ,664.97,
DFID,DFID,01/11/2016,Air fares ,Internal Audit ,Corporate Travel Provider ,100121-101 ,664.97,
DFID,DFID,01/11/2016,Air fares ,Internal Audit ,Corporate Travel Provider ,100121-101 ,664.97,
DFID,DFID,01/11/2016,Air fares ,Internal Audit ,Corporate Travel Provider ,100121-101 ,"1,054.35",
DFID,DFID,01/11/2016,Air fares ,Internal Audit ,Corporate Travel Provider ,100121-101 ,"1,054.35",
DFID,DFID,01/11/2016,Air fares ,Internal Audit ,Corporate Travel Provider ,100121-101 ,664.05,
DFID,DFID,01/11/2016,Air fares ,Internal Audit ,Corporate Travel Provider ,100121-101 ,664.05,
DFID,DFID,01/11/2016,Air fares ,Internal Audit ,Corporate Travel Provider ,100121-101 ,639.05,
DFID,DFID,01/11/2016,Air fares ,Internal Audit ,Corporate Travel Provider ,100121-101 ,720.82,
DFID,DFID,01/11/2016,Air fares ,Internal Audit ,Corporate Travel Provider ,100121-101 ,661.05,
DFID,DFID,01/11/2016,Air fares ,Internal Audit ,Corporate Travel Provider ,100121-101 ,661.05,
DFID,DFID,01/11/2016,Air fares ,Internal Audit ,Corporate Travel Provider ,100121-101 ,720.82,
DFID,DFID,01/11/2016,Air fares ,Economic Development Division ,Corporate Travel Provider ,100111-101 ,868.55,
DFID,DFID,01/11/2016,Air fares ,Economic Development Division ,Corporate Travel Provider ,100111-101 ,684.55,
DFID,DFID,07/11/2016,Air fares ,Internal Audit ,Foreign & Commonwealth Office ,100121-101 ,807.19,
DFID,DFID,07/11/2016,Air fares ,Internal Audit ,Foreign & Commonwealth Office ,100121-101 ,807.19,
DFID,DFID,22/11/2016,Hotels - Accommodation only ,Middle East and North Africa Division ,Foreign & Commonwealth Office ,100146-101 ,678.15,
DFID,DFID,01/11/2016,Air fares ,Middle East and North Africa Division ,Corporate Travel Provider ,100146-101 ,505.45,
DFID,DFID,16/11/2016,Medical/Health Services ,West and Southern Africa ,Foreign & Commonwealth Office ,100148-101 ,704.96,
DFID,DFID,01/11/2016,Air fares ,West and Southern Africa ,Supplier Name withheld ,100152-116 ,662.05,
DFID,DFID,02/11/2016,other information and communication technologies ,Communications Division ,WP Engine,100154-101 ,541.55,
DFID,DFID,01/11/2016,Air fares ,Top Management Group ,Corporate Travel Provider ,100232-102 ,"3,898.81",
DFID,DFID,01/11/2016,Air fares ,Top Management Group ,Corporate Travel Provider ,100232-102 ,"3,898.81",
DFID,DFID,01/11/2016,Air fares ,Top Management Group ,Corporate Travel Provider ,100232-102 ,"3,898.81",
DFID,DFID,01/11/2016,Air fares ,Top Management Group ,Corporate Travel Provider ,100232-102 ,"4,115.45",
DFID,DFID,01/11/2016,Air fares ,Top Management Group ,Corporate Travel Provider ,100232-102 ,"4,115.45",
DFID,DFID,01/11/2016,Air fares ,Top Management Group ,Corporate Travel Provider ,100232-103 ,"2,733.35",
DFID,DFID,22/11/2016,Hotels - Accommodation only ,Top Management Group ,Foreign & Commonwealth Office ,100232-103 ,"1,356.29",
DFID,DFID,01/11/2016,Other passenger transport ,Top Management Group ,Corporate Travel Provider ,100232-104 ,590.40,
DFID,DFID,01/11/2016,Air fares ,Top Management Group ,Corporate Travel Provider ,100232-105 ,"2,612.30",
DFID,DFID,01/11/2016,Air fares ,Top Management Group ,Corporate Travel Provider ,100232-105 ,932.90,
DFID,DFID,01/11/2016,Air fares ,Top Management Group ,Corporate Travel Provider ,100232-105 ,"3,424.45",
DFID,DFID,01/11/2016,Air fares ,Top Management Group ,Corporate Travel Provider ,100232-105 ,692.80,
DFID,DFID,01/11/2016,Air fares ,Top Management Group ,Corporate Travel Provider ,100232-105 ,"1,211.00",
DFID,DFID,22/11/2016,Hotels - Accommodation only ,Top Management Group ,Foreign & Commonwealth Office ,100232-105 ,"1,017.22",
DFID,DFID,01/11/2016,Air fares ,Policy Division ,Corporate Travel Provider ,100191-101 ,"1,259.95",
DFID,DFID,22/11/2016,Hotels - Accommodation only ,Communications Division ,Foreign & Commonwealth Office ,100197-101 ,"1,356.29",
DFID,DFID,01/11/2016,Air fares ,Top Management Group ,Corporate Travel Provider ,100232-108 ,"2,363.21",
DFID,DFID,01/11/2016,Air fares ,Top Management Group ,Corporate Travel Provider ,100232-108 ,"2,277.68",
DFID,DFID,01/11/2016,Air fares ,Top Management Group ,Corporate Travel Provider ,100232-108 ,"2,363.21",
DFID,DFID,01/11/2016,Air fares ,Top Management Group ,Corporate Travel Provider ,100232-108 ,"2,363.21",
DFID,DFID,01/11/2016,Air fares ,Top Management Group ,Corporate Travel Provider ,100232-108 ,"3,889.35",
DFID,DFID,01/11/2016,Air fares ,Top Management Group ,Corporate Travel Provider ,100232-108 ,"3,889.35",
DFID,DFID,01/11/2016,Hotels - Accommodation only ,International Relations Division ,Corporate Travel Provider ,100236-101 ,"1,490.26",
DFID,DFID,01/11/2016,Hotels - Accommodation only ,International Relations Division ,Corporate Travel Provider ,100240-101 ,754.55,
DFID,DFID,01/11/2016,Air fares ,International Relations Division ,Corporate Travel Provider ,100240-101 ,635.11,
DFID,DFID,01/11/2016,Hotels - Accommodation only ,Human Resources ,Corporate Travel Provider ,100269-128 ,501.15,
DFID,DFID,01/11/2016,Air fares ,Human Resources ,Corporate Travel Provider ,100269-128 ,"3,227.15",
DFID,DFID,01/11/2016,Hotels - Accommodation only ,Group Operations ,Corporate Travel Provider ,100270-102 ,609.54,
DFID,DFID,01/11/2016,Hotels - Accommodation only ,Policy Division ,Corporate Travel Provider ,100274-111 ,"1,122.76",
DFID,DFID,01/11/2016,Hotels - Accommodation only ,Policy Division ,Corporate Travel Provider ,100274-111 ,864.90,
DFID,DFID,01/11/2016,Air fares ,Policy Division ,Corporate Travel Provider ,100275-101 ,629.51,
DFID,DFID,01/11/2016,Hotels - Accommodation only ,Policy Division ,Corporate Travel Provider ,100275-105 ,622.45,
DFID,DFID,01/11/2016,Hotels - Accommodation only ,Economic Development Division ,Corporate Travel Provider ,100276-101 ,617.87,
DFID,DFID,01/11/2016,Air fares ,Economic Development Division ,Corporate Travel Provider ,100276-101 ,848.35,
DFID,DFID,01/11/2016,Air fares ,Economic Development Division ,Corporate Travel Provider ,100276-101 ,"1,367.65",
DFID,DFID,01/11/2016,Air fares ,Economic Development Division ,Corporate Travel Provider ,100276-101 ,"1,255.05",
DFID,DFID,02/11/2016,Training - Course Fees,Economic Development Division ,Innovation Forum Publishing ,100276-101 ,571.20,
DFID,DFID,01/11/2016,Air fares ,Policy Division ,Corporate Travel Provider ,100277-101 ,622.05,
DFID,DFID,01/11/2016,Air fares ,Policy Division ,Corporate Travel Provider ,100277-101 ,845.55,
DFID,DFID,01/11/2016,Air fares ,Middle East and North Africa Division ,Corporate Travel Provider ,100303-101 ,550.15,
DFID,DFID,01/11/2016,Air fares ,Middle East and North Africa Division ,Corporate Travel Provider ,100303-101 ,716.85,
DFID,DFID,16/11/2016,Hotels - Accommodation only ,Middle East and North Africa Division ,Foreign & Commonwealth Office ,100303-101 ,576.18,
DFID,DFID,07/11/2016,Air fares ,Middle East and North Africa Division ,Foreign & Commonwealth Office ,100303-101 ,545.92,
DFID,DFID,08/11/2016,Contract Catering Services ,Asia  Caribbean and Overseas Territories ,Foreign & Commonwealth Office ,101601-110 ,935.06,
DFID,DFID,23/11/2016,Contract Catering Services ,Asia  Caribbean and Overseas Territories ,Foreign & Commonwealth Office ,101601-110 ,"1,096.06",
DFID,DFID,16/11/2016,Air fares ,Asia  Caribbean and Overseas Territories ,Foreign & Commonwealth Office ,101601-110 ,"4,519.58",
DFID,DFID,16/11/2016,Air fares ,Asia  Caribbean and Overseas Territories ,Foreign & Commonwealth Office ,101601-110 ,631.20,
DFID,DFID,16/11/2016,Air fares ,Asia  Caribbean and Overseas Territories ,Foreign & Commonwealth Office ,101601-110 ,"65,445.03",Charter air transport support costs for DFID staff for the period September 2016- March 2017 � Kabul
DFID,DFID,01/11/2016,Air fares ,Asia  Caribbean and Overseas Territories ,Corporate Travel Provider ,101601-110 ,"1,800.10",
DFID,DFID,01/11/2016,Air fares ,Asia  Caribbean and Overseas Territories ,Corporate Travel Provider ,101601-110 ,601.19,
DFID,DFID,01/11/2016,Air fares ,Asia  Caribbean and Overseas Territories ,Corporate Travel Provider ,101601-110 ,"1,122.95",
DFID,DFID,01/11/2016,Air fares ,Asia  Caribbean and Overseas Territories ,Corporate Travel Provider ,101601-110 ,"1,394.79",
DFID,DFID,01/11/2016,Air fares ,Asia  Caribbean and Overseas Territories ,Corporate Travel Provider ,101601-110 ,"3,878.38",
DFID,DFID,01/11/2016,Air fares ,Asia  Caribbean and Overseas Territories ,Corporate Travel Provider ,101601-110 ,"1,838.10",
DFID,DFID,01/11/2016,Air fares ,Asia  Caribbean and Overseas Territories ,Corporate Travel Provider ,101601-110 ,"1,831.91",
DFID,DFID,01/11/2016,Air fares ,Asia  Caribbean and Overseas Territories ,Corporate Travel Provider ,101603-101 ,813.87,
DFID,DFID,08/11/2016,Repairs  Maintenance and Alterations – Other Building Costs ,Asia  Caribbean and Overseas Territories ,Foreign & Commonwealth Office ,101603-101 ,"2,634.37",
DFID,DFID,07/11/2016,Air fares ,Asia  Caribbean and Overseas Territories ,Foreign & Commonwealth Office ,101604-101 ,548.73,
DFID,DFID,07/11/2016,Air fares ,Asia  Caribbean and Overseas Territories ,Foreign & Commonwealth Office ,101604-101 ,738.25,
DFID,DFID,22/11/2016,Air fares ,Asia  Caribbean and Overseas Territories ,Foreign & Commonwealth Office ,101604-101 ,712.92,
DFID,DFID,22/11/2016,Air fares ,Asia  Caribbean and Overseas Territories ,Foreign & Commonwealth Office ,101604-101 ,571.59,
DFID,DFID,01/11/2016,Training - Travel & Subsistence ,Asia  Caribbean and Overseas Territories ,Corporate Travel Provider ,101604-101 ,909.00,
DFID,DFID,01/11/2016,Hotels - Accommodation only ,Asia  Caribbean and Overseas Territories ,Corporate Travel Provider ,101605-101 ,682.71,
DFID,DFID,01/11/2016,Hotels - Accommodation only ,Asia  Caribbean and Overseas Territories ,Corporate Travel Provider ,101605-101 ,786.00,
DFID,DFID,01/11/2016,Hotels - Accommodation only ,Asia  Caribbean and Overseas Territories ,Corporate Travel Provider ,101605-101 ,826.00,
DFID,DFID,01/11/2016,Air fares ,Asia  Caribbean and Overseas Territories ,Corporate Travel Provider ,101605-101 ,855.65,
DFID,DFID,01/11/2016,Hotels - Accommodation only ,Asia  Caribbean and Overseas Territories ,Corporate Travel Provider ,101605-101 ,779.71,
DFID,DFID,01/11/2016,Air fares ,Asia  Caribbean and Overseas Territories ,Corporate Travel Provider ,101605-101 ,"1,006.85",
DFID,DFID,01/11/2016,Hotels - Accommodation only ,Asia  Caribbean and Overseas Territories ,Corporate Travel Provider ,101605-101 ,682.71,
DFID,DFID,23/11/2016,Travel - Subsistence ,Asia  Caribbean and Overseas Territories ,Foreign & Commonwealth Office ,101605-101 ,586.42,
DFID,DFID,23/11/2016,Contract Catering Services,Asia  Caribbean and Overseas Territories ,Foreign & Commonwealth Office ,101605-101 ,"1,228.83",
DFID,DFID,23/11/2016,Training - Travel & Subsistence ,Asia  Caribbean and Overseas Territories ,Foreign & Commonwealth Office ,101605-101 ,"1,131.13",
DFID,DFID,23/11/2016,Air fares ,Asia  Caribbean and Overseas Territories ,Foreign & Commonwealth Office ,101605-101 ,"1,356.64",
DFID,DFID,23/11/2016,Travel - Subsistence ,Asia  Caribbean and Overseas Territories ,Foreign & Commonwealth Office ,101605-101 ,"1,724.67",
DFID,DFID,16/11/2016,Hotels - Accommodation only ,Asia  Caribbean and Overseas Territories ,Foreign & Commonwealth Office ,101605-101 ,"2,036.03",
DFID,DFID,08/11/2016,Air fares ,Asia  Caribbean and Overseas Territories ,Foreign & Commonwealth Office ,101605-101 ,"7,561.61",
DFID,DFID,02/11/2016,Air fares ,Asia  Caribbean and Overseas Territories ,Foreign & Commonwealth Office ,101605-101 ,"7,733.00",
DFID,DFID,01/11/2016,Air fares ,West and Southern Africa ,Corporate Travel Provider ,101610-101 ,629.75,
DFID,DFID,16/11/2016,Training - Travel & Subsistence ,East and Central Africa ,Foreign & Commonwealth Office ,101612-101 ,868.98,
DFID,DFID,16/11/2016,Hotels - Accommodation only ,East and Central Africa ,Foreign & Commonwealth Office ,101612-101 ,840.64,
DFID,DFID,16/11/2016,Air fares ,East and Central Africa ,Foreign & Commonwealth Office ,101612-101 ,639.07,
DFID,DFID,16/11/2016,Air fares ,East and Central Africa ,Foreign & Commonwealth Office ,101612-101 ,"1,461.13",
DFID,DFID,16/11/2016,Air fares ,East and Central Africa ,Foreign & Commonwealth Office ,101612-101 ,931.45,
DFID,DFID,16/11/2016,Hotels - Accommodation only ,East and Central Africa ,Foreign & Commonwealth Office ,101612-101 ,505.50,
DFID,DFID,23/11/2016,Hotels - Accommodation only ,East and Central Africa ,Foreign & Commonwealth Office ,101612-101 ,"5,221.57",
DFID,DFID,23/11/2016,Medical/Health Services ,East and Central Africa ,Foreign & Commonwealth Office ,101612-101 ,538.37,
DFID,DFID,23/11/2016,Hotels - Accommodation only ,East and Central Africa ,Foreign & Commonwealth Office ,101612-101 ,861.09,
DFID,DFID,23/11/2016,Air fares ,East and Central Africa ,Foreign & Commonwealth Office ,101612-101 ,626.58,
DFID,DFID,23/11/2016,Air fares ,East and Central Africa ,Foreign & Commonwealth Office ,101612-101 ,626.58,
DFID,DFID,02/11/2016,Training - Travel & Subsistence,East and Central Africa ,Foreign & Commonwealth Office ,101612-101 ,717.75,
DFID,DFID,02/11/2016,Hotels - Accommodation only ,East and Central Africa ,Foreign & Commonwealth Office ,101612-101 ,686.69,
DFID,DFID,02/11/2016,Training - Travel & Subsistence ,East and Central Africa ,Foreign & Commonwealth Office ,101612-101 ,765.86,
DFID,DFID,02/11/2016,Telephone Usage & services ,East and Central Africa ,Foreign & Commonwealth Office ,101612-101 ,"1,792.75",
DFID,DFID,02/11/2016,Telephone Usage & services ,East and Central Africa ,Foreign & Commonwealth Office ,101612-101 ,"2,675.93",
DFID,DFID,02/11/2016,Hotels - Accommodation only ,East and Central Africa ,Foreign & Commonwealth Office ,101612-101 ,710.37,
DFID,DFID,08/11/2016,Air fares ,East and Central Africa ,Foreign & Commonwealth Office ,101612-101 ,966.44,
DFID,DFID,08/11/2016,Air fares ,East and Central Africa ,Foreign & Commonwealth Office ,101612-101 ,590.89,
DFID,DFID,16/11/2016,Hotels - Accommodation only ,East and Central Africa ,Foreign & Commonwealth Office ,101612-101 ,"4,239.97",
DFID,DFID,23/11/2016,Training - Travel & Subsistence,East and Central Africa ,Foreign & Commonwealth Office ,101612-101 ,627.48,
DFID,DFID,02/11/2016,Air fares ,West and Southern Africa ,Foreign & Commonwealth Office ,101610-101 ,"2,827.82",
DFID,DFID,16/11/2016,Air fares ,West and Southern Africa ,Foreign & Commonwealth Office ,101610-101 ,"2,469.34",
DFID,DFID,01/11/2016,Air fares ,West and Southern Africa ,Corporate Travel Provider ,101613-101 ,603.41,
DFID,DFID,01/11/2016,Air fares ,West and Southern Africa ,Corporate Travel Provider ,101613-101 ,968.15,
DFID,DFID,01/11/2016,Air fares ,West and Southern Africa ,Corporate Travel Provider ,101613-101 ,759.15,
DFID,DFID,01/11/2016,Air fares ,West and Southern Africa ,Corporate Travel Provider ,101613-101 ,968.15,
DFID,DFID,01/11/2016,Air fares ,West and Southern Africa ,Corporate Travel Provider ,101613-101 ,968.15,
DFID,DFID,01/11/2016,Air fares ,West and Southern Africa ,Corporate Travel Provider ,101613-101 ,759.15,
DFID,DFID,01/11/2016,Air fares ,West and Southern Africa ,Corporate Travel Provider ,101613-101 ,968.15,
DFID,DFID,23/11/2016,Hotels - Accommodation only ,East and Central Africa ,Foreign & Commonwealth Office ,101616-101 ,531.90,
DFID,DFID,23/11/2016,Air fares ,East and Central Africa ,Foreign & Commonwealth Office ,101616-101 ,"5,635.66",
DFID,DFID,23/11/2016,Hotels - Accommodation only ,East and Central Africa ,Foreign & Commonwealth Office ,101616-101 ,533.30,
DFID,DFID,01/11/2016,Air fares ,East and Central Africa ,Corporate Travel Provider ,101616-101 ,619.55,
DFID,DFID,01/11/2016,Air fares ,Middle East and North Africa Division ,Corporate Travel Provider ,101619-101 ,521.11,
DFID,DFID,01/11/2016,Air fares ,Middle East and North Africa Division ,Corporate Travel Provider ,101619-101 ,690.35,
DFID,DFID,01/11/2016,Air fares ,West and Southern Africa ,Corporate Travel Provider ,101620-101 ,536.60,
DFID,DFID,01/11/2016,Air fares ,West and Southern Africa ,Corporate Travel Provider ,101620-101 ,536.60,
DFID,DFID,01/11/2016,Air fares ,West and Southern Africa ,Corporate Travel Provider ,101620-101 ,536.60,
DFID,DFID,01/11/2016,Air fares ,West and Southern Africa ,Corporate Travel Provider ,101620-101 ,778.95,
DFID,DFID,02/11/2016,Contract Catering Services ,West and Southern Africa ,Foreign & Commonwealth Office ,101618-101 ,501.31,
DFID,DFID,01/11/2016,Air fares ,West and Southern Africa ,Corporate Travel Provider ,101618-101 ,720.65,
DFID,DFID,01/11/2016,Air fares ,West and Southern Africa ,Corporate Travel Provider ,101620-102 ,697.05,
DFID,DFID,01/11/2016,Air fares ,West and Southern Africa ,Corporate Travel Provider ,101620-102 ,831.96,
DFID,DFID,01/11/2016,Air fares ,West and Southern Africa ,Corporate Travel Provider ,101620-102 ,724.47,
DFID,DFID,01/11/2016,Air fares ,West and Southern Africa ,Corporate Travel Provider ,101620-102 ,697.05,
DFID,DFID,01/11/2016,Hotels - Accommodation only ,Asia  Caribbean and Overseas Territories ,Corporate Travel Provider ,101621-101 ,543.15,
DFID,DFID,01/11/2016,Air fares ,Asia  Caribbean and Overseas Territories ,Corporate Travel Provider ,101621-101 ,"1,038.55",
DFID,DFID,23/11/2016,Air fares ,West and Southern Africa ,Supplier Name withheld ,101622-101 ,839.33,
DFID,DFID,01/11/2016,Air fares ,West and Southern Africa ,Supplier Name withheld ,101622-105 ,939.15,
DFID,DFID,01/11/2016,Air fares ,West and Southern Africa ,Supplier Name withheld ,101622-105 ,715.85,
DFID,DFID,01/11/2016,Air fares ,West and Southern Africa ,Supplier Name withheld ,101622-106 ,784.05,
DFID,DFID,01/11/2016,Air fares ,West and Southern Africa ,Supplier Name withheld ,101622-106 ,674.60,
DFID,DFID,01/11/2016,Air fares ,West and Southern Africa ,Supplier Name withheld ,101622-106 ,"1,013.65",
DFID,DFID,01/11/2016,Air fares ,West and Southern Africa ,Supplier Name withheld ,101622-106 ,"1,390.80",
DFID,DFID,01/11/2016,Air fares ,West and Southern Africa ,Supplier Name withheld ,101622-106 ,665.65,
DFID,DFID,01/11/2016,Air fares ,West and Southern Africa ,Supplier Name withheld ,101622-106 ,827.60,
DFID,DFID,01/11/2016,Air fares ,West and Southern Africa ,Supplier Name withheld ,101622-106 ,784.35,
DFID,DFID,01/11/2016,Air fares ,West and Southern Africa ,Supplier Name withheld ,101622-106 ,"2,477.85",
DFID,DFID,01/11/2016,Air fares ,West and Southern Africa ,Supplier Name withheld ,101622-106 ,"1,599.95",
DFID,DFID,01/11/2016,Air fares ,West and Southern Africa ,Supplier Name withheld ,101622-106 ,923.40,
DFID,DFID,01/11/2016,Air fares ,West and Southern Africa ,Supplier Name withheld ,101622-106 ,978.11,
DFID,DFID,01/11/2016,Air fares ,West and Southern Africa ,Supplier Name withheld ,101622-106 ,662.05,
DFID,DFID,01/11/2016,Air fares ,West and Southern Africa ,Supplier Name withheld ,101622-106 ,662.05,
DFID,DFID,01/11/2016,Hotels - Accommodation only ,Asia  Caribbean and Overseas Territories ,Corporate Travel Provider ,101624-101 ,543.15,
DFID,DFID,01/11/2016,Hotels - Accommodation only ,Asia  Caribbean and Overseas Territories ,Corporate Travel Provider ,101624-101 ,"1,188.39",
DFID,DFID,01/11/2016,Air fares ,Asia  Caribbean and Overseas Territories ,Corporate Travel Provider ,101624-101 ,723.75,
DFID,DFID,01/11/2016,Air fares ,Asia  Caribbean and Overseas Territories ,Corporate Travel Provider ,101624-101 ,654.15,
DFID,DFID,01/11/2016,Hotels - Accommodation only ,Asia  Caribbean and Overseas Territories ,Corporate Travel Provider ,101624-101 ,543.15,
DFID,DFID,01/11/2016,Air fares ,Asia  Caribbean and Overseas Territories ,Corporate Travel Provider ,101624-101 ,733.38,
DFID,DFID,01/11/2016,Air fares ,West and Southern Africa ,Corporate Travel Provider ,101629-101 ,"2,395.50",
DFID,DFID,01/11/2016,Air fares ,West and Southern Africa ,Corporate Travel Provider ,101629-101 ,843.40,
DFID,DFID,01/11/2016,Air fares ,West and Southern Africa ,Corporate Travel Provider ,101629-101 ,694.71,
DFID,DFID,01/11/2016,Air fares ,West and Southern Africa ,Corporate Travel Provider ,101629-101 ,749.20,
DFID,DFID,01/11/2016,Air fares ,West and Southern Africa ,Corporate Travel Provider ,101629-101 ,"1,213.01",
DFID,DFID,01/11/2016,Air fares ,West and Southern Africa ,Corporate Travel Provider ,101629-101 ,699.41,
DFID,DFID,01/11/2016,Air fares ,West and Southern Africa ,Corporate Travel Provider ,101629-101 ,643.02,
DFID,DFID,01/11/2016,Air fares ,West and Southern Africa ,Corporate Travel Provider ,101629-101 ,558.71,
DFID,DFID,01/11/2016,Hotels - Accommodation only ,West and Southern Africa ,Corporate Travel Provider ,101629-101 ,699.48,
DFID,DFID,01/11/2016,Air fares ,West and Southern Africa ,Corporate Travel Provider ,101629-101 ,630.02,
DFID,DFID,01/11/2016,Air fares ,West and Southern Africa ,Corporate Travel Provider ,101629-101 ,658.95,
DFID,DFID,01/11/2016,Air fares ,East and Central Africa ,Corporate Travel Provider ,101625-105 ,730.60,
DFID,DFID,01/11/2016,Air fares ,East and Central Africa ,Corporate Travel Provider ,101625-105 ,506.10,
DFID,DFID,01/11/2016,Air fares ,East and Central Africa ,Corporate Travel Provider ,101625-105 ,734.11,
DFID,DFID,01/11/2016,Air fares ,East and Central Africa ,Corporate Travel Provider ,101625-107 ,644.35,
DFID,DFID,01/11/2016,Air fares ,East and Central Africa ,Corporate Travel Provider ,101625-108 ,919.45,
DFID,DFID,02/11/2016,Hotels - Accommodation only ,East and Central Africa ,Foreign & Commonwealth Office ,101625-108 ,879.06,
DFID,DFID,01/11/2016,Air fares ,East and Central Africa ,Corporate Travel Provider ,101625-101 ,842.17,
DFID,DFID,01/11/2016,Air fares ,East and Central Africa ,Corporate Travel Provider ,101625-101 ,"1,559.27",
DFID,DFID,01/11/2016,Air fares ,East and Central Africa ,Corporate Travel Provider ,101625-102 ,888.75,
DFID,DFID,01/11/2016,Air fares ,West and Southern Africa ,Corporate Travel Provider ,101631-101 ,"1,697.10",
DFID,DFID,01/11/2016,Air fares ,West and Southern Africa ,Corporate Travel Provider ,101631-101 ,"1,387.45",
DFID,DFID,01/11/2016,Air fares ,West and Southern Africa ,Corporate Travel Provider ,101631-101 ,668.75,
DFID,DFID,01/11/2016,Air fares ,West and Southern Africa ,Corporate Travel Provider ,101631-101 ,873.90,
DFID,DFID,01/11/2016,Hotels - Accommodation only ,East and Central Africa ,Corporate Travel Provider ,101633-101 ,543.15,
DFID,DFID,01/11/2016,Hotels - Accommodation only ,East and Central Africa ,Corporate Travel Provider ,101633-101 ,543.15,
DFID,DFID,01/11/2016,Hotels - Accommodation only ,East and Central Africa ,Corporate Travel Provider ,101633-101 ,543.15,
DFID,DFID,23/11/2016,Air fares ,East and Central Africa ,Foreign & Commonwealth Office ,101633-101 ,"1,469.96",
DFID,DFID,01/11/2016,Hotels - Accommodation only ,East and Central Africa ,Corporate Travel Provider ,101634-101 ,760.41,
DFID,DFID,01/11/2016,Air fares ,East and Central Africa ,Corporate Travel Provider ,101635-101 ,637.28,
DFID,DFID,01/11/2016,Air fares ,East and Central Africa ,Corporate Travel Provider ,101635-101 ,690.65,
DFID,DFID,01/11/2016,Air fares ,West and Southern Africa ,Corporate Travel Provider ,101638-101 ,981.07,
DFID,DFID,01/11/2016,Air fares ,West and Southern Africa ,Corporate Travel Provider ,101638-101 ,691.63,
DFID,DFID,01/11/2016,Air fares ,West and Southern Africa ,Corporate Travel Provider ,101638-102 ,532.30,
DFID,DFID,01/11/2016,Air fares ,West and Southern Africa ,Corporate Travel Provider ,101638-105 ,714.81,
DFID,DFID,16/11/2016,Medical Equipment ,West and Southern Africa ,Foreign & Commonwealth Office ,104227-106 ,"1,678.61",
DFID,DFID,16/11/2016,Medical Equipment ,West and Southern Africa ,Foreign & Commonwealth Office ,104227-106 ,"3,172.71",
DFID,DFID,16/11/2016,Medical Equipment ,West and Southern Africa ,Foreign & Commonwealth Office ,104227-106 ,"1,807.72",
DFID,DFID,16/11/2016,Project delivery costs – supplier services ,West and Southern Africa ,Foreign & Commonwealth Office ,104229-101 ,"9,126.91",
DFID,DFID,02/11/2016,Subscriptions ,Business Solutions Division Level ,Namesco,200001-101 ,"1,246.80",
DFID,DFID,02/11/2016,Hardware - desktop PCs ,Business Solutions Division Level ,CDW Ltd,200001-101 ,"1,096.80",
DFID,DFID,01/11/2016,Air fares ,Business Solutions Division Level ,Corporate Travel Provider ,200001-101 ,"1,132.77",
DFID,DFID,01/11/2016,Air fares ,Business Solutions Division Level ,Corporate Travel Provider ,200001-101 ,757.59,
DFID,DFID,22/11/2016,Data Network - land lines ,Business Solutions Division Level ,Foreign & Commonwealth Office ,200002-121 ,876.16,
DFID,DFID,02/11/2016,Office Equipment - Purchases ,Business Solutions Division Level ,Sight and Sound ,200002-153 ,605.94,
DFID,DFID,02/11/2016,Telephone Usage & services ,Business Solutions Division Level ,TEXTMAGICCOM ,200002-153 ,"1,200.00",
DFID,DFID,01/11/2016,Air fares ,Middle East and North Africa Division ,Corporate Travel Provider ,201701-101 ,605.85,
DFID,DFID,01/11/2016,Air fares ,Middle East and North Africa Division ,Corporate Travel Provider ,201701-101 ,606.85,
DFID,DFID,01/11/2016,Air fares ,Middle East and North Africa Division ,Corporate Travel Provider ,201701-101 ,504.45,
DFID,DFID,01/11/2016,Air fares ,Middle East and North Africa Division ,Corporate Travel Provider ,201701-101 ,714.05,
DFID,DFID,01/11/2016,Air fares ,Middle East and North Africa Division ,Corporate Travel Provider ,201701-101 ,586.85,
DFID,DFID,01/11/2016,Air fares ,Middle East and North Africa Division ,Corporate Travel Provider ,201701-101 ,541.50,
DFID,DFID,23/11/2016,Air fares ,Middle East and North Africa Division ,Foreign & Commonwealth Office ,201701-101 ,"1,139.34",
DFID,DFID,23/11/2016,Cleaning Costs ,Middle East and North Africa Division ,Foreign & Commonwealth Office ,201705-101 ,833.00,
DFID,DFID,02/11/2016,Hotels - Accommodation only ,Middle East and North Africa Division ,Foreign & Commonwealth Office ,201705-101 ,"1,357.36",
DFID,DFID,02/11/2016,Cleaning Costs ,Middle East and North Africa Division ,Foreign & Commonwealth Office ,201705-101 ,832.34,
DFID,DFID,02/11/2016,Hotels - Accommodation only ,Middle East and North Africa Division ,Foreign & Commonwealth Office ,201705-101 ,904.90,
DFID,DFID,01/11/2016,Air fares ,Middle East and North Africa Division ,Corporate Travel Provider ,201705-101 ,590.75,
DFID,DFID,02/11/2016,Project delivery costs – supplier services ,Policy Division ,Foreign & Commonwealth Office ,201724-124 ,"3,287.82",
DFID,DFID,02/11/2016,Project delivery costs – supplier services ,Policy Division ,Foreign & Commonwealth Office ,201724-124 ,871.62,
DFID,DFID,02/11/2016,Project delivery costs – supplier services ,Policy Division ,Foreign & Commonwealth Office ,201724-124 ,801.20,
DFID,DFID,23/11/2016,Project delivery costs – supplier services ,Policy Division ,Foreign & Commonwealth Office ,201724-124 ,"2,441.59",
DFID,DFID,23/11/2016,Project delivery costs – supplier services ,Policy Division ,Foreign & Commonwealth Office ,201724-124 ,842.84,
DFID,DFID,23/11/2016,Project delivery costs – supplier services ,Policy Division ,Foreign & Commonwealth Office ,201724-124 ,774.75,
DFID,DFID,16/11/2016,Air fares ,Policy Division ,Foreign & Commonwealth Office ,201724-124 ,705.38,
DFID,DFID,15/11/2016,Hotels - Accommodation only ,International Relations Division ,Foreign & Commonwealth Office ,201711-101 ,"1,045.00",
DFID,DFID,07/11/2016,Hotels - Accommodation only ,International Relations Division ,Foreign & Commonwealth Office ,201711-101 ,757.32,
DFID,DFID,07/11/2016,Air fares ,International Relations Division ,Foreign & Commonwealth Office ,201711-101 ,"2,056.45",
DFID,DFID,01/11/2016,Air fares ,Economic Development Division ,Corporate Travel Provider ,201723-102 ,"1,777.50",
DFID,DFID,01/11/2016,Air fares ,Economic Development Division ,Corporate Travel Provider ,202259-101 ,522.70,
DFID,DFID,01/11/2016,Air fares ,Economic Development Division ,Corporate Travel Provider ,202259-101 ,"1,643.35",
DFID,DFID,01/11/2016,Air fares ,Research and Evidence Division ,Corporate Travel Provider ,202331-101 ,546.29,
DFID,DFID,01/11/2016,Air fares ,Research and Evidence Division ,Corporate Travel Provider ,202331-101 ,556.45,
DFID,DFID,01/11/2016,Air fares ,Research and Evidence Division ,Corporate Travel Provider ,202331-101 ,546.29,
DFID,DFID,01/11/2016,Air fares ,Research and Evidence Division ,Corporate Travel Provider ,202331-101 ,546.29,
DFID,DFID,01/11/2016,Air fares ,Research and Evidence Division ,Corporate Travel Provider ,202331-101 ,546.29,
DFID,DFID,01/11/2016,Air fares ,Research and Evidence Division ,Corporate Travel Provider ,202331-101 ,546.29,
DFID,DFID,01/11/2016,Air fares ,Research and Evidence Division ,Corporate Travel Provider ,202331-101 ,546.29,
DFID,DFID,01/11/2016,Air fares ,Research and Evidence Division ,Corporate Travel Provider ,202331-101 ,795.05,
DFID,DFID,01/11/2016,Air fares ,Research and Evidence Division ,Corporate Travel Provider ,202348-101 ,807.11,
DFID,DFID,01/11/2016,Air fares ,Research and Evidence Division ,Corporate Travel Provider ,202348-101 ,637.21,
DFID,DFID,01/11/2016,Air fares ,Research and Evidence Division ,Corporate Travel Provider ,202348-101 ,756.47,
DFID,DFID,01/11/2016,Hotels - Accommodation only ,Research and Evidence Division ,Corporate Travel Provider ,202348-103 ,676.38,
DFID,DFID,01/11/2016,Hotels - Accommodation only ,Research and Evidence Division ,Corporate Travel Provider ,202348-103 ,"1,085.00",
DFID,DFID,01/11/2016,Air fares ,Research and Evidence Division ,Corporate Travel Provider ,202348-103 ,"1,725.85",
DFID,DFID,01/11/2016,Air fares ,Economic Development Division ,Corporate Travel Provider ,202373-101 ,604.05,
DFID,DFID,01/11/2016,Air fares ,Economic Development Division ,Corporate Travel Provider ,202373-101 ,768.95,
DFID,DFID,01/11/2016,Air fares ,Economic Development Division ,Corporate Travel Provider ,202373-101 ,537.15,
DFID,DFID,01/11/2016,Air fares ,Economic Development Division ,Corporate Travel Provider ,202373-101 ,537.15,
DFID,DFID,01/11/2016,Air fares ,Economic Development Division ,Corporate Travel Provider ,202373-101 ,"1,073.05",
DFID,DFID,01/11/2016,Air fares ,Research and Evidence Division ,Corporate Travel Provider ,202392-103 ,542.45,
DFID,DFID,01/11/2016,Hotels - Accommodation only ,Research and Evidence Division ,Corporate Travel Provider ,202392-109 ,625.95,
DFID,DFID,01/11/2016,Hotels - Accommodation only ,Research and Evidence Division ,Corporate Travel Provider ,202392-109 ,780.00,
DFID,DFID,01/11/2016,Hotels - Accommodation only ,Research and Evidence Division ,Corporate Travel Provider ,202392-109 ,763.00,
DFID,DFID,01/11/2016,Hotels - Accommodation only ,Research and Evidence Division ,Corporate Travel Provider ,202392-109 ,650.00,
DFID,DFID,01/11/2016,Hotels - Accommodation only ,Research and Evidence Division ,Corporate Travel Provider ,202392-110 ,596.43,
DFID,DFID,01/11/2016,Air fares ,Research and Evidence Division ,Corporate Travel Provider ,202392-110 ,"1,169.55",
DFID,DFID,01/11/2016,Air fares ,Research and Evidence Division ,Corporate Travel Provider ,202392-104 ,"1,461.25",
DFID,DFID,01/11/2016,Hotels - Accommodation only ,Research and Evidence Division ,Corporate Travel Provider ,202392-104 ,619.38,
DFID,DFID,01/11/2016,Air fares ,Research and Evidence Division ,Corporate Travel Provider ,202392-106 ,524.85,
DFID,DFID,01/11/2016,Air fares ,Research and Evidence Division ,Corporate Travel Provider ,202392-106 ,665.65,
DFID,DFID,01/11/2016,Air fares ,Research and Evidence Division ,Corporate Travel Provider ,202392-113 ,777.35,
DFID,DFID,01/11/2016,Air fares ,Policy Division ,Corporate Travel Provider ,202396-101 ,602.73,
DFID,DFID,01/11/2016,Air fares ,Policy Division ,Corporate Travel Provider ,202402-102 ,614.45,
DFID,DFID,01/11/2016,Air fares ,Policy Division ,Corporate Travel Provider ,202402-107 ,"1,222.77",
DFID,DFID,01/11/2016,Air fares ,Policy Division ,Corporate Travel Provider ,202402-107 ,610.15,
DFID,DFID,01/11/2016,Air fares ,Policy Division ,Corporate Travel Provider ,202402-107 ,982.80,
DFID,DFID,01/11/2016,Air fares ,Policy Division ,Corporate Travel Provider ,202402-107 ,670.71,
DFID,DFID,16/11/2016,Air fares ,Asia  Caribbean and Overseas Territories ,Foreign & Commonwealth Office ,202403-101 ,"5,155.58",
DFID,DFID,16/11/2016,Air fares ,Conflict  Humanitarian  Security & Stabilisation Division ,Foreign & Commonwealth Office ,202410-108 ,911.72,
DFID,DFID,16/11/2016,Air fares ,Conflict  Humanitarian  Security & Stabilisation Division ,Foreign & Commonwealth Office ,202410-108 ,911.72,
DFID,DFID,01/11/2016,Air fares ,Conflict  Humanitarian  Security & Stabilisation Division ,Corporate Travel Provider ,202410-108 ,608.75,
DFID,DFID,02/11/2016,Training - Course Fees ,Conflict  Humanitarian  Security & Stabilisation Division ,RedR,202410-108 ,"1,219.00",
DFID,DFID,01/11/2016,Air fares ,Policy Division ,Corporate Travel Provider ,202419-101 ,576.89,
DFID,DFID,01/11/2016,Hotels - Accommodation only ,Policy Division ,Corporate Travel Provider ,202419-101 ,919.65,
DFID,DFID,01/11/2016,Air fares ,Policy Division ,Corporate Travel Provider ,202419-101 ,"1,053.05",
DFID,DFID,01/11/2016,Air fares ,Policy Division ,Corporate Travel Provider ,202419-101 ,790.92,
DFID,DFID,01/11/2016,Air fares ,Policy Division ,Corporate Travel Provider ,202419-101 ,767.27,
DFID,DFID,01/11/2016,Other passenger transport ,Policy Division ,Corporate Travel Provider ,202419-101 ,506.20,
DFID,DFID,01/11/2016,Hotels - Accommodation only ,Economic Development Division ,Corporate Travel Provider ,202432-101 ,704.04,
DFID,DFID,01/11/2016,Air fares ,Economic Development Division ,Corporate Travel Provider ,202432-101 ,617.75,
DFID,DFID,01/11/2016,Hotels - Accommodation only ,Asia  Caribbean and Overseas Territories ,Corporate Travel Provider ,202495-112 ,510.00,
DFID,DFID,01/11/2016,Hotels - Accommodation only ,East and Central Africa ,Corporate Travel Provider ,202594-101 ,701.61,
DFID,DFID,01/11/2016,Air fares ,East and Central Africa ,Corporate Travel Provider ,202594-101 ,646.05,
DFID,DFID,01/11/2016,Air fares ,East and Central Africa ,Corporate Travel Provider ,202594-101 ,610.60,
DFID,DFID,01/11/2016,Air fares ,East and Central Africa ,Corporate Travel Provider ,202594-101 ,646.05,
DFID,DFID,01/11/2016,Air fares ,East and Central Africa ,Corporate Travel Provider ,202594-101 ,610.60,
DFID,DFID,01/11/2016,Air fares ,East and Central Africa ,Corporate Travel Provider ,202594-101 ,641.70,
DFID,DFID,01/11/2016,Hotels - Accommodation only ,East and Central Africa ,Corporate Travel Provider ,202594-101 ,932.68,
DFID,DFID,01/11/2016,Hotels - Accommodation only ,East and Central Africa ,Corporate Travel Provider ,202594-101 ,932.68,
DFID,DFID,01/11/2016,Air fares ,East and Central Africa ,Corporate Travel Provider ,202594-101 ,605.05,
DFID,DFID,01/11/2016,Air fares ,East and Central Africa ,Corporate Travel Provider ,202594-101 ,"1,807.60",
DFID,DFID,01/11/2016,Air fares ,East and Central Africa ,Corporate Travel Provider ,202594-101 ,"1,297.50",
DFID,DFID,01/11/2016,Air fares ,East and Central Africa ,Corporate Travel Provider ,202594-101 ,597.70,
DFID,DFID,01/11/2016,Air fares ,East and Central Africa ,Corporate Travel Provider ,202594-101 ,675.15,
DFID,DFID,01/11/2016,Air fares ,East and Central Africa ,Corporate Travel Provider ,202594-101 ,"1,053.15",
DFID,DFID,01/11/2016,Air fares ,East and Central Africa ,Corporate Travel Provider ,202594-101 ,"1,138.25",
DFID,DFID,01/11/2016,Air fares ,East and Central Africa ,Corporate Travel Provider ,202594-101 ,"1,164.45",
DFID,DFID,01/11/2016,Air fares ,East and Central Africa ,Corporate Travel Provider ,202594-101 ,582.30,
DFID,DFID,02/11/2016,Training - Course Fees ,Finance and Corporate Performance Division ,Kaplan Finance ,202836-101 ,582.00,
DFID,DFID,01/11/2016,Air fares ,Middle East and North Africa Division ,Corporate Travel Provider ,202885-101 ,644.95,
DFID,DFID,02/11/2016,Telephone Usage & services ,East and Central Africa ,Foreign & Commonwealth Office ,202913-104 ,"1,275.02",
DFID,DFID,02/11/2016,Aid Programme - Joint programme contribution ,Asia  Caribbean and Overseas Territories ,Foreign & Commonwealth Office ,203174-103 ,"78,979.92",
DFID,DFID,02/11/2016,Aid Programme - Joint programme contribution ,Asia  Caribbean and Overseas Territories ,Foreign & Commonwealth Office ,203174-103 ,"4,594.45",
DFID,DFID,22/11/2016,Data Network - land lines ,Business Solutions Division Level ,Foreign & Commonwealth Office ,203329-102 ,876.15,
DFID,DFID,16/11/2016,Hotels - Accommodation only ,Business Solutions Division Level ,Foreign & Commonwealth Office ,203329-104 ,576.18,
DFID,DFID,16/11/2016,DFID Purchased Relief Supplies ,West and Southern Africa ,Foreign & Commonwealth Office ,203674-103 ,"7,546.53",
DFID,DFID,16/11/2016,DFID Purchased Relief Supplies ,West and Southern Africa ,Foreign & Commonwealth Office ,203674-103 ,"6,040.44",
DFID,DFID,16/11/2016,DFID Purchased Relief Supplies ,West and Southern Africa ,Foreign & Commonwealth Office ,203674-103 ,"7,205.06",
DFID,DFID,16/11/2016,DFID Purchased Relief Supplies ,West and Southern Africa ,Foreign & Commonwealth Office ,203674-103 ,"7,546.53",
DFID,DFID,16/11/2016,DFID Purchased Relief Supplies ,West and Southern Africa ,Foreign & Commonwealth Office ,203674-103 ,"7,577.34",
DFID,DFID,16/11/2016,DFID Purchased Relief Supplies ,West and Southern Africa ,Foreign & Commonwealth Office ,203674-103 ,"8,986.40",
DFID,DFID,16/11/2016,DFID Purchased Relief Supplies ,West and Southern Africa ,Foreign & Commonwealth Office ,203674-103 ,"9,083.44",
DFID,DFID,16/11/2016,DFID Purchased Relief Supplies ,West and Southern Africa ,Foreign & Commonwealth Office ,203674-103 ,"7,577.34",
DFID,DFID,16/11/2016,DFID Purchased Relief Supplies ,West and Southern Africa ,Foreign & Commonwealth Office ,203674-103 ,"5,269.53",
DFID,DFID,16/11/2016,DFID Purchased Relief Supplies ,West and Southern Africa ,Foreign & Commonwealth Office ,203674-103 ,"5,887.07",
DFID,DFID,16/11/2016,DFID Purchased Relief Supplies ,West and Southern Africa ,Foreign & Commonwealth Office ,203674-103 ,"5,902.72",
DFID,DFID,23/11/2016,DFID Purchased Relief Supplies ,West and Southern Africa ,Foreign & Commonwealth Office ,203674-103 ,"2,114.95",
DFID,DFID,16/11/2016,DFID Purchased Relief Supplies ,West and Southern Africa ,Foreign & Commonwealth Office ,203674-103 ,"7,880.56",
DFID,DFID,16/11/2016,DFID Purchased Relief Supplies ,West and Southern Africa ,Foreign & Commonwealth Office ,203674-103 ,"5,757.89",
DFID,DFID,01/11/2016,Air fares ,Finance and Corporate Performance Division ,Corporate Travel Provider ,203698-101 ,580.90,
DFID,DFID,02/11/2016,Office Supplies ,Group Operations ,Banner ,203717-101 ,523.79,
DFID,DFID,02/11/2016,Office Supplies ,Group Operations ,Banner ,203717-101 ,515.10,
DFID,DFID,01/11/2016,Air fares ,Research and Evidence Division ,Corporate Travel Provider ,203874-103 ,617.95,
DFID,DFID,01/11/2016,Air fares ,Asia  Caribbean and Overseas Territories ,Corporate Travel Provider ,204053-101 ,661.75,
DFID,DFID,01/11/2016,Air fares ,Asia  Caribbean and Overseas Territories ,Corporate Travel Provider ,204053-101 ,836.45,
DFID,DFID,01/11/2016,Air fares ,Middle East and North Africa Division ,Corporate Travel Provider ,204055-101 ,567.03,
DFID,DFID,01/11/2016,Hotels - Accommodation only ,Middle East and North Africa Division ,Corporate Travel Provider ,204055-101 ,"1,861.29",
DFID,DFID,01/11/2016,Hotels - Accommodation only ,Middle East and North Africa Division ,Corporate Travel Provider ,204055-101 ,"3,539.13",
DFID,DFID,01/11/2016,Hotels - Accommodation only ,Middle East and North Africa Division ,Corporate Travel Provider ,204055-101 ,"1,628.22",
DFID,DFID,15/11/2016,Hotels - Accommodation only ,Middle East and North Africa Division ,Foreign & Commonwealth Office ,204055-101 ,"2,454.08",
DFID,DFID,15/11/2016,Hotels - Accommodation only ,Middle East and North Africa Division ,Foreign & Commonwealth Office ,204055-101 ,"3,924.30",
DFID,DFID,15/11/2016,Hotels - Accommodation only ,Middle East and North Africa Division ,Foreign & Commonwealth Office ,204055-101 ,"3,223.42",
DFID,DFID,15/11/2016,Hotels - Accommodation only ,Middle East and North Africa Division ,Foreign & Commonwealth Office ,204055-101 ,"3,139.44",
DFID,DFID,22/11/2016,Hotels - Accommodation only ,Middle East and North Africa Division ,Foreign & Commonwealth Office ,204055-101 ,"3,051.66",
DFID,DFID,01/11/2016,Air fares ,Middle East and North Africa Division ,Corporate Travel Provider ,204084-101 ,533.59,
DFID,DFID,02/11/2016,Professional member subscriptions ,Group Operations ,"CSARN, City Security And Resilience Networks",204284-101 ,"1,438.80",
DFID,DFID,01/11/2016,Hotels - Accommodation only ,East and Central Africa ,Corporate Travel Provider ,204323-107 ,925.04,
DFID,DFID,01/11/2016,Air fares ,East and Central Africa ,Corporate Travel Provider ,204323-107 ,588.75,
DFID,DFID,01/11/2016,Air fares ,East and Central Africa ,Corporate Travel Provider ,204323-107 ,707.55,
DFID,DFID,08/11/2016,Project delivery costs – supplier services ,East and Central Africa ,Foreign & Commonwealth Office ,204439-103 ,"7,008.79",
DFID,DFID,01/11/2016,Hotels - Accommodation only ,Global Funds ,Corporate Travel Provider ,204452-101 ,504.82,
DFID,DFID,02/11/2016,Aid Programme - Humanitarian Material Relief Assistance and Services ,Middle East and North Africa Division ,Foreign & Commonwealth Office ,204516-102 ,"3,057.41",
DFID,DFID,23/11/2016,Aid Programme - Humanitarian Material Relief Assistance and Services ,Middle East and North Africa Division ,Foreign & Commonwealth Office ,204516-102 ,"3,057.41",
DFID,DFID,23/11/2016,Aid Programme - Humanitarian Material Relief Assistance and Services ,Middle East and North Africa Division ,Foreign & Commonwealth Office ,204517-101 ,"6,456.50",
DFID,DFID,01/11/2016,Air fares ,Asia  Caribbean and Overseas Territories ,Corporate Travel Provider ,204619-101 ,559.55,
DFID,DFID,01/11/2016,Air fares ,Research and Evidence Division ,Corporate Travel Provider ,204815-101 ,639.05,
DFID,DFID,01/11/2016,Hotels - Accommodation only ,Research and Evidence Division ,Corporate Travel Provider ,204815-101 ,724.08,
DFID,DFID,01/11/2016,Air fares ,Finance and Corporate Performance Division ,Corporate Travel Provider ,204846-101 ,721.37,
DFID,DFID,01/11/2016,Air fares ,Finance and Corporate Performance Division ,Corporate Travel Provider ,204055-101 ,620.07,
DFID,DFID,01/11/2016,Air fares ,Finance and Corporate Performance Division ,Corporate Travel Provider ,204055-101 ,620.07,
DFID,DFID,01/11/2016,Air fares ,West and Southern Africa ,Corporate Travel Provider ,204856-102 ,644.70,
DFID,DFID,16/11/2016,Secure Staff Accommodation ,Asia  Caribbean and Overseas Territories ,Foreign & Commonwealth Office ,204857-102 ,"11,212.65",
DFID,DFID,01/11/2016,Air fares ,Non-Departmental Public Body ,Corporate Travel Provider ,204873-102 ,639.65,
DFID,DFID,01/11/2016,Air fares ,Non-Departmental Public Body ,Corporate Travel Provider ,204873-103 ,516.65,
DFID,DFID,01/11/2016,Air fares ,West and Southern Africa ,Corporate Travel Provider ,204939-102 ,532.20,
DFID,DFID,01/11/2016,Air fares ,Asia  Caribbean and Overseas Territories ,Corporate Travel Provider ,204952-103 ,"2,220.00",
DFID,DFID,23/11/2016,Air fares ,East and Central Africa ,Foreign & Commonwealth Office ,204957-102 ,627.48,
DFID,DFID,01/11/2016,Air fares ,Middle East and North Africa Division ,Corporate Travel Provider ,204978-101 ,663.73,
DFID,DFID,01/11/2016,Air fares ,Middle East and North Africa Division ,Corporate Travel Provider ,204981-101 ,728.85,
DFID,DFID,22/11/2016,Hotels - Accommodation only ,PGP Directorate ,Foreign & Commonwealth Office ,205044-101 ,"2,034.44",
DFID,DFID,22/11/2016,Hotels - Accommodation only ,PGP Directorate ,Foreign & Commonwealth Office ,205044-101 ,"2,034.44",
DFID,DFID,01/11/2016,Air fares ,PGP Directorate ,Corporate Travel Provider ,205044-101 ,"1,609.55",
DFID,DFID,02/11/2016,Project delivery costs � supplier services,International Relations Division ,Foreign & Commonwealth Office ,205081-101 ,"42,383.75",
DFID,DFID,02/11/2016,Project delivery costs � supplier services,International Relations Division ,Foreign & Commonwealth Office ,205081-101 ,744.45,
DFID,DFID,02/11/2016,Project delivery costs � supplier services,International Relations Division ,Foreign & Commonwealth Office ,205081-101 ,534.47,
DFID,DFID,02/11/2016,Project delivery costs � supplier services,International Relations Division ,Foreign & Commonwealth Office ,205081-101 ,553.56,
DFID,DFID,02/11/2016,Project delivery costs � supplier services,International Relations Division ,Foreign & Commonwealth Office ,205081-101 ,"2,290.60",
DFID,DFID,02/11/2016,Project delivery costs � supplier services,International Relations Division ,Foreign & Commonwealth Office ,205081-101 ,"16,634.65",
DFID,DFID,02/11/2016,Secure Staff Accommodation ,International Relations Division ,Foreign & Commonwealth Office ,205081-101 ,763.53,
DFID,DFID,02/11/2016,Repairs  Maintenance and Alterations – Other Building Costs ,International Relations Division ,Foreign & Commonwealth Office ,205081-101 ,"8,640.00",
DFID,DFID,02/11/2016,Project delivery costs � supplier services,International Relations Division ,Foreign & Commonwealth Office ,205081-101 ,"20,359.70",
DFID,DFID,02/11/2016,Project delivery costs � supplier services,International Relations Division ,Foreign & Commonwealth Office ,205081-101 ,"43,325.19",
DFID,DFID,02/11/2016,Project delivery costs � supplier services,International Relations Division ,Foreign & Commonwealth Office ,205081-101 ,"3,245.02",
DFID,DFID,02/11/2016,Project delivery costs � supplier services,International Relations Division ,Foreign & Commonwealth Office ,205081-101 ,"3,817.67",
DFID,DFID,02/11/2016,Project delivery costs � supplier services,International Relations Division ,Foreign & Commonwealth Office ,205081-101 ,"39,427.73",
DFID,DFID,02/11/2016,Project delivery costs � supplier services,International Relations Division ,Foreign & Commonwealth Office ,205081-101 ,"17,840.79",
DFID,DFID,02/11/2016,Repairs  Maintenance and Alterations – Other Building Costs ,International Relations Division ,Foreign & Commonwealth Office ,205081-101 ,"2,846.48",
DFID,DFID,02/11/2016,Project delivery costs � supplier services,International Relations Division ,Foreign & Commonwealth Office ,205081-101 ,"7,818.67",
DFID,DFID,01/11/2016,Hotels - Accommodation only ,International Relations Division ,Corporate Travel Provider ,205081-101 ,830.52,
DFID,DFID,01/11/2016,Hotels - Accommodation only ,International Relations Division ,Corporate Travel Provider ,205081-101 ,604.08,
DFID,DFID,01/11/2016,Hotels - Accommodation only ,International Relations Division ,Corporate Travel Provider ,205081-101 ,798.65,
DFID,DFID,07/11/2016,Vehicle Hire Charges ,Asia  Caribbean and Overseas Territories ,Foreign & Commonwealth Office ,205157-103 ,669.34,
DFID,DFID,22/11/2016,Air fares ,Asia  Caribbean and Overseas Territories ,Foreign & Commonwealth Office ,205157-103 ,506.53,
DFID,DFID,01/11/2016,Air fares ,Asia  Caribbean and Overseas Territories ,Corporate Travel Provider ,205157-103 ,875.62,
DFID,DFID,01/11/2016,Air fares ,Asia  Caribbean and Overseas Territories ,Corporate Travel Provider ,205157-103 ,846.22,
DFID,DFID,01/11/2016,Air fares ,Policy Division ,Corporate Travel Provider ,205248-102 ,965.35,
DFID,DFID,16/11/2016,Aid Programme - Humanitarian Material Relief Assistance and Services ,East and Central Africa ,Foreign & Commonwealth Office ,205256-104 ,911.72,
DFID,DFID,16/11/2016,Aid Programme - Humanitarian Material Relief Assistance and Services ,East and Central Africa ,Foreign & Commonwealth Office ,205256-104 ,"4,360.45",
DFID,DFID,02/11/2016,Aid Programme - Humanitarian Material Relief Assistance and Services ,East and Central Africa ,Foreign & Commonwealth Office ,205256-104 ,"1,245.53",
DFID,DFID,02/11/2016,Aid Programme - Humanitarian Material Relief Assistance and Services ,East and Central Africa ,Foreign & Commonwealth Office ,205256-104 ,"4,263.99",
DFID,DFID,02/11/2016,Aid Programme - Humanitarian Material Relief Assistance and Services ,East and Central Africa ,Foreign & Commonwealth Office ,205256-104 ,"4,268.58",
DFID,DFID,22/11/2016,Hotels - Accommodation only ,Conflict  Humanitarian  Security & Stabilisation Division ,Foreign & Commonwealth Office ,205279-101 ,678.15,
DFID,DFID,01/11/2016,Air fares ,Policy Division ,Corporate Travel Provider ,300032-101 ,766.55,
DFID,DFID,01/11/2016,Air fares ,Policy Division ,Corporate Travel Provider ,300032-101 ,705.45,
DFID,DFID,01/11/2016,Air fares ,Policy Division ,Corporate Travel Provider ,300032-101 ,689.59,
DFID,DFID,01/11/2016,Hotels - Accommodation only ,Policy Division ,Corporate Travel Provider ,300032-101 ,888.28,
DFID,DFID,01/11/2016,Air fares ,Policy Division ,Corporate Travel Provider ,300032-101 ,543.65,
DFID,DFID,01/11/2016,Air fares ,Policy Division ,Corporate Travel Provider ,300033-101 ,818.03,
DFID,DFID,01/11/2016,Hotels - Accommodation only ,Policy Division ,Corporate Travel Provider ,300033-101 ,888.93,
DFID,DFID,01/11/2016,Air fares ,Policy Division ,Corporate Travel Provider ,300033-101 ,933.15,
DFID,DFID,01/11/2016,Hotels - Accommodation only ,Policy Division ,Corporate Travel Provider ,300033-101 ,"1,356.83",
DFID,DFID,01/11/2016,Air fares ,Policy Division ,Corporate Travel Provider ,300033-101 ,848.35,
DFID,DFID,01/11/2016,Hotels - Accommodation only ,Conflict  Humanitarian  Security & Stabilisation Division ,Corporate Travel Provider ,300042-103 ,556.12,
DFID,DFID,01/11/2016,Air fares ,Conflict  Humanitarian  Security & Stabilisation Division ,Corporate Travel Provider ,300042-103 ,972.35,
DFID,DFID,10/11/2016,Hotels - Accommodation only ,Asia  Caribbean and Overseas Territories ,Foreign & Commonwealth Office ,300048-101 ,"2,508.05",
DFID,DFID,08/11/2016,Air fares ,Middle East and North Africa Division ,Foreign & Commonwealth Office ,300077-101 ,584.19,
DFID,DFID,02/11/2016,Secure Staff Accommodation ,Middle East and North Africa Division ,Foreign & Commonwealth Office ,300078-101 ,"11,393.41",
DFID,DFID,02/11/2016,Hotels - Accommodation only ,Middle East and North Africa Division ,Foreign & Commonwealth Office ,300078-101 ,939.40,
DFID,DFID,16/11/2016,Travel - Subsistence ,Middle East and North Africa Division ,Foreign & Commonwealth Office ,300078-101 ,584.18,
DFID,DFID,16/11/2016,Travel - Subsistence ,Middle East and North Africa Division ,Foreign & Commonwealth Office ,300078-101 ,"1,057.96",
DFID,DFID,16/11/2016,Travel - Subsistence ,Middle East and North Africa Division ,Foreign & Commonwealth Office ,300078-101 ,"2,937.27",
DFID,DFID,16/11/2016,Travel - Subsistence ,Middle East and North Africa Division ,Foreign & Commonwealth Office ,300078-101 ,"1,620.76",
DFID,DFID,16/11/2016,Travel - Subsistence ,Middle East and North Africa Division ,Foreign & Commonwealth Office ,300078-101 ,"4,750.59",
DFID,DFID,01/11/2016,Air fares ,Middle East and North Africa Division ,Corporate Travel Provider ,300078-101 ,592.45,
DFID,DFID,01/11/2016,Hotels - Accommodation only ,Middle East and North Africa Division ,Corporate Travel Provider ,300078-101 ,"1,110.00",
DFID,DFID,01/11/2016,Air fares ,Middle East and North Africa Division ,Corporate Travel Provider ,300078-101 ,845.15,
DFID,DFID,01/11/2016,Air fares ,Middle East and North Africa Division ,Corporate Travel Provider ,300080-101 ,519.45,
DFID,DFID,08/11/2016,Repairs  Maint  Alter - Property & Constrct. Services ,Middle East and North Africa Division ,Foreign & Commonwealth Office ,300080-101 ,773.22,
DFID,DFID,28/11/2016,Aid Programme - Accountable Grant Payments ,Research and Evidence Division ,ASSOCIATION OF COMMONWEALTH UNIVER ,201871-103 ,"449,603.00",
DFID,DFID,25/11/2016,Project delivery costs – supplier services ,West and Southern Africa ,ADAM SMITH INTERNATIONAL  LTD ,203674-103 ,"140,000.00",
DFID,DFID,25/11/2016,Project delivery costs – supplier services ,West and Southern Africa ,ADAM SMITH INTERNATIONAL  LTD ,203674-102 ,"1,953.23",
DFID,DFID,24/11/2016,Conferences  Seminars & Meeting/Event Resource ,East and Central Africa ,ADAM SMITH INTERNATIONAL  LTD ,101616-101 ,"1,333.74",
DFID,DFID,27/11/2016,Project delivery costs – supplier services ,East and Central Africa ,ADAM SMITH INTERNATIONAL  LTD ,204375-103 ,"928,393.99",
DFID,DFID,25/11/2016,Project delivery costs – supplier services ,West and Southern Africa ,ADAM SMITH INTERNATIONAL  LTD ,203674-102 ,"116,277.51",
DFID,DFID,07/11/2016,Project delivery costs – supplier services ,West and Southern Africa ,ADAM SMITH INTERNATIONAL  LTD ,203839-101 ,"137,602.32",
DFID,DFID,28/11/2016,Project delivery costs – supplier services ,West and Southern Africa ,ADAM SMITH INTERNATIONAL  LTD ,203839-101 ,"133,279.89",
DFID,DFID,18/11/2016,Project delivery costs – supplier services ,West and Southern Africa ,ADAM SMITH INTERNATIONAL  LTD ,203839-101 ,"485,896.00",
DFID,DFID,25/11/2016,Project delivery costs – supplier services ,West and Southern Africa ,ADAM SMITH INTERNATIONAL  LTD ,202584-108 ,"75,955.70",
DFID,DFID,25/11/2016,Project delivery costs – supplier services ,West and Southern Africa ,ADAM SMITH INTERNATIONAL  LTD ,202584-108 ,"14,539.52",
DFID,DFID,22/11/2016,Project delivery costs – supplier services ,Asia  Caribbean and Overseas Territories ,Supplier Name withheld ,202112-102 ,"138,258.62",
DFID,DFID,01/11/2016,Project delivery costs – supplier services ,Asia  Caribbean and Overseas Territories ,Supplier Name withheld ,202112-102 ,"167,239.44",
DFID,DFID,17/11/2016,Project delivery costs – supplier services ,Asia  Caribbean and Overseas Territories ,Supplier Name withheld ,203951-101 ,"25,023.49",
DFID,DFID,24/11/2016,Project delivery costs – supplier services ,Asia  Caribbean and Overseas Territories ,Supplier Name withheld ,203951-101 ,"42,098.90",
DFID,DFID,09/11/2016,Project delivery costs – supplier services ,East and Central Africa ,ADAM SMITH INTERNATIONAL  LTD ,203961-114 ,"17,593.46",
DFID,DFID,07/11/2016,Project delivery costs – supplier services ,West and Southern Africa ,ADAM SMITH INTERNATIONAL  LTD ,202584-106 ,"331,797.12",
DFID,DFID,17/11/2016,Project delivery costs – supplier services ,West and Southern Africa ,ADAM SMITH INTERNATIONAL  LTD ,202584-106 ,"225,775.48",
DFID,DFID,24/11/2016,Project delivery costs – supplier services ,West and Southern Africa ,ADAM SMITH INTERNATIONAL  LTD ,202584-106 ,"360,917.39",
DFID,DFID,21/11/2016,Project delivery costs – supplier services ,West and Southern Africa ,ADAM SMITH INTERNATIONAL  LTD ,202539-106 ,"253,322.16",
DFID,DFID,09/11/2016,Project delivery costs – supplier services ,West and Southern Africa ,ADAM SMITH INTERNATIONAL  LTD ,202539-106 ,"184,290.85",
DFID,DFID,21/11/2016,Project delivery costs – supplier services ,West and Southern Africa ,ADAM SMITH INTERNATIONAL  LTD ,202539-106 ,"24,951.15",
DFID,DFID,21/11/2016,Project delivery costs – supplier services ,West and Southern Africa ,ADAM SMITH INTERNATIONAL  LTD ,202539-106 ,"150,000.00",
DFID,DFID,01/11/2016,Project delivery costs – supplier services ,West and Southern Africa ,ADAM SMITH INTERNATIONAL  LTD ,202541-106 ,"776,805.87",
DFID,DFID,01/11/2016,Project delivery costs – supplier services ,West and Southern Africa ,ADAM SMITH INTERNATIONAL  LTD ,202541-106 ,"307,000.00",
DFID,DFID,02/11/2016,Project delivery costs – supplier services ,East and Central Africa ,ADAM SMITH INTERNATIONAL  LTD ,205065-102 ,"283,141.87",
DFID,DFID,25/11/2016,Project delivery costs – supplier services ,West and Southern Africa ,ADAM SMITH INTERNATIONAL  LTD ,201433-102 ,"1,613,701.83",
DFID,DFID,25/11/2016,Project delivery costs – supplier services ,West and Southern Africa ,ADAM SMITH INTERNATIONAL  LTD ,203674-103 ,"1,228,614.29",
DFID,DFID,17/11/2016,Project delivery costs – supplier services ,West and Southern Africa ,ADAM SMITH INTERNATIONAL  LTD ,104190-102 ,"734,132.49",
DFID,DFID,01/11/2016,Project delivery costs – supplier services ,West and Southern Africa ,ADAM SMITH INTERNATIONAL  LTD ,203666-102 ,"84,955.88",
DFID,DFID,28/11/2016,Project delivery costs – supplier services ,West and Southern Africa ,ADAM SMITH INTERNATIONAL  LTD ,203666-102 ,"100,437.62",
DFID,DFID,01/11/2016,Project delivery costs – supplier services ,West and Southern Africa ,ADAM SMITH INTERNATIONAL  LTD ,203161-103 ,"597,924.68",
DFID,DFID,30/11/2016,Project delivery costs – supplier services ,West and Southern Africa ,ADAM SMITH INTERNATIONAL  LTD ,203161-103 ,"539,265.26",
DFID,DFID,23/11/2016,Project delivery costs – supplier services ,Asia  Caribbean and Overseas Territories ,ADAM SMITH INTERNATIONAL  LTD ,201367-103 ,"205,507.49",
DFID,DFID,08/11/2016,Project delivery costs – supplier services ,Asia  Caribbean and Overseas Territories ,ADAM SMITH INTERNATIONAL  LTD ,201367-103 ,"389,015.60",
DFID,DFID,01/11/2016,Project delivery costs – supplier services ,East and Central Africa ,ADAM SMITH INTERNATIONAL  LTD ,203153-103 ,"207,026.10",
DFID,DFID,21/11/2016,Project delivery costs – supplier services ,West and Southern Africa ,ADAM SMITH INTERNATIONAL  LTD ,202539-108 ,"200,443.30",
DFID,DFID,21/11/2016,Project delivery costs – supplier services ,West and Southern Africa ,ADAM SMITH INTERNATIONAL  LTD ,202539-108 ,"1,668.50",
DFID,DFID,21/11/2016,Project delivery costs – supplier services ,West and Southern Africa ,ADAM SMITH INTERNATIONAL  LTD ,202539-108 ,"1,859.00",
DFID,DFID,14/11/2016,Project delivery costs – supplier services ,East and Central Africa ,ADAM SMITH INTERNATIONAL  LTD ,204456-105 ,"13,852.81",
DFID,DFID,25/11/2016,Project delivery costs – supplier services ,West and Southern Africa ,ADAM SMITH INTERNATIONAL  LTD ,203824-103 ,"148,825.35",
DFID,DFID,01/11/2016,Project delivery costs – supplier services ,West and Southern Africa ,ADAM SMITH INTERNATIONAL  LTD ,203824-103 ,"190,427.49",
DFID,DFID,24/11/2016,Project delivery costs – supplier services ,Asia  Caribbean and Overseas Territories ,ADAM SMITH INTERNATIONAL  LTD ,202328-102 ,"350,008.98",
DFID,DFID,08/11/2016,Project delivery costs – supplier services ,Asia  Caribbean and Overseas Territories ,ADAM SMITH INTERNATIONAL  LTD ,202697-109 ,"997,914.00",
DFID,DFID,11/11/2016,Project delivery costs – supplier services ,East and Central Africa ,ADAM SMITH INTERNATIONAL  LTD ,205092-101 ,"20,211.15",
DFID,DFID,04/11/2016,Aid Programme - Accountable Grant Payments ,Asia  Caribbean and Overseas Territories ,ACTION AGAINST HUNGER UK ,205138-104 ,"460,000.00",
DFID,DFID,30/11/2016,Project delivery costs – supplier services ,Asia  Caribbean and Overseas Territories ,Supplier Name withheld ,204122-101 ,"174,769.00",
DFID,DFID,30/11/2016,Project delivery costs – supplier services ,Asia  Caribbean and Overseas Territories ,Supplier Name withheld ,204122-104 ,"940,939.00",
DFID,DFID,30/11/2016,Project delivery costs – supplier services ,Asia  Caribbean and Overseas Territories ,Supplier Name withheld ,204122-105 ,"834,417.46",
DFID,DFID,03/11/2016,Project delivery costs – supplier services ,West and Southern Africa ,ATOS IT Services UK Ltd ,203230-101 ,"234,635.00",
DFID,DFID,16/11/2016,Project delivery costs – supplier services ,Asia  Caribbean and Overseas Territories ,Supplier Name withheld ,204122-101 ,"145,952.00",
DFID,DFID,16/11/2016,Project delivery costs – supplier services ,Asia  Caribbean and Overseas Territories ,Supplier Name withheld ,204122-104 ,"526,922.00",
DFID,DFID,16/11/2016,Project delivery costs – supplier services ,Asia  Caribbean and Overseas Territories ,Supplier Name withheld ,204122-105 ,"467,271.00",
DFID,DFID,07/11/2016,Aid Programme - Partnership Programme Arrangements ,Policy Division ,ARTICLE 19 ,202556-101 ,"135,671.68",
DFID,DFID,26/11/2016,Project delivery costs – supplier services ,Business Solutions Division Level ,Unit 4 ,200005-132 ,"1,380.00",
DFID,DFID,18/11/2016,Aid Programme - Accountable Grant Payments ,East and Central Africa ,FOUNDATION AFRICA PROGRESS PANEL ,205174-101 ,"374,983.00",
DFID,DFID,23/11/2016,Telephone Usage & services ,Asia  Caribbean and Overseas Territories ,Supplier Name withheld ,100025-101 ,518.40,
DFID,DFID,22/11/2016,Project delivery costs – supplier services ,West and Southern Africa ,BRITISH COUNCIL (UK) ,114161-101 ,"242,699.68",
DFID,DFID,03/11/2016,Aid Programme - Accountable Grant Payments ,Policy Division ,BOND ,203953-101 ,"186,991.00",
DFID,DFID,14/11/2016,Training Providers/Facilitation Services ,Human Resources ,BOND ,100269-158 ,"2,000.00",
DFID,DFID,02/11/2016,Aid Programme - Accountable Grant Payments ,Conflict  Humanitarian  Security & Stabilisation Division ,Supplier Name withheld ,300334-101 ,"700,000.00",
DFID,DFID,10/11/2016,Aid Programme - Accountable Grant Payments ,Policy Division ,BBC Media Action ,202629-101 ,"3,800,000.00",
DFID,DFID,26/11/2016,Telephone Usage & services ,Business Solutions Division Level ,BT BACS PAYMENTS ,200002-130 ,"1,799.71",
DFID,DFID,25/11/2016,Project delivery costs – supplier services ,West and Southern Africa ,BRITISH COUNCIL ,201625-101 ,"296,032.10",
DFID,DFID,11/11/2016,Project delivery costs – supplier services ,Policy Division ,BRITISH COUNCIL ,203166-101 ,"831,108.66",
DFID,DFID,03/11/2016,Project delivery costs – supplier services ,West and Southern Africa ,BRITISH COUNCIL ,203816-103 ,"267,208.55",
DFID,DFID,26/11/2016,Project delivery costs – supplier services ,West and Southern Africa ,BRITISH COUNCIL ,203816-103 ,"576,286.91",
DFID,DFID,03/11/2016,Project delivery costs – supplier services ,West and Southern Africa ,BRITISH COUNCIL ,203816-102 ,"88,692.30",
DFID,DFID,10/11/2016,Project delivery costs – supplier services ,Asia  Caribbean and Overseas Territories ,Supplier Name withheld ,201000-102 ,"17,490.00",
DFID,DFID,22/11/2016,Project delivery costs – supplier services ,West and Southern Africa ,BRITISH COUNCIL ,201625-109 ,"267,842.09",
DFID,DFID,22/11/2016,Project delivery costs – supplier services ,West and Southern Africa ,BRITISH COUNCIL ,201625-109 ,"247,201.00",
DFID,DFID,30/11/2016,Aid Programme - Accountable Grant Payments ,Policy Division ,CAFOD ,203559-138 ,"471,400.00",
DFID,DFID,16/11/2016,Aid Programme - Accountable Grant Payments ,Policy Division ,CAFOD ,203559-148 ,"623,034.00",
DFID,DFID,08/11/2016,Aid Programme - Accountable Grant Payments ,West and Southern Africa ,CHRISTIAN AID ,204822-106 ,"288,806.11",
DFID,DFID,01/11/2016,Project delivery costs – supplier services ,Asia  Caribbean and Overseas Territories ,CHRISTIAN AID ,113311-101 ,"178,324.37",
DFID,DFID,25/11/2016,Project delivery costs – supplier services ,West and Southern Africa ,CHRISTIAN AID ,204657-102 ,"5,354.33",
DFID,DFID,27/11/2016,Project delivery costs – supplier services ,West and Southern Africa ,CHRISTIAN AID ,205269-101 ,"129,420.23",
DFID,DFID,21/11/2016,Aid Programme - Accountable Grant Payments ,Policy Division ,CHRISTIAN AID ,203559-149 ,"105,770.00",
DFID,DFID,08/11/2016,Project delivery costs – supplier services ,West and Southern Africa ,Crown Agents. ,202416-115 ,"2,019.11",
DFID,DFID,26/11/2016,DFID Purchased Relief Supplies ,West and Southern Africa ,Crown Agents. ,202992-102 ,"3,087.00",
DFID,DFID,21/11/2016,Medical Equipment ,West and Southern Africa ,Crown Agents. ,202992-102 ,"19,137.97",
DFID,DFID,26/11/2016,Medical Equipment ,West and Southern Africa ,Crown Agents. ,202992-102 ,"16,749.69",
DFID,DFID,01/11/2016,Medical Equipment ,West and Southern Africa ,Crown Agents. ,202992-102 ,"3,560.63",
DFID,DFID,17/11/2016,Project delivery costs – supplier services ,East and Central Africa ,Crown Agents. ,205064-106 ,"16,002.00",
DFID,DFID,10/11/2016,Project delivery costs – supplier services ,East and Central Africa ,Crown Agents. ,205064-106 ,"1,712.68",
DFID,DFID,03/11/2016,Aid Programme - Accountable Grant Payments ,Conflict  Humanitarian  Security & Stabilisation Division ,Crown Agents. ,300334-101 ,"10,309.92",
DFID,DFID,17/11/2016,Aid Programme - Accountable Grant Payments ,Conflict  Humanitarian  Security & Stabilisation Division ,Crown Agents. ,300334-101 ,"9,525.60",
DFID,DFID,30/11/2016,Project delivery costs – supplier services ,Conflict  Humanitarian  Security & Stabilisation Division ,Crown Agents. ,203416-102 ,"29,632.93",
DFID,DFID,26/11/2016,Project delivery costs – supplier services ,Middle East and North Africa Division ,Crown Agents. ,204016-103 ,"7,999.20",
DFID,DFID,25/11/2016,Project delivery costs – supplier services ,Middle East and North Africa Division ,Crown Agents. ,204016-103 ,"8,943.09",
DFID,DFID,26/11/2016,Project delivery costs – supplier services ,Middle East and North Africa Division ,Crown Agents. ,204016-103 ,"10,080.00",
DFID,DFID,15/11/2016,Aid Programme - Humanitarian Material Relief Assistance and Services ,Conflict  Humanitarian  Security & Stabilisation Division ,Crown Agents. ,203419-105 ,619.81,
DFID,DFID,16/11/2016,Aid Programme - Humanitarian Material Relief Assistance and Services ,Conflict  Humanitarian  Security & Stabilisation Division ,Crown Agents. ,203419-105 ,"11,112.50",
DFID,DFID,01/11/2016,Aid Programme - Humanitarian Material Relief Assistance and Services ,Conflict  Humanitarian  Security & Stabilisation Division ,Crown Agents. ,202878-103 ,"1,020.60",
DFID,DFID,17/11/2016,Aid Programme - Humanitarian Material Relief Assistance and Services ,Conflict  Humanitarian  Security & Stabilisation Division ,Crown Agents. ,202878-103 ,"1,958.40",
DFID,DFID,16/11/2016,Aid Programme - Humanitarian Material Relief Assistance and Services ,Conflict  Humanitarian  Security & Stabilisation Division ,Crown Agents. ,202878-103 ,"5,400.00",
DFID,DFID,18/11/2016,Aid Programme - Humanitarian Material Relief Assistance and Services ,Conflict  Humanitarian  Security & Stabilisation Division ,Crown Agents. ,202878-103 ,"83,922.75",
DFID,DFID,18/11/2016,Aid Programme - Humanitarian Material Relief Assistance and Services ,Conflict  Humanitarian  Security & Stabilisation Division ,Crown Agents. ,202878-103 ,"24,798.05",
DFID,DFID,30/11/2016,Aid Programme - Humanitarian Material Relief Assistance and Services ,Conflict  Humanitarian  Security & Stabilisation Division ,Crown Agents. ,202741-107 ,"4,004.18",
DFID,DFID,07/11/2016,Aid Programme - Humanitarian Material Relief Assistance and Services ,Conflict  Humanitarian  Security & Stabilisation Division ,Crown Agents. ,202741-107 ,"11,566.80",
DFID,DFID,24/11/2016,Aid Programme - Refugee Relief Payments ,East and Central Africa ,Crown Agents. ,205032-105 ,"32,004.00",
DFID,DFID,02/11/2016,DFID Purchased Relief Supplies ,East and Central Africa ,Crown Agents. ,203363-103 ,"2,853.89",
DFID,DFID,29/11/2016,Project delivery costs – supplier services ,East and Central Africa ,Crown Agents. ,202890-104 ,"14,364.00",
DFID,DFID,29/11/2016,Project delivery costs – supplier services ,East and Central Africa ,Crown Agents. ,202890-104 ,"6,156.00",
DFID,DFID,11/11/2016,Aid Programme - Humanitarian Material Relief Assistance and Services ,Middle East and North Africa Division ,Crown Agents. ,204968-103 ,"5,116.80",
DFID,DFID,15/11/2016,Project delivery costs – supplier services ,Middle East and North Africa Division ,Crown Agents. ,205094-103 ,"9,576.00",
DFID,DFID,25/11/2016,Project delivery costs – supplier services ,Middle East and North Africa Division ,Crown Agents. ,300045-102 ,"1,568.00",
DFID,DFID,29/11/2016,Project delivery costs – supplier services ,Middle East and North Africa Division ,Crown Agents. ,300045-102 ,"2,892.45",
DFID,DFID,07/11/2016,Project delivery costs – supplier services ,Middle East and North Africa Division ,Crown Agents. ,300045-102 ,"2,352.00",
DFID,DFID,24/11/2016,Project delivery costs – supplier services ,East and Central Africa ,Crown Agents. ,204439-103 ,"11,721.60",
DFID,DFID,28/11/2016,Aid Programme - Accountable Grant Payments ,Conflict  Humanitarian  Security & Stabilisation Division ,Crown Agents. ,300334-101 ,"28,011.70",
DFID,DFID,28/11/2016,Aid Programme - Accountable Grant Payments ,Conflict  Humanitarian  Security & Stabilisation Division ,Crown Agents. ,300334-101 ,"3,115.72",
DFID,DFID,24/11/2016,Project delivery costs – supplier services ,West and Southern Africa ,Crown Agents. ,101629-101 ,"2,284.80",
DFID,DFID,27/11/2016,Project delivery costs – supplier services ,West and Southern Africa ,Crown Agents. ,101629-101 ,"8,282.40",
DFID,DFID,09/11/2016,Aid Programme - Accountable Grant Payments ,East and Central Africa ,Crown Agents. ,203961-114 ,849.00,
DFID,DFID,21/11/2016,Project delivery costs – supplier services ,East and Central Africa ,Crown Agents. ,202890-104 ,"2,040.00",
DFID,DFID,21/11/2016,Project delivery costs – supplier services ,East and Central Africa ,Crown Agents. ,202890-104 ,"1,150.55",
DFID,DFID,01/11/2016,Medical Equipment ,West and Southern Africa ,Crown Agents. ,202992-102 ,"50,024.38",
DFID,DFID,01/11/2016,Project delivery costs – supplier services ,West and Southern Africa ,Crown Agents. ,202992-102 ,"1,450.71",
DFID,DFID,14/11/2016,Project delivery costs – supplier services ,West and Southern Africa ,Crown Agents. ,202992-102 ,"1,026.04",
DFID,DFID,14/11/2016,Medical Equipment ,West and Southern Africa ,Crown Agents. ,202992-102 ,"35,380.80",
DFID,DFID,01/11/2016,DFID Purchased Relief Supplies ,West and Southern Africa ,Crown Agents. ,202992-102 ,"14,901.60",
DFID,DFID,01/11/2016,Medical Equipment ,West and Southern Africa ,Crown Agents. ,202992-102 ,"247,763.64",
DFID,DFID,01/11/2016,Project delivery costs – supplier services ,West and Southern Africa ,Crown Agents. ,202992-102 ,"7,185.15",
DFID,DFID,03/11/2016,Project delivery costs – supplier services ,West and Southern Africa ,Crown Agents. ,202992-102 ,508.04,
DFID,DFID,03/11/2016,Medicines & Drugs ,West and Southern Africa ,Crown Agents. ,202992-102 ,"140,228.09",
DFID,DFID,03/11/2016,Project delivery costs – supplier services ,West and Southern Africa ,Crown Agents. ,202992-102 ,"4,066.61",
DFID,DFID,02/11/2016,Medicines & Drugs ,West and Southern Africa ,Crown Agents. ,202992-102 ,"158,436.80",
DFID,DFID,02/11/2016,Project delivery costs – supplier services ,West and Southern Africa ,Crown Agents. ,202992-102 ,"4,594.67",
DFID,DFID,02/11/2016,Medicines & Drugs ,West and Southern Africa ,Crown Agents. ,202992-102 ,"198,046.00",
DFID,DFID,02/11/2016,Project delivery costs – supplier services ,West and Southern Africa ,Crown Agents. ,202992-102 ,"5,743.33",
DFID,DFID,03/11/2016,DFID Purchased Relief Supplies ,West and Southern Africa ,Crown Agents. ,202992-102 ,"17,518.53",
DFID,DFID,03/11/2016,Medicines & Drugs ,West and Southern Africa ,Crown Agents. ,202992-102 ,"3,106.35",
DFID,DFID,18/11/2016,Medical Equipment ,West and Southern Africa ,Crown Agents. ,202992-102 ,"95,577.30",
DFID,DFID,18/11/2016,Project delivery costs – supplier services ,West and Southern Africa ,Crown Agents. ,202992-102 ,"2,771.74",
DFID,DFID,18/11/2016,Medicines & Drugs ,West and Southern Africa ,Crown Agents. ,202992-102 ,"65,482.22",
DFID,DFID,22/11/2016,Medical Equipment ,West and Southern Africa ,Crown Agents. ,202992-102 ,"32,795.27",
DFID,DFID,22/11/2016,Project delivery costs – supplier services ,West and Southern Africa ,Crown Agents. ,202992-102 ,951.06,
DFID,DFID,18/11/2016,Medicines & Drugs ,West and Southern Africa ,Crown Agents. ,202992-102 ,"23,158.60",
DFID,DFID,18/11/2016,Project delivery costs – supplier services ,West and Southern Africa ,Crown Agents. ,202992-102 ,511.68,
DFID,DFID,18/11/2016,DFID Purchased Relief Supplies ,West and Southern Africa ,Crown Agents. ,202992-102 ,"22,246.52",
DFID,DFID,18/11/2016,Project delivery costs – supplier services ,West and Southern Africa ,Crown Agents. ,202992-102 ,"1,898.98",
DFID,DFID,18/11/2016,Medicines & Drugs ,West and Southern Africa ,Crown Agents. ,202992-102 ,"58,968.00",
DFID,DFID,18/11/2016,Project delivery costs – supplier services ,West and Southern Africa ,Crown Agents. ,202992-102 ,"1,710.07",
DFID,DFID,18/11/2016,Medicines & Drugs ,West and Southern Africa ,Crown Agents. ,202992-102 ,"6,731.51",
DFID,DFID,22/11/2016,Medical Equipment ,West and Southern Africa ,Crown Agents. ,202992-102 ,"44,226.00",
DFID,DFID,22/11/2016,Project delivery costs – supplier services ,West and Southern Africa ,Crown Agents. ,202992-102 ,"1,282.55",
DFID,DFID,24/11/2016,Medical Equipment ,West and Southern Africa ,Crown Agents. ,202992-102 ,"198,046.00",
DFID,DFID,11/11/2016,Project delivery costs – supplier services ,West and Southern Africa ,Crown Agents. ,203674-103 ,"1,889.23",
DFID,DFID,01/11/2016,Medical Equipment ,West and Southern Africa ,Crown Agents. ,202992-102 ,"95,944.75",
DFID,DFID,01/11/2016,Project delivery costs – supplier services ,West and Southern Africa ,Crown Agents. ,202992-102 ,"2,782.40",
DFID,DFID,01/11/2016,Medical Equipment ,West and Southern Africa ,Crown Agents. ,202992-102 ,"93,306.62",
DFID,DFID,01/11/2016,Project delivery costs – supplier services ,West and Southern Africa ,Crown Agents. ,202992-102 ,"2,705.89",
DFID,DFID,01/11/2016,Medical Equipment ,West and Southern Africa ,Crown Agents. ,202992-102 ,"79,115.40",
DFID,DFID,01/11/2016,Project delivery costs – supplier services ,West and Southern Africa ,Crown Agents. ,202992-102 ,"2,294.35",
DFID,DFID,01/11/2016,Medical Equipment ,West and Southern Africa ,Crown Agents. ,202992-102 ,"116,843.85",
DFID,DFID,01/11/2016,Project delivery costs – supplier services ,West and Southern Africa ,Crown Agents. ,202992-102 ,"3,388.47",
DFID,DFID,01/11/2016,Medicines & Drugs ,West and Southern Africa ,Crown Agents. ,202992-102 ,"63,353.16",
DFID,DFID,01/11/2016,Project delivery costs – supplier services ,West and Southern Africa ,Crown Agents. ,202992-102 ,"1,837.24",
DFID,DFID,01/11/2016,DFID Purchased Relief Supplies ,West and Southern Africa ,Crown Agents. ,202992-102 ,"17,833.92",
DFID,DFID,01/11/2016,Project delivery costs – supplier services ,West and Southern Africa ,Crown Agents. ,202992-102 ,517.18,
DFID,DFID,01/11/2016,Medicines & Drugs ,West and Southern Africa ,Crown Agents. ,202992-102 ,"80,577.89",
DFID,DFID,01/11/2016,Project delivery costs – supplier services ,West and Southern Africa ,Crown Agents. ,202992-102 ,"2,336.76",
DFID,DFID,24/11/2016,Medical Equipment ,West and Southern Africa ,Crown Agents. ,202992-102 ,"44,226.00",
DFID,DFID,24/11/2016,Project delivery costs – supplier services ,West and Southern Africa ,Crown Agents. ,202992-102 ,"1,282.55",
DFID,DFID,24/11/2016,DFID Purchased Relief Supplies ,West and Southern Africa ,Crown Agents. ,202992-102 ,"71,718.84",
DFID,DFID,24/11/2016,Project delivery costs – supplier services ,West and Southern Africa ,Crown Agents. ,202992-102 ,"2,079.85",
DFID,DFID,24/11/2016,Project delivery costs – supplier services ,West and Southern Africa ,Crown Agents. ,202992-102 ,"5,743.33",
DFID,DFID,18/11/2016,Project delivery costs – supplier services ,West and Southern Africa ,Crown Agents. ,202992-102 ,645.15,
DFID,DFID,18/11/2016,Medicines & Drugs ,West and Southern Africa ,Crown Agents. ,202992-102 ,"111,595.22",
DFID,DFID,18/11/2016,Project delivery costs – supplier services ,West and Southern Africa ,Crown Agents. ,202992-102 ,"3,236.26",
DFID,DFID,11/11/2016,Project delivery costs – supplier services ,West and Southern Africa ,Crown Agents. ,203674-103 ,"6,919.95",
DFID,DFID,03/11/2016,Fund monies to be managed and dispersed by the supplier ,East and Central Africa ,Crown Agents. ,203109-112 ,"756,585.05",
DFID,DFID,25/11/2016,Aid Programme - Humanitarian Material Relief Assistance and Services ,Middle East and North Africa Division ,Crown Agents. ,204516-103 ,"14,865.60",
DFID,DFID,24/11/2016,Aid Programme - Humanitarian Material Relief Assistance and Services ,Middle East and North Africa Division ,Crown Agents. ,204516-103 ,"16,430.40",
DFID,DFID,22/11/2016,Project delivery costs – supplier services ,Asia  Caribbean and Overseas Territories ,Supplier Name withheld ,202112-103 ,"79,220.44",
DFID,DFID,30/11/2016,Project delivery costs – supplier services ,Conflict  Humanitarian  Security & Stabilisation Division ,Crown Agents. ,203416-102 ,"13,771.80",
DFID,DFID,30/11/2016,Project delivery costs – supplier services ,Conflict  Humanitarian  Security & Stabilisation Division ,Crown Agents. ,203416-102 ,"337,931.36",
DFID,DFID,29/11/2016,Project delivery costs – supplier services ,East and Central Africa ,Crown Agents. ,205256-104 ,"1,010.04",
DFID,DFID,10/11/2016,Aid Programme - Accountable Grant Payments ,East and Central Africa ,Crown Agents. ,205256-104 ,"14,817.60",
DFID,DFID,10/11/2016,Aid Programme - Accountable Grant Payments ,East and Central Africa ,Crown Agents. ,205256-104 ,"1,710.23",
DFID,DFID,11/11/2016,Aid Programme - Accountable Grant Payments ,East and Central Africa ,Crown Agents. ,205256-104 ,"9,878.40",
DFID,DFID,01/11/2016,Aid Programme - Accountable Grant Payments ,East and Central Africa ,Crown Agents. ,205256-104 ,"5,644.80",
DFID,DFID,17/11/2016,Project delivery costs � supplier services,Asia  Caribbean and Overseas Territories ,Crown Agents. ,205138-103 ,"14,083.20",
DFID,DFID,18/11/2016,Project delivery costs � supplier services,Asia  Caribbean and Overseas Territories ,Crown Agents. ,205138-103 ,"14,083.20",
DFID,DFID,02/11/2016,Fund monies to be managed and dispersed by the supplier ,Research and Evidence Division ,Crown Agents. ,202531-107 ,"597,756.65",
DFID,DFID,22/11/2016,Fund monies to be managed and dispersed by the supplier ,Research and Evidence Division ,Crown Agents. ,204571-106 ,"105,978.50",
DFID,DFID,03/11/2016,Aid Programme - Accountable Grant Payments ,Research and Evidence Division ,Crown Agents. ,204343-105 ,"329,983.00",
DFID,DFID,24/11/2016,Fund monies to be managed and dispersed by the supplier ,Economic Development Division ,Crown Agents. ,202089-102 ,"61,771.78",
DFID,DFID,03/11/2016,Project delivery costs – supplier services ,West and Southern Africa ,Crown Agents. ,202463-103 ,"100,000.00",
DFID,DFID,30/11/2016,DFID Purchased Relief Supplies ,East and Central Africa ,Crown Agents. ,202900-107 ,"4,174.44",
DFID,DFID,18/11/2016,DFID Purchased Relief Supplies ,East and Central Africa ,Crown Agents. ,202900-107 ,"13,625.70",
DFID,DFID,16/11/2016,DFID Purchased Relief Supplies ,East and Central Africa ,Crown Agents. ,202900-107 ,"2,170.66",
DFID,DFID,16/11/2016,DFID Purchased Relief Supplies ,East and Central Africa ,Crown Agents. ,202900-107 ,"17,188.19",
DFID,DFID,14/11/2016,Fund monies to be managed and dispersed by the supplier ,East and Central Africa ,Crown Agents. ,205091-104 ,"385,200.79",
DFID,DFID,26/11/2016,Project delivery costs – supplier services ,Asia  Caribbean and Overseas Territories ,Crown Agents. ,202433-109 ,"10,387.20",
DFID,DFID,14/11/2016,Project delivery costs – supplier services ,Asia  Caribbean and Overseas Territories ,Crown Agents. ,202433-109 ,"1,658.17",
DFID,DFID,17/11/2016,Project delivery costs – supplier services ,Conflict  Humanitarian  Security & Stabilisation Division ,Crown Agents. ,203815-106 ,"3,973.06",
DFID,DFID,24/11/2016,Project delivery costs – supplier services ,Conflict  Humanitarian  Security & Stabilisation Division ,Crown Agents. ,203815-106 ,"16,665.60",
DFID,DFID,17/11/2016,Project delivery costs – supplier services ,West and Southern Africa ,Crown Agents. ,300047-103 ,"4,959,338.00",
DFID,DFID,17/11/2016,Project delivery costs – supplier services ,Middle East and North Africa Division ,Crown Agents. ,204016-103 ,"6,787.20",
DFID,DFID,07/11/2016,Project delivery costs – supplier services ,Middle East and North Africa Division ,Crown Agents. ,204267-101 ,"2,176.80",
DFID,DFID,08/11/2016,Project delivery costs – supplier services ,Conflict  Humanitarian  Security & Stabilisation Division ,Crown Agents. ,300042-101 ,"4,651.20",
DFID,DFID,23/11/2016,Project delivery costs – supplier services ,Conflict  Humanitarian  Security & Stabilisation Division ,Crown Agents. ,300042-101 ,"4,896.00",
DFID,DFID,11/11/2016,DFID Purchased Relief Supplies ,West and Southern Africa ,Crown Agents. ,203674-103 ,"276,798.13",
DFID,DFID,11/11/2016,DFID Purchased Relief Supplies ,West and Southern Africa ,Crown Agents. ,203674-103 ,"89,355.42",
DFID,DFID,11/11/2016,DFID Purchased Relief Supplies ,West and Southern Africa ,Crown Agents. ,203674-103 ,"75,569.30",
DFID,DFID,11/11/2016,DFID Purchased Relief Supplies ,West and Southern Africa ,Crown Agents. ,203674-103 ,"7,130.46",
DFID,DFID,24/11/2016,DFID Purchased Relief Supplies ,Conflict  Humanitarian  Security & Stabilisation Division ,Crown Agents. ,205038-107 ,"7,207.20",
DFID,DFID,08/11/2016,Aid Programme - Accountable Grant Payments ,West and Southern Africa ,Crown Agents. ,300037-104 ,"225,000.00",
DFID,DFID,14/11/2016,Fund monies to be managed and dispersed by the supplier ,East and Central Africa ,Crown Agents. ,205068-102 ,"459,857.71",
DFID,DFID,14/11/2016,Fund monies to be managed and dispersed by the supplier ,East and Central Africa ,Crown Agents. ,205068-103 ,"276,930.37",
DFID,DFID,09/11/2016,Project delivery costs – supplier services ,West and Southern Africa ,Crown Agents. ,205161-103 ,"3,853.51",
DFID,DFID,16/11/2016,Project delivery costs – supplier services ,West and Southern Africa ,Crown Agents. ,202349-103 ,"98,298.00",
DFID,DFID,03/11/2016,Project delivery costs – supplier services ,West and Southern Africa ,Crown Agents. ,202349-103 ,"102,351.00",
DFID,DFID,03/11/2016,Project delivery costs – supplier services ,West and Southern Africa ,Crown Agents. ,202349-103 ,"26,840.00",
DFID,DFID,01/11/2016,Project delivery costs – supplier services ,Conflict  Humanitarian  Security & Stabilisation Division ,Crown Agents. ,205141-104 ,"13,809.60",
DFID,DFID,29/11/2016,Project delivery costs – supplier services ,Conflict  Humanitarian  Security & Stabilisation Division ,Crown Agents. ,205141-104 ,"3,941.89",
DFID,DFID,14/11/2016,Project delivery costs – supplier services ,Conflict  Humanitarian  Security & Stabilisation Division ,Crown Agents. ,205141-104 ,"32,557.20",
DFID,DFID,24/11/2016,Project delivery costs – supplier services ,Conflict  Humanitarian  Security & Stabilisation Division ,Crown Agents. ,205141-104 ,"13,152.00",
DFID,DFID,29/11/2016,Project delivery costs – supplier services ,Conflict  Humanitarian  Security & Stabilisation Division ,Crown Agents. ,205141-104 ,"2,766.91",
DFID,DFID,03/11/2016,Project delivery costs – supplier services ,East and Central Africa ,Crown Agents. ,200349-102 ,"1,701,853.03",
DFID,DFID,09/11/2016,Aid Programme - Humanitarian Material Relief Assistance and Services ,Middle East and North Africa Division ,Crown Agents. ,204516-102 ,"2,068.38",
DFID,DFID,27/11/2016,Project delivery costs – supplier services ,West and Southern Africa ,Crown Agents. ,202640-102 ,"61,678.29",
DFID,DFID,27/11/2016,Project delivery costs – supplier services ,West and Southern Africa ,Crown Agents. ,202640-102 ,"171,277.65",
DFID,DFID,27/11/2016,Project delivery costs – supplier services ,West and Southern Africa ,Crown Agents. ,202640-102 ,"32,201.88",
DFID,DFID,24/11/2016,Project delivery costs – supplier services ,West and Southern Africa ,Crown Agents. ,202640-103 ,"63,491.08",
DFID,DFID,17/11/2016,Voluntary contributions ,West and Southern Africa ,Crown Agents. ,202691-101 ,"2,000,000.00",
DFID,DFID,17/11/2016,Project delivery costs – supplier services ,West and Southern Africa ,Crown Agents. ,205040-102 ,"2,451,575.00",
DFID,DFID,07/11/2016,Project delivery costs – supplier services ,West and Southern Africa ,Crown Agents. ,204902-103 ,"4,222.20",
DFID,DFID,29/11/2016,Project delivery costs – supplier services ,Asia  Caribbean and Overseas Territories ,Crown Agents. ,203275-102 ,"99,980.04",
DFID,DFID,22/11/2016,Project delivery costs – supplier services ,East and Central Africa ,Crown Agents. ,204439-103 ,"23,671.85",
DFID,DFID,24/11/2016,Project delivery costs – supplier services ,East and Central Africa ,Crown Agents. ,204439-103 ,"4,364.10",
DFID,DFID,24/11/2016,Project delivery costs – supplier services ,East and Central Africa ,Crown Agents. ,205286-105 ,"4,364.10",
DFID,DFID,22/11/2016,Project delivery costs – supplier services ,East and Central Africa ,Crown Agents. ,205286-105 ,"23,671.85",
DFID,DFID,30/11/2016,Project delivery costs – supplier services ,Asia  Caribbean and Overseas Territories ,Crown Agents. ,300250-106 ,"8,527.20",
DFID,DFID,03/11/2016,Project delivery costs – supplier services ,Asia  Caribbean and Overseas Territories ,Crown Agents. ,300250-106 ,"9,873.60",
DFID,DFID,09/11/2016,Aid Programme - Humanitarian Material Relief Assistance and Services ,Middle East and North Africa Division ,Crown Agents. ,204516-102 ,"14,453.03",
DFID,DFID,23/11/2016,Project delivery costs – supplier services ,Conflict  Humanitarian  Security & Stabilisation Division ,Crown Agents. ,300042-103 ,"1,241.80",
DFID,DFID,01/11/2016,Project delivery costs – supplier services ,West and Southern Africa ,Crown Agents. ,300047-102 ,"9,844.80",
DFID,DFID,18/11/2016,Project delivery costs – supplier services ,Asia  Caribbean and Overseas Territories ,Crown Agents. ,202433-109 ,"6,537.60",
DFID,DFID,30/11/2016,Aid Programme - Humanitarian Material Relief Assistance and Services ,Middle East and North Africa Division ,Crown Agents. ,204516-102 ,"72,096.00",
DFID,DFID,30/11/2016,Aid Programme - Humanitarian Material Relief Assistance and Services ,Middle East and North Africa Division ,Crown Agents. ,204516-102 ,"7,452.00",
DFID,DFID,27/11/2016,Project delivery costs – supplier services ,Asia  Caribbean and Overseas Territories ,Crown Agents. ,203274-101 ,"9,696.00",
DFID,DFID,16/11/2016,Project delivery costs – supplier services ,Asia  Caribbean and Overseas Territories ,Crown Agents. ,108538-105 ,"11,430.00",
DFID,DFID,21/11/2016,Hardware - servers & storage ,Business Solutions Division Level ,COMPUTACENTER (UK) LTD ,200004-130 ,"104,045.14",
DFID,DFID,04/11/2016,Aid Programme - Accountable Grant Payments ,Policy Division ,SEND A COW ,203559-113 ,"88,795.00",
DFID,DFID,30/11/2016,Aid Programme - Accountable Grant Payments ,West and Southern Africa ,CAMFED ,202623-111 ,"709,438.00",
DFID,DFID,17/11/2016,Aid Programme - Accountable Grant Payments ,West and Southern Africa ,CONCERN UNIVERSAL ,201196-113 ,"500,000.00",
DFID,DFID,04/11/2016,Project delivery costs – supplier services ,Research and Evidence Division ,CAB INTERNATIONAL ,112152-102 ,"10,084.72",
DFID,DFID,18/11/2016,Aid Programme - Partnership Programme Arrangements ,Policy Division ,COMIC RELIEF ,200645-101 ,"1,000,506.00",
DFID,DFID,18/11/2016,Aid Programme - Partnership Programme Arrangements ,Policy Division ,COMIC RELIEF ,200645-101 ,"1,000,506.00",
DFID,DFID,18/11/2016,Aid Programme - Partnership Programme Arrangements ,Policy Division ,COMIC RELIEF ,204961-101 ,"442,430.00",
DFID,DFID,25/11/2016,Aid Programme - Accountable Grant Payments ,Policy Division ,COMIC RELIEF ,204912-101 ,"671,824.00",
DFID,DFID,09/11/2016,Property rates ,Group Operations ,CITY OF WESTMINSTER ,203717-101 ,"128,216.00",One tenth of the 2016/17 Whitehall headquarters rateable value (eigth November instalment) 
DFID,DFID,16/11/2016,Aid Programme - Accountable Grant Payments ,Research and Evidence Division ,UNIVERSITY OF CAMBRIDGE ,201884-107 ,"32,414.89",
DFID,DFID,11/11/2016,Aid Programme - Accountable Grant Payments ,Research and Evidence Division ,UNIVERSITY OF CAMBRIDGE ,201884-107 ,"33,378.84",
DFID,DFID,12/11/2016,Storage & Distribution costs ,Asia  Caribbean and Overseas Territories ,CROWN RELOCATIONS  UK ,101605-101 ,695.00,
DFID,DFID,10/11/2016,Training Providers/Facilitation Services ,Finance and Corporate Performance Division ,Capita  Business Services ,204846-101 ,"2,110.98",
DFID,DFID,08/11/2016,Training - Course Fees ,West and Southern Africa ,Capita  Business Services ,101631-101 ,"5,098.09",
DFID,DFID,14/11/2016,Training Providers/Facilitation Services ,Finance and Corporate Performance Division ,Capita  Business Services ,204846-101 ,"1,407.32",
DFID,DFID,08/11/2016,Training Providers/Facilitation Services ,Finance and Corporate Performance Division ,Capita  Business Services ,204846-101 ,"11,359.69",
DFID,DFID,17/11/2016,Training Providers/Facilitation Services ,Finance and Corporate Performance Division ,Capita  Business Services ,204846-101 ,"7,090.54",
DFID,DFID,02/11/2016,Training - Course Fees ,West and Southern Africa ,Capita  Business Services ,101620-102 ,"8,263.07",
DFID,DFID,17/11/2016,Training - Course Fees ,Human Resources ,Capita  Business Services ,100269-155 ,525.15,
DFID,DFID,01/11/2016,Training Providers/Facilitation Services ,Human Resources ,Capita  Business Services ,100269-153 ,"4,865.85",
DFID,DFID,08/11/2016,Training - Course Fees ,Human Resources ,Capita  Business Services ,100269-153 ,"4,865.85",
DFID,DFID,15/11/2016,Training - Course Fees ,East and Central Africa ,Capita  Business Services ,204957-104 ,"1,203.60",
DFID,DFID,14/11/2016,Training - Course Fees ,Economic Development Division ,Capita  Business Services ,100276-101 ,684.00,
DFID,DFID,01/11/2016,Project delivery costs – supplier services ,Asia  Caribbean and Overseas Territories ,CONCERN WORLDWIDE ,203264-102 ,"43,654.00",
DFID,DFID,25/11/2016,Project delivery costs – supplier services ,Asia  Caribbean and Overseas Territories ,CONCERN WORLDWIDE ,203264-102 ,"65,621.00",
DFID,DFID,14/11/2016,Project delivery costs – supplier services ,Middle East and North Africa Division ,DEVELOPMENT INITIATIVES ,204516-108 ,"1,812.00",
DFID,DFID,09/11/2016,Project delivery costs – supplier services ,Asia  Caribbean and Overseas Territories ,Nathan Associates London Ltd ,202180-102 ,"209,568.35",
DFID,DFID,18/11/2016,Project delivery costs – supplier services ,Asia  Caribbean and Overseas Territories ,Nathan Associates London Ltd ,202180-102 ,"141,651.25",
DFID,DFID,18/11/2016,Project delivery costs – supplier services ,Asia  Caribbean and Overseas Territories ,Nathan Associates London Ltd ,202180-102 ,"6,072.21",
DFID,DFID,08/11/2016,Aid Programme - Accountable Grant Payments ,Economic Development Division ,ETHICAL TRADING INITIATIVE ,203448-101 ,"258,801.00",
DFID,DFID,14/11/2016,Project delivery costs – supplier services ,East and Central Africa ,COFFEY INTERNATIONAL DEVELOPMENT LTD ,203466-105 ,"85,458.00",
DFID,DFID,04/11/2016,Project delivery costs – supplier services ,East and Central Africa ,COFFEY INTERNATIONAL DEVELOPMENT LTD ,203597-105 ,"241,572.80",
DFID,DFID,04/11/2016,Project delivery costs – supplier services ,Asia  Caribbean and Overseas Territories ,COFFEY INTERNATIONAL DEVELOPMENT LTD ,204277-103 ,"22,623.00",
DFID,DFID,15/11/2016,Project delivery costs – supplier services ,Asia  Caribbean and Overseas Territories ,COFFEY INTERNATIONAL DEVELOPMENT LTD ,202368-102 ,552.74,
DFID,DFID,08/11/2016,Project delivery costs – supplier services ,Asia  Caribbean and Overseas Territories ,COFFEY INTERNATIONAL DEVELOPMENT LTD ,204792-107 ,"8,842.80",
DFID,DFID,02/11/2016,Project delivery costs – supplier services ,Economic Development Division ,COFFEY INTERNATIONAL DEVELOPMENT LTD ,205238-104 ,"29,916.00",
DFID,DFID,18/11/2016,Project delivery costs – supplier services ,Policy Division ,COFFEY INTERNATIONAL DEVELOPMENT LTD ,202372-104 ,"307,326.59",
DFID,DFID,25/11/2016,Project delivery costs – supplier services ,East and Central Africa ,COFFEY INTERNATIONAL DEVELOPMENT LTD ,202843-101 ,"32,087.28",
DFID,DFID,02/11/2016,Project delivery costs – supplier services ,Policy Division ,COFFEY INTERNATIONAL DEVELOPMENT LTD ,300292-102 ,"14,856.00",
DFID,DFID,07/11/2016,Project delivery costs – supplier services ,East and Central Africa ,COFFEY INTERNATIONAL DEVELOPMENT LTD ,202891-105 ,"40,348.00",
DFID,DFID,15/11/2016,Project delivery costs – supplier services ,Policy Division ,COFFEY INTERNATIONAL DEVELOPMENT LTD ,201724-145 ,"19,288.25",
DFID,DFID,15/11/2016,Project delivery costs – supplier services ,Policy Division ,COFFEY INTERNATIONAL DEVELOPMENT LTD ,201724-145 ,"95,638.80",
DFID,DFID,07/11/2016,Project delivery costs – supplier services ,West and Southern Africa ,COFFEY INTERNATIONAL DEVELOPMENT LTD ,104190-109 ,"309,542.89",
DFID,DFID,09/11/2016,Project delivery costs – supplier services ,Policy Division ,COFFEY INTERNATIONAL DEVELOPMENT LTD ,202035-101 ,"20,625.83",
DFID,DFID,09/11/2016,Project delivery costs – supplier services ,Policy Division ,COFFEY INTERNATIONAL DEVELOPMENT LTD ,202194-102 ,"5,102.99",
DFID,DFID,01/11/2016,Project delivery costs – supplier services ,Asia  Caribbean and Overseas Territories ,Supplier Name withheld ,204122-102 ,"84,546.00",
DFID,DFID,07/11/2016,Project delivery costs – supplier services ,West and Southern Africa ,COFFEY INTERNATIONAL DEVELOPMENT LTD ,300037-101 ,"69,429.54",
DFID,DFID,14/11/2016,Project delivery costs – supplier services ,West and Southern Africa ,COFFEY INTERNATIONAL DEVELOPMENT LTD ,300037-101 ,"5,837.16",
DFID,DFID,07/11/2016,Project delivery costs – supplier services ,West and Southern Africa ,COFFEY INTERNATIONAL DEVELOPMENT LTD ,202455-102 ,"6,375.00",
DFID,DFID,17/11/2016,Project delivery costs – supplier services ,West and Southern Africa ,COFFEY INTERNATIONAL DEVELOPMENT LTD ,202455-107 ,"21,171.53",
DFID,DFID,22/11/2016,Project delivery costs – supplier services ,Asia  Caribbean and Overseas Territories ,COFFEY INTERNATIONAL DEVELOPMENT LTD ,300166-101 ,"29,311.20",
DFID,DFID,09/11/2016,Project delivery costs – supplier services ,Asia  Caribbean and Overseas Territories ,COFFEY INTERNATIONAL DEVELOPMENT LTD ,203454-105 ,"12,744.00",
DFID,DFID,17/11/2016,Project delivery costs – supplier services ,East and Central Africa ,COFFEY INTERNATIONAL DEVELOPMENT LTD ,202891-105 ,"193,669.00",
DFID,DFID,11/11/2016,Project delivery costs – supplier services ,East and Central Africa ,COFFEY INTERNATIONAL DEVELOPMENT LTD ,205225-101 ,"41,751.23",
DFID,DFID,17/11/2016,Project delivery costs – supplier services ,East and Central Africa ,COFFEY INTERNATIONAL DEVELOPMENT LTD ,204793-101 ,"32,958.00",
DFID,DFID,27/11/2016,Project delivery costs – supplier services ,Research and Evidence Division ,COFFEY INTERNATIONAL DEVELOPMENT LTD ,204806-106 ,"15,965.20",
DFID,DFID,07/11/2016,Project delivery costs – supplier services ,Research and Evidence Division ,COFFEY INTERNATIONAL DEVELOPMENT LTD ,204806-106 ,"15,965.00",
DFID,DFID,26/11/2016,Project delivery costs – supplier services ,East and Central Africa ,COFFEY INTERNATIONAL DEVELOPMENT LTD ,203008-103 ,"4,440.00",
DFID,DFID,22/11/2016,Project delivery costs – supplier services ,Policy Division ,COFFEY INTERNATIONAL DEVELOPMENT LTD ,205181-104 ,"39,972.08",
DFID,DFID,28/11/2016,Project delivery costs – supplier services ,Research and Evidence Division ,COFFEY INTERNATIONAL DEVELOPMENT LTD ,204806-106 ,"47,465.92",
DFID,DFID,10/11/2016,Aid Programme - Accountable Grant Payments ,Policy Division ,EMERGENCY NUTRITION NETWORK ,204954-104 ,"137,752.00",
DFID,DFID,02/11/2016,Aid Programme - Accountable Grant Payments ,Research and Evidence Division ,ECONOMIC AND SOCIAL RESEARCH COUNCIL ,202168-106 ,"5,833.33",
DFID,DFID,15/11/2016,Aid Programme - Partnership Programme Arrangements ,Policy Division ,FARM-Africa ,202624-101 ,"769,567.50",
DFID,DFID,15/11/2016,Aid Programme - Accountable Grant Payments ,Asia  Caribbean and Overseas Territories ,FACULTY OF PUBLIC HEALTH MEDECI ,203224-103 ,"21,317.00",
DFID,DFID,14/11/2016,Project delivery costs – supplier services ,Group Operations ,FCO SERVICES ,203716-103 ,"57,250.00",
DFID,DFID,08/11/2016,Postage Costs ,Group Operations ,FCO SERVICES ,203717-101 ,"1,260.68",
DFID,DFID,22/11/2016,Postage Costs ,Group Operations ,FCO SERVICES ,203717-101 ,"2,707.33",
DFID,DFID,01/11/2016,Project delivery costs – supplier services ,West and Southern Africa ,AECOM LIMITED ,202214-106 ,"29,670.00",
DFID,DFID,15/11/2016,Aid Programme - Accountable Grant Payments ,Asia  Caribbean and Overseas Territories ,FORUM FOR THE FUTURE ,204825-103 ,"2,018.16",
DFID,DFID,23/11/2016,Project delivery costs – supplier services ,West and Southern Africa ,PALLADIUM ,202098-101 ,"332,776.00",
DFID,DFID,23/11/2016,Project delivery costs – supplier services ,West and Southern Africa ,PALLADIUM ,202098-101 ,"326,242.81",
DFID,DFID,15/11/2016,Project delivery costs – supplier services ,West and Southern Africa ,PALLADIUM ,202098-101 ,"347,836.86",
DFID,DFID,24/11/2016,Project delivery costs – supplier services ,West and Southern Africa ,PALLADIUM ,202098-101 ,"367,279.13",
DFID,DFID,22/11/2016,Project delivery costs – supplier services ,West and Southern Africa ,PALLADIUM ,203429-103 ,"41,670.00",
DFID,DFID,11/11/2016,Project delivery costs – supplier services ,West and Southern Africa ,PALLADIUM ,203429-103 ,"184,037.35",
DFID,DFID,21/11/2016,Project delivery costs – supplier services ,Policy Division ,PALLADIUM ,201724-155 ,"61,001.76",
DFID,DFID,26/11/2016,Project delivery costs – supplier services ,East and Central Africa ,PALLADIUM ,202596-108 ,"90,854.48",
DFID,DFID,08/11/2016,Project delivery costs – supplier services ,East and Central Africa ,PALLADIUM ,202596-108 ,"76,559.42",
DFID,DFID,25/11/2016,Project delivery costs – supplier services ,Asia  Caribbean and Overseas Territories ,PALLADIUM ,201851-101 ,"227,810.75",
DFID,DFID,04/11/2016,Project delivery costs – supplier services ,Asia  Caribbean and Overseas Territories ,PALLADIUM ,201851-101 ,"150,557.03",
DFID,DFID,25/11/2016,Project delivery costs – supplier services ,West and Southern Africa ,PALLADIUM ,204822-102 ,"924,742.16",
DFID,DFID,03/11/2016,Project delivery costs – supplier services ,West and Southern Africa ,PALLADIUM ,202352-102 ,"400,414.05",
DFID,DFID,25/11/2016,Project delivery costs – supplier services ,West and Southern Africa ,PALLADIUM ,202352-102 ,"373,531.46",
DFID,DFID,09/11/2016,Project delivery costs – supplier services ,East and Central Africa ,PALLADIUM ,202577-103 ,"51,948.34",
DFID,DFID,09/11/2016,Project delivery costs – supplier services ,East and Central Africa ,PALLADIUM ,202577-104 ,"284,888.00",
DFID,DFID,25/11/2016,Project delivery costs – supplier services ,East and Central Africa ,PALLADIUM ,202577-103 ,"41,406.61",
DFID,DFID,22/11/2016,Project delivery costs – supplier services ,Asia  Caribbean and Overseas Territories ,PALLADIUM ,204613-101 ,"86,237.96",
DFID,DFID,23/11/2016,Project delivery costs – supplier services ,East and Central Africa ,PALLADIUM ,204809-102 ,"120,194.97",
DFID,DFID,23/11/2016,Project delivery costs – supplier services ,Policy Division ,PALLADIUM ,202745-104 ,"468,185.30",
DFID,DFID,08/11/2016,Aid Programme - Accountable Grant Payments ,Research and Evidence Division ,GALVmed ,203188-103 ,"104,797.00",
DFID,DFID,15/11/2016,Aid Programme - Accountable Grant Payments ,Research and Evidence Division ,GALVmed ,203188-103 ,"104,797.00",
DFID,DFID,14/11/2016,Aid Programme - Accountable Grant Payments ,Research and Evidence Division ,GVEP INTERNATIONAL LTD ,203705-123 ,"258,528.00",
DFID,DFID,30/11/2016,Project delivery costs – supplier services ,West and Southern Africa ,ICF Consulting Services Ltd ,201433-110 ,"100,000.00",
DFID,DFID,30/11/2016,Project delivery costs – supplier services ,Research and Evidence Division ,ICF Consulting Services Ltd ,201433-109 ,"100,000.00",
DFID,DFID,15/11/2016,Aid Programme - Accountable Grant Payments ,Asia  Caribbean and Overseas Territories ,Supplier Name withheld ,203400-115 ,"602,394.00",
DFID,DFID,04/11/2016,Project delivery costs – supplier services ,Conflict  Humanitarian  Security & Stabilisation Division ,THE HALO TRUST ,203243-119 ,"122,301.00",
DFID,DFID,10/11/2016,Project delivery costs – supplier services ,Conflict  Humanitarian  Security & Stabilisation Division ,THE HALO TRUST ,203243-126 ,"1,453,264.00",
DFID,DFID,18/11/2016,Project delivery costs – supplier services ,West and Southern Africa ,HEALTH PARTNERS INTERNATIONAL ,202694-101 ,"127,671.10",
DFID,DFID,02/11/2016,Project delivery costs – supplier services ,East and Central Africa ,HTSPE LTD ,202900-102 ,"159,965.40",
DFID,DFID,08/11/2016,Project delivery costs – supplier services ,Research and Evidence Division ,HTSPE LTD ,203193-101 ,"7,516.54",
DFID,DFID,01/11/2016,Project delivery costs – supplier services ,Research and Evidence Division ,HTSPE LTD ,203193-101 ,"13,153.95",
DFID,DFID,02/11/2016,Project delivery costs – supplier services ,Research and Evidence Division ,HTSPE LTD ,203193-101 ,"7,516.54",
DFID,DFID,01/11/2016,Project delivery costs – supplier services ,Research and Evidence Division ,HTSPE LTD ,203193-101 ,"7,516.54",
DFID,DFID,02/11/2016,Project delivery costs – supplier services ,Research and Evidence Division ,HTSPE LTD ,203193-101 ,"5,637.41",
DFID,DFID,01/11/2016,Project delivery costs – supplier services ,Asia  Caribbean and Overseas Territories ,HTSPE LTD ,204337-103 ,"27,988.44",
DFID,DFID,23/11/2016,Project delivery costs – supplier services ,East and Central Africa ,HTSPE LTD ,201575-107 ,"40,667.59",
DFID,DFID,17/11/2016,Project delivery costs – supplier services ,East and Central Africa ,HTSPE LTD ,204033-105 ,"45,196.50",
DFID,DFID,27/11/2016,Project delivery costs – supplier services ,Asia  Caribbean and Overseas Territories ,HTSPE LTD ,203764-105 ,"12,032.05",
DFID,DFID,21/11/2016,Project delivery costs – supplier services ,Research and Evidence Division ,HTSPE LTD ,201884-105 ,"17,786.00",
DFID,DFID,30/11/2016,Project delivery costs – supplier services ,Asia  Caribbean and Overseas Territories ,HTSPE LTD ,203035-106 ,"5,880.00",
DFID,DFID,15/11/2016,Project delivery costs – supplier services ,Policy Division ,HTSPE LTD ,204789-102 ,"5,270.00",
DFID,DFID,03/11/2016,Project delivery costs – supplier services ,East and Central Africa ,HTSPE LTD ,203574-103 ,"38,277.07",
DFID,DFID,30/11/2016,Project delivery costs – supplier services ,East and Central Africa ,HTSPE LTD ,203574-103 ,"29,216.22",
DFID,DFID,30/11/2016,Project delivery costs – supplier services ,East and Central Africa ,HTSPE LTD ,203574-109 ,"2,084.00",
DFID,DFID,27/11/2016,Project delivery costs – supplier services ,East and Central Africa ,HTSPE LTD ,203574-109 ,"123,233.00",
DFID,DFID,03/11/2016,Project delivery costs – supplier services ,East and Central Africa ,HTSPE LTD ,203574-109 ,"5,281.60",
DFID,DFID,03/11/2016,Project delivery costs – supplier services ,East and Central Africa ,HTSPE LTD ,203574-112 ,"53,197.95",
DFID,DFID,30/11/2016,Project delivery costs – supplier services ,East and Central Africa ,HTSPE LTD ,203574-112 ,"54,778.45",
DFID,DFID,01/11/2016,Project delivery costs – supplier services ,East and Central Africa ,HTSPE LTD ,204258-101 ,"367,502.99",
DFID,DFID,24/11/2016,Project delivery costs – supplier services ,East and Central Africa ,HTSPE LTD ,203439-102 ,"9,041.50",
DFID,DFID,02/11/2016,Aid Programme - Accountable Grant Payments ,East and Central Africa ,HANDICAP INTERNATIONAL UK ,203383-113 ,"21,950.78",
DFID,DFID,11/11/2016,Contract & Agency Staff ,Finance and Corporate Performance Division ,Hays Specialist Recruitment Ltd ,100201-101 ,"1,051.81",
DFID,DFID,01/11/2016,Contract & Agency Staff ,Finance and Corporate Performance Division ,Hays Specialist Recruitment Ltd ,100201-101 ,"1,455.72",
DFID,DFID,26/11/2016,Contract & Agency Staff ,Finance and Corporate Performance Division ,Hays Specialist Recruitment Ltd ,100201-101 ,"1,164.58",
DFID,DFID,04/11/2016,Contract & Agency Staff ,Finance and Corporate Performance Division ,Hays Specialist Recruitment Ltd ,100201-101 ,"1,455.72",
DFID,DFID,18/11/2016,Contract & Agency Staff ,Finance and Corporate Performance Division ,Hays Specialist Recruitment Ltd ,100201-101 ,"1,455.72",
DFID,DFID,10/11/2016,Contract & Agency Staff ,Finance and Corporate Performance Division ,Hays Specialist Recruitment Ltd ,100201-101 ,"1,164.58",
DFID,DFID,10/11/2016,Contract & Agency Staff ,Finance and Corporate Performance Division ,Hays Specialist Recruitment Ltd ,100201-101 ,892.92,
DFID,DFID,17/11/2016,Contract & Agency Staff ,Finance and Corporate Performance Division ,Hays Specialist Recruitment Ltd ,100201-101 ,714.34,
DFID,DFID,04/11/2016,Contract & Agency Staff ,Finance and Corporate Performance Division ,Hays Specialist Recruitment Ltd ,100201-101 ,714.34,
DFID,DFID,01/11/2016,Contract & Agency Staff ,Finance and Corporate Performance Division ,Hays Specialist Recruitment Ltd ,100201-101 ,535.75,
DFID,DFID,26/11/2016,Contract & Agency Staff ,Finance and Corporate Performance Division ,Hays Specialist Recruitment Ltd ,100201-101 ,892.92,
DFID,DFID,23/11/2016,Contract & Agency Staff ,Finance and Corporate Performance Division ,Hays Specialist Recruitment Ltd ,100201-101 ,"1,168.68",
DFID,DFID,18/11/2016,Contract & Agency Staff ,Finance and Corporate Performance Division ,Hays Specialist Recruitment Ltd ,100201-101 ,"1,168.68",
DFID,DFID,18/11/2016,Contract & Agency Staff ,Finance and Corporate Performance Division ,Hays Specialist Recruitment Ltd ,100201-101 ,"1,168.68",
DFID,DFID,11/11/2016,Contract & Agency Staff ,Finance and Corporate Performance Division ,Hays Specialist Recruitment Ltd ,100201-101 ,"1,168.68",
DFID,DFID,30/11/2016,Contract & Agency Staff ,Non-Departmental Public Body ,Hays Specialist Recruitment Ltd ,204873-103 ,"2,040.00",
DFID,DFID,07/11/2016,Contract & Agency Staff ,Non-Departmental Public Body ,Hays Specialist Recruitment Ltd ,204873-103 ,"2,040.00",
DFID,DFID,15/11/2016,Contract & Agency Staff ,Non-Departmental Public Body ,Hays Specialist Recruitment Ltd ,204873-103 ,"2,040.00",
DFID,DFID,02/11/2016,Contract & Agency Staff ,Group Operations ,Hays Specialist Recruitment Ltd ,100161-101 ,"1,455.72",
DFID,DFID,02/11/2016,Contract & Agency Staff ,Group Operations ,Hays Specialist Recruitment Ltd ,100161-101 ,"1,455.72",
DFID,DFID,07/11/2016,Contract & Agency Staff ,Group Operations ,Hays Specialist Recruitment Ltd ,100161-101 ,"1,356.91",
DFID,DFID,25/11/2016,Contract & Agency Staff ,Business Solutions Division Level ,Hays Specialist Recruitment Ltd ,200002-235 ,"1,050.00",
DFID,DFID,25/11/2016,Contract & Agency Staff ,Business Solutions Division Level ,Hays Specialist Recruitment Ltd ,200002-235 ,"1,050.00",
DFID,DFID,01/11/2016,Contract & Agency Staff ,Human Resources ,HUDSON GLOBAL RESOURCES LTD ,100261-101 ,"3,645.62",
DFID,DFID,01/11/2016,Contract & Agency Staff ,Human Resources ,HUDSON GLOBAL RESOURCES LTD ,100261-101 ,735.84,
DFID,DFID,16/11/2016,Recruitment costs ,Business Solutions Division Level ,HUDSON GLOBAL RESOURCES LTD ,200001-101 ,"1,464.66",
DFID,DFID,10/11/2016,Contract & Agency Staff ,Finance and Corporate Performance Division ,HUDSON GLOBAL RESOURCES LTD ,100201-101 ,"7,062.48",
DFID,DFID,04/11/2016,Contract & Agency Staff ,Finance and Corporate Performance Division ,HUDSON GLOBAL RESOURCES LTD ,100201-101 ,"6,049.98",
DFID,DFID,10/11/2016,Contract & Agency Staff ,Finance and Corporate Performance Division ,HUDSON GLOBAL RESOURCES LTD ,100201-101 ,"5,575.68",
DFID,DFID,01/11/2016,Contract & Agency Staff ,Finance and Corporate Performance Division ,HUDSON GLOBAL RESOURCES LTD ,100201-101 ,"4,174.78",
DFID,DFID,01/11/2016,Contract & Agency Staff ,Finance and Corporate Performance Division ,HUDSON GLOBAL RESOURCES LTD ,100201-101 ,"4,393.16",
DFID,DFID,15/11/2016,Contract & Agency Staff ,Finance and Corporate Performance Division ,HUDSON GLOBAL RESOURCES LTD ,100201-101 ,"3,267.22",
DFID,DFID,25/11/2016,Aid Programme - Accountable Grant Payments ,Policy Division ,HOPE & HOMES FOR CHILDREN ,203559-125 ,"185,707.00",
DFID,DFID,22/11/2016,Project delivery costs – supplier services ,Conflict  Humanitarian  Security & Stabilisation Division ,ITAD LTD ,203243-125 ,"34,022.44",
DFID,DFID,22/11/2016,Project delivery costs – supplier services ,Conflict  Humanitarian  Security & Stabilisation Division ,ITAD LTD ,203243-125 ,"63,776.65",
DFID,DFID,10/11/2016,Project delivery costs – supplier services ,West and Southern Africa ,ITAD LTD ,202482-102 ,"24,487.20",
DFID,DFID,17/11/2016,Project delivery costs – supplier services ,West and Southern Africa ,ITAD LTD ,202482-102 ,"51,033.60",
DFID,DFID,01/11/2016,Project delivery costs – supplier services ,West and Southern Africa ,ITAD LTD ,200469-114 ,"41,483.78",
DFID,DFID,07/11/2016,Project delivery costs – supplier services ,Research and Evidence Division ,THE INSTITUTE OF DEVELOPMENT STUDIE ,204427-102 ,"190,823.66",
DFID,DFID,17/11/2016,Aid Programme - Accountable Grant Payments ,Research and Evidence Division ,INSTITUTE OF DEV  STUDIES UNIVER ,204451-101 ,"110,221.26",
DFID,DFID,24/11/2016,Aid Programme - Accountable Grant Payments ,Asia  Caribbean and Overseas Territories ,INTERNATIONAL CENTRE FOR DIARRO ,204131-103 ,"244,333.00",
DFID,DFID,28/11/2016,Training - Course Fees ,Internal Audit ,INSTITUTE OF INTERNAL AUDITORS-UK ,100121-101 ,500.00,
DFID,DFID,03/11/2016,Training - Course Fees ,Internal Audit ,INSTITUTE OF INTERNAL AUDITORS-UK ,100121-101 ,"1,000.00",
DFID,DFID,03/11/2016,Professional member subscriptions ,Internal Audit ,INSTITUTE OF INTERNAL AUDITORS-UK ,100121-101 ,608.00,
DFID,DFID,07/11/2016,Research and development costs - supplier services ,Research and Evidence Division ,THE UNIVERSITY OF MANCHESTER ,201010-105 ,"181,908.45",
DFID,DFID,10/11/2016,Aid Programme - Humanitarian Material Relief Assistance and Services ,Conflict  Humanitarian  Security & Stabilisation Division ,INTERNATIONAL RESCUE COMMITTEE UK ,204273-101 ,"124,302.00",
DFID,DFID,10/11/2016,Aid Programme - Humanitarian Material Relief Assistance and Services ,Conflict  Humanitarian  Security & Stabilisation Division ,INTERNATIONAL RESCUE COMMITTEE UK ,204987-101 ,"418,296.00",
DFID,DFID,08/11/2016,Aid Programme - Accountable Grant Payments ,Asia  Caribbean and Overseas Territories ,INTERNATIONAL RESCUE COMMITTEE UK ,203400-114 ,"770,828.00",
DFID,DFID,24/11/2016,Research and development costs - supplier services ,Research and Evidence Division ,INSTITUTE OF DEVELOPMENT STUDIES ,201097-104 ,"74,193.28",
DFID,DFID,17/11/2016,Research and development costs - supplier services ,Research and Evidence Division ,INSTITUTE OF DEVELOPMENT STUDIES ,202042-102 ,"875,354.86",
DFID,DFID,02/11/2016,Aid Programme - Pooled/Basket funding ,Research and Evidence Division ,IBRD HSBC T ,203052-104 ,"1,000,000.00",
DFID,DFID,08/11/2016,Aid Programme - Trust Funds contributions ,Research and Evidence Division ,IBRD HSBC T ,204022-102 ,"1,100,000.00",
DFID,DFID,01/11/2016,Aid Programme - Trust Funds contributions ,Economic Development Division ,IBRD HSBC T ,203808-105 ,"950,000.00",
DFID,DFID,18/11/2016,Aid Programme - Trust Funds contributions ,Asia  Caribbean and Overseas Territories ,IBRD HSBC T ,202775-103 ,"1,000,000.00",
DFID,DFID,23/11/2016,Trust Funds contributions ,Asia  Caribbean and Overseas Territories ,IBRD HSBC T ,107413-101 ,"1,500,000.00",
DFID,DFID,07/11/2016,Aid Programme - Trust Funds contributions ,Research and Evidence Division ,IBRD HSBC T ,203212-103 ,"500,000.00",
DFID,DFID,28/11/2016,Aid Programme - Trust Funds contributions ,Middle East and North Africa Division ,IBRD HSBC T ,204906-104 ,"7,000,000.00",
DFID,DFID,16/11/2016,Aid Programme - Core contributions ,Policy Division ,IBRD HSBC T ,204239-101 ,"77,000,000.00",
DFID,DFID,17/11/2016,Aid Programme - Trust Funds contributions ,Research and Evidence Division ,IBRD HSBC T ,204933-104 ,"1,000,000.00",
DFID,DFID,23/11/2016,Aid Programme - Trust Funds contributions ,East and Central Africa ,IBRD HSBC T ,204486-101 ,"1,000,000.00",
DFID,DFID,28/11/2016,Aid Programme - Trust Funds contributions ,Asia  Caribbean and Overseas Territories ,IBRD HSBC T ,300320-101 ,"4,800,000.00",
DFID,DFID,03/11/2016,Aid Programme - Trust Funds contributions ,Economic Development Division ,IBRD HSBC T ,203481-101 ,"2,335,000.00",
DFID,DFID,16/11/2016,Project delivery costs – supplier services ,Research and Evidence Division ,IOD PARC ,203197-101 ,"70,923.95",
DFID,DFID,10/11/2016,Aid Programme - Trust Funds contributions ,West and Southern Africa ,IBRD (HSBC)  C/O THE WORLD BANK ,202584-107 ,"710,000.00",
DFID,DFID,18/11/2016,Aid Programme - Trust Funds contributions ,East and Central Africa ,IBRD (HSBC)  C/O THE WORLD BANK ,204044-101 ,"7,000,000.00",
DFID,DFID,11/11/2016,Aid Programme - Joint programme contribution ,Policy Division ,IBRD (HSBC)  C/O THE WORLD BANK ,204789-101 ,"100,000.00",
DFID,DFID,17/11/2016,Aid Programme - Trust Funds contributions ,Economic Development Division ,IBRD (HSBC)  C/O THE WORLD BANK ,204253-104 ,"1,000,000.00",
DFID,DFID,03/11/2016,Aid Programme - Trust Funds contributions ,Asia  Caribbean and Overseas Territories ,IBRD (HSBC)  C/O THE WORLD BANK ,205266-102 ,"1,543,000.00",
DFID,DFID,22/11/2016,Aid Programme - Trust Funds contributions ,East and Central Africa ,IBRD (HSBC)  C/O THE WORLD BANK ,204436-102 ,"200,000.00",
DFID,DFID,23/11/2016,Aid Programme - Trust Funds contributions ,West and Southern Africa ,IBRD (HSBC)  C/O THE WORLD BANK ,200496-103 ,"4,500,000.00",
DFID,DFID,24/11/2016,Aid Programme - Voluntary contributions ,Economic Development Division ,INTERNATIONAL TRADE CENTRE ,203984-101 ,"923,480.82",
DFID,DFID,23/11/2016,Aid Programme - Joint programme contribution ,Economic Development Division ,INTERNATIONAL TRADE CENTRE ,202762-106 ,"916,474.00",
DFID,DFID,15/11/2016,Aid Programme - Accountable Grant Payments ,Middle East and North Africa Division ,Supplier Name withheld ,300337-101 ,"483,180.00",
DFID,DFID,10/11/2016,Aid Programme - Accountable Grant Payments ,East and Central Africa ,Supplier Name withheld ,205286-107 ,"3,000,000.00",
DFID,DFID,16/11/2016,Aid Programme - Accountable Grant Payments ,Middle East and North Africa Division ,Supplier Name withheld ,204525-101 ,"850,000.00",
DFID,DFID,10/11/2016,Hardware - desktop PCs ,Business Solutions Division Level ,INSIGHT DIRECT (UK) LTD ,200001-101 ,"1,247.42",
DFID,DFID,25/11/2016,Hostile Environment Training ,Policy Division ,KELLOGG BROWN & ROOT LIMITED ,100277-101 ,588.00,
DFID,DFID,27/11/2016,Hostile Environment Training ,Asia  Caribbean and Overseas Territories ,KELLOGG BROWN & ROOT LIMITED ,101603-102 ,606.00,
DFID,DFID,27/11/2016,Hostile Environment Training ,Asia  Caribbean and Overseas Territories ,KELLOGG BROWN & ROOT LIMITED ,101603-102 ,588.00,
DFID,DFID,27/11/2016,Hostile Environment Training ,Asia  Caribbean and Overseas Territories ,KELLOGG BROWN & ROOT LIMITED ,101603-102 ,588.00,
DFID,DFID,11/11/2016,Hostile Environment Training ,Policy Division ,KELLOGG BROWN & ROOT LIMITED ,202419-101 ,606.00,
DFID,DFID,03/11/2016,Hostile Environment Training ,East and Central Africa ,KELLOGG BROWN & ROOT LIMITED ,101630-102 ,900.00,
DFID,DFID,27/11/2016,Hostile Environment Training ,East and Central Africa ,KELLOGG BROWN & ROOT LIMITED ,101630-102 ,873.60,
DFID,DFID,22/11/2016,Hostile Environment Training ,East and Central Africa ,KELLOGG BROWN & ROOT LIMITED ,202594-101 ,"1,176.00",
DFID,DFID,02/11/2016,Hostile Environment Training ,Research and Evidence Division ,KELLOGG BROWN & ROOT LIMITED ,203874-103 ,606.00,
DFID,DFID,21/11/2016,Hostile Environment Training ,Research and Evidence Division ,KELLOGG BROWN & ROOT LIMITED ,203874-103 ,588.00,
DFID,DFID,30/11/2016,Hostile Environment Training ,Research and Evidence Division ,KELLOGG BROWN & ROOT LIMITED ,203874-103 ,588.00,
DFID,DFID,03/11/2016,Hostile Environment Training ,Middle East and North Africa Division ,KELLOGG BROWN & ROOT LIMITED ,300080-101 ,900.00,
DFID,DFID,18/11/2016,Hostile Environment Training ,Middle East and North Africa Division ,KELLOGG BROWN & ROOT LIMITED ,204084-101 ,735.00,
DFID,DFID,27/11/2016,Hostile Environment Training ,Asia  Caribbean and Overseas Territories ,Supplier Name withheld ,101601-110 ,"1,747.20",
DFID,DFID,09/11/2016,Training Providers/Facilitation Services ,Communications Division ,KELLOGG BROWN & ROOT LIMITED ,100197-101 ,900.00,
DFID,DFID,17/11/2016,Hostile Environment Training ,West and Southern Africa ,KELLOGG BROWN & ROOT LIMITED ,101622-106 ,900.00,
DFID,DFID,27/11/2016,Hostile Environment Training ,Internal Audit ,KELLOGG BROWN & ROOT LIMITED ,100121-101 ,505.00,
DFID,DFID,01/11/2016,Hostile Environment Training ,Asia  Caribbean and Overseas Territories ,KELLOGG BROWN & ROOT LIMITED ,101624-101 ,900.00,
DFID,DFID,21/11/2016,Hostile Environment Training ,Asia  Caribbean and Overseas Territories ,KELLOGG BROWN & ROOT LIMITED ,101624-101 ,873.60,
DFID,DFID,21/11/2016,Hostile Environment Training ,Asia  Caribbean and Overseas Territories ,KELLOGG BROWN & ROOT LIMITED ,101624-101 ,900.00,
DFID,DFID,17/11/2016,Hostile Environment Training ,Middle East and North Africa Division ,KELLOGG BROWN & ROOT LIMITED ,100303-101 ,588.00,
DFID,DFID,02/11/2016,Hostile Environment Training ,Middle East and North Africa Division ,KELLOGG BROWN & ROOT LIMITED ,201705-101 ,505.00,
DFID,DFID,22/11/2016,Hostile Environment Training ,West and Southern Africa ,KELLOGG BROWN & ROOT LIMITED ,101610-101 ,606.00,
DFID,DFID,22/11/2016,Hostile Environment Training ,West and Southern Africa ,KELLOGG BROWN & ROOT LIMITED ,101610-101 ,588.00,
DFID,DFID,23/11/2016,Hostile Environment Training ,Internal Audit ,KELLOGG BROWN & ROOT LIMITED ,100121-101 ,780.12,
DFID,DFID,23/11/2016,Hostile Environment Training ,Internal Audit ,KELLOGG BROWN & ROOT LIMITED ,100121-101 ,650.10,
DFID,DFID,16/11/2016,Aid Programme - Accountable Grant Payments ,Policy Division ,THE LEPROSY MISSION ,203559-140 ,"71,416.00",
DFID,DFID,03/11/2016,Research and development costs - supplier services ,Research and Evidence Division ,LIVERPOOL SCHOOL OF TROPICAL MEDICINE ,203089-103 ,"521,185.76",
DFID,DFID,16/11/2016,Aid Programme - Accountable Grant Payments ,East and Central Africa ,LIVERPOOL SCHOOL OF TROPICAL MEDICINE ,202549-104 ,"1,171,229.46",
DFID,DFID,22/11/2016,Project delivery costs – supplier services ,Research and Evidence Division ,London School of Hygiene and Tropical Medicine ,203806-102 ,"71,220.01",
DFID,DFID,08/11/2016,Electricity ,Group Operations ,EDF ENERGY ,203717-101 ,"8,546.64",
DFID,DFID,08/11/2016,Electricity ,Group Operations ,EDF ENERGY ,203717-101 ,"12,078.78",
DFID,DFID,08/11/2016,Aid Programme - Core contributions ,Research and Evidence Division ,MEDICAL RESEARCH COUNCIL ,203085-104 ,"9,000,000.00",
DFID,DFID,21/11/2016,Project delivery costs – supplier services ,Asia  Caribbean and Overseas Territories ,Supplier Name withheld ,204277-102 ,"73,215.00",
DFID,DFID,22/11/2016,Project delivery costs – supplier services ,Asia  Caribbean and Overseas Territories ,Supplier Name withheld ,204023-104 ,"330,420.65",
DFID,DFID,21/11/2016,Aid Programme - Challenge Fund payments ,Asia  Caribbean and Overseas Territories ,Supplier Name withheld ,204277-104 ,"82,809.00",
DFID,DFID,21/11/2016,Project delivery costs – supplier services ,Asia  Caribbean and Overseas Territories ,Supplier Name withheld ,202488-107 ,"246,001.10",
DFID,DFID,01/11/2016,Project delivery costs – supplier services ,Asia  Caribbean and Overseas Territories ,Supplier Name withheld ,202488-107 ,"499,598.21",
DFID,DFID,18/11/2016,Project delivery costs – supplier services ,East and Central Africa ,Supplier Name withheld ,204288-103 ,"93,025.33",
DFID,DFID,10/11/2016,Project delivery costs – supplier services ,East and Central Africa ,Supplier Name withheld ,202520-101 ,"22,971.23",
DFID,DFID,23/11/2016,Project delivery costs – supplier services ,West and Southern Africa ,Supplier Name withheld ,203154-103 ,"358,725.00",
DFID,DFID,23/11/2016,Project delivery costs – supplier services ,West and Southern Africa ,Supplier Name withheld ,202678-101 ,"62,143.99",
DFID,DFID,23/11/2016,Project delivery costs – supplier services ,West and Southern Africa ,Supplier Name withheld ,202942-102 ,"358,845.08",
DFID,DFID,30/11/2016,Project delivery costs – supplier services ,West and Southern Africa ,Supplier Name withheld ,202942-102 ,"157,462.37",
DFID,DFID,23/11/2016,Project delivery costs – supplier services ,Policy Division ,Supplier Name withheld ,203148-101 ,"410,112.87",
DFID,DFID,18/11/2016,Project delivery costs – supplier services ,Policy Division ,Supplier Name withheld ,203148-101 ,"576,365.77",
DFID,DFID,08/11/2016,Project delivery costs – supplier services ,West and Southern Africa ,Supplier Name withheld ,202493-103 ,"1,058,805.79",
DFID,DFID,21/11/2016,Project delivery costs – supplier services ,East and Central Africa ,Supplier Name withheld ,203641-103 ,"268,281.16",
DFID,DFID,23/11/2016,Project delivery costs – supplier services ,East and Central Africa ,Supplier Name withheld ,203363-103 ,"801,967.88",
DFID,DFID,01/11/2016,Aid Programme - Challenge Fund payments ,Asia  Caribbean and Overseas Territories ,MAXWELL STAMP PLC ,107460-107 ,"302,567.65",
DFID,DFID,22/11/2016,Aid Programme - Challenge Fund payments ,Asia  Caribbean and Overseas Territories ,MAXWELL STAMP PLC ,107460-107 ,"416,483.21",
DFID,DFID,16/11/2016,Project delivery costs – supplier services ,East and Central Africa ,MAXWELL STAMP PLC ,202347-101 ,"337,840.00",
DFID,DFID,30/11/2016,Aid Programme - Core contributions ,East and Central Africa ,MET OFFICE ,204624-107 ,"637,375.00",
DFID,DFID,30/11/2016,Aid Programme - Core contributions ,Research and Evidence Division ,MET OFFICE ,204624-105 ,"1,306,195.00",
DFID,DFID,10/11/2016,Repairs  Maintenance and Alterations – Other Building Costs ,Group Operations ,MITIE Technical Facilities Management Ltd ,100106-101 ,827.68,
DFID,DFID,29/11/2016,Aid Programme - Accountable Grant Payments ,West and Southern Africa ,Supplier Name withheld ,203445-109 ,"1,053,817.00",
DFID,DFID,14/11/2016,Aid Programme - Accountable Grant Payments ,West and Southern Africa ,Supplier Name withheld ,201625-108 ,"152,105.00",
DFID,DFID,11/11/2016,Aid Programme - Accountable Grant Payments ,Middle East and North Africa Division ,Supplier Name withheld ,300034-101 ,"1,540,408.00",
DFID,DFID,28/11/2016,Computer software maintenance ,Business Solutions Division Level ,MICROSOFT LTD ,200002-145 ,"105,000.00",Annual network premier Support costs  for DFID systems for the period 2016 - 2017 
DFID,DFID,15/11/2016,Project delivery costs – supplier services ,Economic Development Division ,NATURAL RESOURCES INSTITUTE ,203448-105 ,"203,953.87",
DFID,DFID,30/11/2016,Aid Programme - Accountable Grant Payments ,East and Central Africa ,ODI ,202552-102 ,"546,013.00",
DFID,DFID,01/11/2016,Aid Programme - Refugee Relief Payments ,East and Central Africa ,OXFAM INSTITUTIONAL INCOME ACCOUNT ,205064-104 ,"961,636.00",
DFID,DFID,21/11/2016,Hotels - Accommodation only ,West and Southern Africa ,Supplier Name withheld ,300298-105 ,"1,705.00",
DFID,DFID,25/11/2016,FCO shared service charges ,Middle East and North Africa Division ,Supplier Name withheld ,204981-101 ,"1,615.90",
DFID,DFID,29/11/2016,Secure Staff Accommodation ,Asia  Caribbean and Overseas Territories ,Supplier Name withheld ,205138-103 ,"4,269.90",
DFID,DFID,10/11/2016,Project delivery costs � supplier services,International Relations Division ,Supplier Name withheld ,205081-101 ,"25,563.21",
DFID,DFID,01/11/2016,Project delivery costs – supplier services ,West and Southern Africa ,Supplier Name withheld ,101620-101 ,"1,887.87",
DFID,DFID,01/11/2016,Telephone Usage & services ,West and Southern Africa ,Supplier Name withheld ,101620-101 ,"13,833.32",
DFID,DFID,08/11/2016,Project delivery costs – supplier services ,East and Central Africa ,OXFORD POLICY MANAGEMENT ,204641-102 ,"111,713.67",
DFID,DFID,08/11/2016,Project delivery costs – supplier services ,East and Central Africa ,OXFORD POLICY MANAGEMENT ,204641-104 ,"13,540.42",
DFID,DFID,26/11/2016,Project delivery costs – supplier services ,West and Southern Africa ,OXFORD POLICY MANAGEMENT ,201874-103 ,"34,898.40",
DFID,DFID,28/11/2016,Project delivery costs – supplier services ,Middle East and North Africa Division ,OXFORD POLICY MANAGEMENT ,300239-102 ,"19,482.67",
DFID,DFID,04/11/2016,Project delivery costs – supplier services ,Middle East and North Africa Division ,OXFORD POLICY MANAGEMENT ,300239-102 ,"21,710.80",
DFID,DFID,03/11/2016,Project delivery costs – supplier services ,Middle East and North Africa Division ,OXFORD POLICY MANAGEMENT ,204906-106 ,"6,864.43",
DFID,DFID,09/11/2016,Project delivery costs – supplier services ,Asia  Caribbean and Overseas Territories ,OXFORD POLICY MANAGEMENT ,203180-102 ,"40,553.00",
DFID,DFID,26/11/2016,Project delivery costs – supplier services ,West and Southern Africa ,OXFORD POLICY MANAGEMENT ,203536-108 ,"9,210.33",
DFID,DFID,02/11/2016,Project delivery costs – supplier services ,East and Central Africa ,OXFORD POLICY MANAGEMENT ,204903-104 ,"50,290.74",
DFID,DFID,01/11/2016,Project delivery costs – supplier services ,East and Central Africa ,OXFORD POLICY MANAGEMENT ,203363-105 ,"58,752.50",
DFID,DFID,28/11/2016,Project delivery costs – supplier services ,Research and Evidence Division ,OXFORD POLICY MANAGEMENT ,203193-101 ,"44,673.60",
DFID,DFID,14/11/2016,Project delivery costs – supplier services ,Research and Evidence Division ,OXFORD POLICY MANAGEMENT ,203051-103 ,"167,870.00",
DFID,DFID,29/11/2016,Project delivery costs – supplier services ,Research and Evidence Division ,OXFORD POLICY MANAGEMENT ,204322-102 ,"1,541,815.70",
DFID,DFID,30/11/2016,Project delivery costs – supplier services ,West and Southern Africa ,OXFORD POLICY MANAGEMENT ,101631-101 ,"10,357.73",
DFID,DFID,24/11/2016,Project delivery costs – supplier services ,Asia  Caribbean and Overseas Territories ,OXFORD POLICY MANAGEMENT ,203186-105 ,"15,409.00",
DFID,DFID,02/11/2016,Project delivery costs – supplier services ,West and Southern Africa ,OXFORD POLICY MANAGEMENT ,204497-103 ,"14,995.00",
DFID,DFID,03/11/2016,Project delivery costs – supplier services ,West and Southern Africa ,OXFORD POLICY MANAGEMENT ,204497-103 ,"678,250.89",
DFID,DFID,17/11/2016,Project delivery costs – supplier services ,Asia  Caribbean and Overseas Territories ,OXFORD POLICY MANAGEMENT ,201129-109 ,"17,954.00",
DFID,DFID,28/11/2016,Project delivery costs – supplier services ,Asia  Caribbean and Overseas Territories ,OXFORD POLICY MANAGEMENT ,114293-106 ,"113,779.38",
DFID,DFID,01/11/2016,Project delivery costs – supplier services ,West and Southern Africa ,OXFORD POLICY MANAGEMENT ,204330-103 ,"366,365.96",
DFID,DFID,14/11/2016,Project delivery costs – supplier services ,East and Central Africa ,OXFORD POLICY MANAGEMENT ,202580-103 ,"96,457.50",
DFID,DFID,24/11/2016,Project delivery costs – supplier services ,West and Southern Africa ,OXFORD POLICY MANAGEMENT ,203536-114 ,"13,572.13",
DFID,DFID,17/11/2016,Project delivery costs – supplier services ,West and Southern Africa ,OXFORD POLICY MANAGEMENT ,203536-115 ,"317,881.15",
DFID,DFID,07/11/2016,Project delivery costs – supplier services ,East and Central Africa ,OXFORD POLICY MANAGEMENT ,202580-103 ,"96,457.50",
DFID,DFID,15/11/2016,Project delivery costs – supplier services ,West and Southern Africa ,OXFORD POLICY MANAGEMENT ,201874-103 ,"340,408.63",
DFID,DFID,25/11/2016,Project delivery costs – supplier services ,West and Southern Africa ,OXFORD POLICY MANAGEMENT ,205066-101 ,"87,747.48",
DFID,DFID,09/11/2016,Project delivery costs – supplier services ,West and Southern Africa ,OXFORD POLICY MANAGEMENT ,200341-101 ,"45,180.00",
DFID,DFID,09/11/2016,Project delivery costs – supplier services ,West and Southern Africa ,OXFORD POLICY MANAGEMENT ,205126-101 ,"44,533.31",
DFID,DFID,09/11/2016,Project delivery costs – supplier services ,West and Southern Africa ,OXFORD POLICY MANAGEMENT ,205126-101 ,"140,620.00",
DFID,DFID,29/11/2016,Project delivery costs – supplier services ,West and Southern Africa ,OXFORD POLICY MANAGEMENT ,205126-101 ,"312,993.00",
DFID,DFID,30/11/2016,Project delivery costs – supplier services ,West and Southern Africa ,OXFORD POLICY MANAGEMENT ,205126-101 ,"62,235.95",
DFID,DFID,30/11/2016,Project delivery costs – supplier services ,Middle East and North Africa Division ,OXFORD POLICY MANAGEMENT ,202241-104 ,"58,861.40",
DFID,DFID,30/11/2016,Project delivery costs – supplier services ,Middle East and North Africa Division ,OXFORD POLICY MANAGEMENT ,202241-104 ,"5,657.89",
DFID,DFID,01/11/2016,Project delivery costs – supplier services ,East and Central Africa ,OXFORD POLICY MANAGEMENT ,203382-104 ,"36,707.90",
DFID,DFID,24/11/2016,Project delivery costs – supplier services ,Asia  Caribbean and Overseas Territories ,OXFORD POLICY MANAGEMENT ,202367-103 ,"304,274.22",
DFID,DFID,30/11/2016,Project delivery costs – supplier services ,West and Southern Africa ,OXFORD POLICY MANAGEMENT ,202637-106 ,"52,092.00",
DFID,DFID,02/11/2016,Project delivery costs – supplier services ,East and Central Africa ,OXFORD POLICY MANAGEMENT ,204463-102 ,"8,556.90",
DFID,DFID,16/11/2016,Aid Programme - Voluntary contributions ,Policy Division ,ORGANISATION FOR ECONOMIC CO-OP & DE ,203295-101 ,"250,000.00",
DFID,DFID,11/11/2016,Project delivery costs – supplier services ,West and Southern Africa ,OPTIONS CONSULTANCY SERVICES LIMITED ,202214-103 ,"212,500.00",
DFID,DFID,29/11/2016,Project delivery costs – supplier services ,East and Central Africa ,OPTIONS CONSULTANCY SERVICES LIMITED ,203024-103 ,"87,581.00",
DFID,DFID,29/11/2016,Project delivery costs – supplier services ,East and Central Africa ,OPTIONS CONSULTANCY SERVICES LIMITED ,203024-103 ,"87,581.00",
DFID,DFID,14/11/2016,Project delivery costs – supplier services ,West and Southern Africa ,OPTIONS CONSULTANCY SERVICES LIMITED ,202721-104 ,"81,428.00",
DFID,DFID,09/11/2016,Project delivery costs – supplier services ,West and Southern Africa ,OPTIONS CONSULTANCY SERVICES LIMITED ,205182-101 ,"75,783.26",
DFID,DFID,02/11/2016,Project delivery costs – supplier services ,Policy Division ,CENTRE FOR GLOBAL EDUCATION live ,201469-104 ,"10,506.18",
DFID,DFID,29/11/2016,Aid Programme - Accountable Grant Payments ,Research and Evidence Division ,OVERSEAS DEVELOPMENT INSTITUTE ,300288-101 ,"127,467.81",
DFID,DFID,02/11/2016,Project delivery costs – supplier services ,West and Southern Africa ,OVERSEAS DEVELOPMENT INSTITUTE ,205060-101 ,"39,731.50",
DFID,DFID,10/11/2016,Aid Programme - Accountable Grant Payments ,Policy Division ,Supplier Name withheld ,203559-142 ,"268,322.58",
DFID,DFID,07/11/2016,Aid Programme - Accountable Grant Payments ,Policy Division ,Supplier Name withheld ,203559-105 ,"412,766.56",
DFID,DFID,14/11/2016,Project delivery costs – supplier services ,Policy Division ,PRICEWATERHOUSECOOPERS ,202372-102 ,"638,722.80",
DFID,DFID,28/11/2016,Project delivery costs – supplier services ,Policy Division ,PRICEWATERHOUSECOOPERS ,202372-102 ,"714,624.00",
DFID,DFID,04/11/2016,Project delivery costs – supplier services ,West and Southern Africa ,PRICEWATERHOUSECOOPERS ,203161-104 ,"448,698.50",
DFID,DFID,02/11/2016,Project delivery costs – supplier services ,Asia  Caribbean and Overseas Territories ,PRICEWATERHOUSECOOPERS ,204792-101 ,"65,819.00",
DFID,DFID,07/11/2016,Project delivery costs – supplier services ,Asia  Caribbean and Overseas Territories ,PRICEWATERHOUSECOOPERS ,204792-101 ,"34,486.50",
DFID,DFID,07/11/2016,Project delivery costs – supplier services ,Asia  Caribbean and Overseas Territories ,PRICEWATERHOUSECOOPERS ,204792-101 ,"92,083.00",
DFID,DFID,27/11/2016,Project delivery costs – supplier services ,Policy Division ,PRICEWATERHOUSECOOPERS ,114370-104 ,"61,666.51",
DFID,DFID,27/11/2016,Project delivery costs – supplier services ,Policy Division ,PRICEWATERHOUSECOOPERS ,114370-104 ,"484,242.87",
DFID,DFID,27/11/2016,Project delivery costs – supplier services ,Policy Division ,PRICEWATERHOUSECOOPERS ,114370-105 ,"2,329.64",
DFID,DFID,27/11/2016,Project delivery costs – supplier services ,Policy Division ,PRICEWATERHOUSECOOPERS ,114370-105 ,"9,330.06",
DFID,DFID,27/11/2016,Project delivery costs – supplier services ,Research and Evidence Division ,PRICEWATERHOUSECOOPERS ,200822-103 ,"484,242.87",
DFID,DFID,27/11/2016,Project delivery costs – supplier services ,Research and Evidence Division ,PRICEWATERHOUSECOOPERS ,200822-103 ,"2,329.64",
DFID,DFID,27/11/2016,Project delivery costs – supplier services ,Research and Evidence Division ,PRICEWATERHOUSECOOPERS ,200822-103 ,"20,026.66",
DFID,DFID,27/11/2016,Project delivery costs – supplier services ,Research and Evidence Division ,PRICEWATERHOUSECOOPERS ,200822-103 ,"6,976.57",
DFID,DFID,27/11/2016,Project delivery costs – supplier services ,Research and Evidence Division ,PRICEWATERHOUSECOOPERS ,200822-103 ,"9,330.06",
DFID,DFID,14/11/2016,Project delivery costs – supplier services ,Economic Development Division ,PRICEWATERHOUSECOOPERS ,204250-101 ,"371,038.78",
DFID,DFID,14/11/2016,Project delivery costs – supplier services ,Economic Development Division ,PRICEWATERHOUSECOOPERS ,204250-101 ,"58,993.91",
DFID,DFID,23/11/2016,Project delivery costs – supplier services ,Economic Development Division ,PRICEWATERHOUSECOOPERS ,202648-102 ,"24,308.31",
DFID,DFID,23/11/2016,Project delivery costs – supplier services ,Economic Development Division ,PRICEWATERHOUSECOOPERS ,202648-102 ,"62,720.40",
DFID,DFID,23/11/2016,Project delivery costs – supplier services ,Economic Development Division ,PRICEWATERHOUSECOOPERS ,202259-101 ,"21,000.00",
DFID,DFID,29/11/2016,Storage & Distribution costs ,Asia  Caribbean and Overseas Territories ,PICKFORDS LTD ,101624-101 ,"9,540.17",
DFID,DFID,27/11/2016,Storage & Distribution costs ,Asia  Caribbean and Overseas Territories ,PICKFORDS LTD ,101603-101 ,"7,424.85",
DFID,DFID,28/11/2016,Storage & Distribution costs ,Asia  Caribbean and Overseas Territories ,PICKFORDS LTD ,204053-101 ,"7,868.07",
DFID,DFID,28/11/2016,Relocation costs ,West and Southern Africa ,PICKFORDS LTD ,101618-101 ,"8,491.63",
DFID,DFID,28/11/2016,Storage & Distribution costs ,Asia  Caribbean and Overseas Territories ,PICKFORDS LTD ,101624-101 ,"6,279.15",
DFID,DFID,28/11/2016,Storage & Distribution costs ,Asia  Caribbean and Overseas Territories ,PICKFORDS LTD ,101605-101 ,"4,362.19",
DFID,DFID,28/11/2016,Storage & Distribution costs,Asia  Caribbean and Overseas Territories ,PICKFORDS LTD ,101624-101 ,"5,956.43",
DFID,DFID,25/11/2016,UK Staff overseas - Transfer costs ,Asia  Caribbean and Overseas Territories ,PICKFORDS LTD ,101604-101 ,"5,795.52",
DFID,DFID,29/11/2016,Storage & Distribution costs ,West and Southern Africa ,PICKFORDS LTD ,100152-114 ,915.20,
DFID,DFID,27/11/2016,Storage & Distribution costs ,Asia  Caribbean and Overseas Territories ,PICKFORDS LTD ,100033-101 ,707.99,
DFID,DFID,15/11/2016,UK Staff overseas - Transfer costs,West and Southern Africa ,PICKFORDS LTD ,101622-106 ,"11,547.81",
DFID,DFID,08/11/2016,Storage & Distribution costs ,Finance and Corporate Performance Division ,PICKFORDS LTD ,202437-101 ,610.23,
DFID,DFID,26/11/2016,Storage & Distribution costs ,West and Southern Africa ,PICKFORDS LTD ,101613-101 ,881.09,
DFID,DFID,28/11/2016,Storage & Distribution costs ,West and Southern Africa ,PICKFORDS LTD ,101631-101 ,"1,707.26",
DFID,DFID,08/11/2016,Storage & Distribution costs ,International Relations Division ,PICKFORDS LTD ,201759-101 ,547.14,
DFID,DFID,09/11/2016,Project delivery costs – supplier services ,West and Southern Africa ,POPULATION  SERVICES INTERNATIONAL ,202640-109 ,"1,711,286.00",
DFID,DFID,30/11/2016,Project delivery costs – supplier services ,Asia  Caribbean and Overseas Territories ,POPULATION  SERVICES INTERNATIONAL ,202413-105 ,"848,588.88",
DFID,DFID,25/11/2016,Aid Programme - Accountable Grant Payments ,East and Central Africa ,POPULATION  SERVICES INTERNATIONAL ,202841-104 ,"1,533,937.00",
DFID,DFID,24/11/2016,Project delivery costs – supplier services ,East and Central Africa ,REPIM ,202169-103 ,"8,460.09",
DFID,DFID,17/11/2016,Aid Programme - Accountable Grant Payments ,East and Central Africa ,THE RAINFOREST FOUNDATION UK ,204956-101 ,"267,038.13",
DFID,DFID,08/11/2016,Training - Course Fees ,Economic Development Division ,RADA ENTERPRISES LTD ,100111-101 ,"1,300.00",
DFID,DFID,02/11/2016,Training - Course Fees ,International Relations Division ,RADA ENTERPRISES LTD ,100262-101 ,"1,300.00",
DFID,DFID,15/11/2016,Aid Programme - Accountable Grant Payments ,Policy Division ,THE SAVE THE CHILDREN FUND ,203559-121 ,"648,642.67",
DFID,DFID,07/11/2016,Aid Programme - Accountable Grant Payments ,West and Southern Africa ,THE SAVE THE CHILDREN FUND ,202978-104 ,"1,525,353.69",
DFID,DFID,29/11/2016,Aid Programme - Accountable Grant Payments ,Research and Evidence Division ,THE SAVE THE CHILDREN FUND ,203705-129 ,"325,708.00",
DFID,DFID,23/11/2016,Aid Programme - Accountable Grant Payments ,Middle East and North Africa Division ,Supplier Name withheld ,204540-101 ,"196,737.00",
DFID,DFID,23/11/2016,Aid Programme - Accountable Grant Payments ,Middle East and North Africa Division ,Supplier Name withheld ,204540-102 ,"6,482,577.00",
DFID,DFID,24/11/2016,Aid Programme - Accountable Grant Payments ,West and Southern Africa ,THE SAVE THE CHILDREN FUND ,201874-102 ,"923,428.00",
DFID,DFID,21/11/2016,Aid Programme - Humanitarian Material Relief Assistance and Services ,Conflict  Humanitarian  Security & Stabilisation Division ,SAVE THE CHILDREN ,204897-101 ,"1,749,808.00",
DFID,DFID,07/11/2016,Project delivery costs – supplier services ,Policy Division ,SAVE THE CHILDREN ,203184-101 ,"4,000.00",
DFID,DFID,02/11/2016,Aid Programme - Humanitarian Material Relief Assistance and Services ,Conflict  Humanitarian  Security & Stabilisation Division ,SAVE THE CHILDREN ,203044-103 ,"66,230.00",
DFID,DFID,10/11/2016,Aid Programme - Partnership Programme Arrangements ,Policy Division ,SAVE THE CHILDREN ,202662-101 ,"2,352,165.00",
DFID,DFID,30/11/2016,Aid Programme - Accountable Grant Payments ,Conflict  Humanitarian  Security & Stabilisation Division ,SAVE THE CHILDREN ,300263-102 ,"301,558.12",
DFID,DFID,16/11/2016,Project delivery costs – supplier services ,West and Southern Africa ,Social Development Direct Ltd ,203823-106 ,"66,685.88",
DFID,DFID,30/11/2016,Project delivery costs – supplier services ,Asia  Caribbean and Overseas Territories ,Social Development Direct Ltd ,203274-101 ,"5,143.75",
DFID,DFID,04/11/2016,Project delivery costs – supplier services ,Policy Division ,Social Development Direct Ltd ,203245-106 ,"22,574.40",
DFID,DFID,11/11/2016,Project delivery costs – supplier services ,Policy Division ,Social Development Direct Ltd ,203245-106 ,"8,266.80",
DFID,DFID,18/11/2016,Operating Lease rental of buildings ,Non-Departmental Public Body ,SCOTLAND OFFICE ,204859-104 ,"8,864.94",
DFID,DFID,18/11/2016,Operating Lease rental of buildings ,Non-Departmental Public Body ,SCOTLAND OFFICE ,204859-104 ,"8,864.93",
DFID,DFID,03/11/2016,Aid Programme - Accountable Grant Payments ,West and Southern Africa ,RESTLESS DEVELOPMENT ,205269-102 ,"243,597.00",
DFID,DFID,15/11/2016,Aid Programme - Partnership Programme Arrangements ,Policy Division ,RESTLESS DEVELOPMENT ,202545-101 ,"688,859.75",
DFID,DFID,24/11/2016,Project delivery costs – supplier services ,Group Operations ,SODEXHO PASS LTD ,204999-104 ,"1,512.76",
DFID,DFID,23/11/2016,Computer Software Licenses ,Business Solutions Division Level ,SITEIMPROVE LTD ,200001-101 ,"4,458.76",
DFID,DFID,25/11/2016,Recruitment costs ,Human Resources ,SHL Group LTD ,100269-109 ,"1,520.00",
DFID,DFID,30/11/2016,Aid Programme - Accountable Grant Payments ,West and Southern Africa ,Supplier Name withheld ,205122-103 ,"3,670,068.00",
DFID,DFID,21/11/2016,Aid Programme - Accountable Grant Payments ,Policy Division ,Supplier Name withheld ,203559-154 ,"192,805.00",
DFID,DFID,01/11/2016,Storage & Distribution costs ,Business Solutions Division Level ,TNT Express (UK) Ltd ,200001-101 ,"4,458.16",
DFID,DFID,28/11/2016,Storage & Distribution costs ,Business Solutions Division Level ,TNT Express (UK) Ltd ,200001-101 ,"4,789.74",
DFID,DFID,08/11/2016,Legal costs ,Human Resources ,GOVERNMENT LEGAL DEPARTMENT ,100269-136 ,"3,805.44",
DFID,DFID,22/11/2016,Legal costs ,Middle East and North Africa Division ,GOVERNMENT LEGAL DEPARTMENT ,100296-101 ,882.00,
DFID,DFID,03/11/2016,Legal costs ,Human Resources ,GOVERNMENT LEGAL DEPARTMENT ,100269-136 ,969.74,
DFID,DFID,29/11/2016,Aid Programme - Core contributions ,West and Southern Africa ,UNICEF ,201874-101 ,"500,000.00",
DFID,DFID,03/11/2016,Aid Programme - Voluntary contributions ,East and Central Africa ,UNICEF ,203387-107 ,"300,000.00",
DFID,DFID,27/11/2016,Aid Programme - Core contributions ,Asia  Caribbean and Overseas Territories ,UNICEF ,205247-101 ,"5,000.00",
DFID,DFID,24/11/2016,Aid Programme - Accountable Grant Payments ,Policy Division ,Supplier Name withheld ,203559-145 ,"248,709.33",
DFID,DFID,10/11/2016,Project delivery costs – supplier services ,Policy Division ,TROPICAL HEALTH AND EDUCATION TRUST ,202208-101 ,"354,273.29",
DFID,DFID,18/11/2016,Project delivery costs – supplier services ,Policy Division ,TROPICAL HEALTH AND EDUCATION TRUST ,202208-101 ,"86,361.88",
DFID,DFID,08/11/2016,Water charges ,Group Operations ,THAMES WATER UTILITIES LTD ,203717-101 ,521.07,
DFID,DFID,17/11/2016,Aid Programme - Accountable Grant Payments ,Research and Evidence Division ,University Of Durham ,205053-108 ,"44,848.00",
DFID,DFID,09/11/2016,Research and development costs - supplier services ,Research and Evidence Division ,University of Oxford ,201900-105 ,"168,286.02",
DFID,DFID,16/11/2016,Research and development costs - supplier services ,Research and Evidence Division ,University Of Sussex ,204584-137 ,"23,355.00",
DFID,DFID,15/11/2016,Research and development costs - supplier services ,Research and Evidence Division ,University Of Sussex ,114334-102 ,"249,000.79",
DFID,DFID,17/11/2016,Aid Programme - Core contributions ,West and Southern Africa ,UNDP CONTRIBUTIONS ACCOUNT ,300144-101 ,"1,113,000.00",
DFID,DFID,17/11/2016,Aid Programme - Core contributions ,West and Southern Africa ,UNDP CONTRIBUTIONS ACCOUNT ,300144-102 ,"2,037,000.00",
DFID,DFID,28/11/2016,Aid Programme - Voluntary contributions ,Conflict  Humanitarian  Security & Stabilisation Division ,UNDP CONTRIBUTIONS ACCOUNT ,203815-104 ,"295,307.00",
DFID,DFID,04/11/2016,Aid Programme - Voluntary contributions ,Middle East and North Africa Division ,UNDP CONTRIBUTIONS ACCOUNT ,300045-101 ,"1,695,000.00",
DFID,DFID,25/11/2016,Research and development costs - supplier services ,Research and Evidence Division ,UNIVERSITY COLLEGE LONDON ,204806-105 ,"33,045.36",
DFID,DFID,14/11/2016,Research and development costs - supplier services ,Research and Evidence Division ,UNIVERSITY OF  OXFORD ,200425-103 ,"736,433.20",
DFID,DFID,14/11/2016,Research and development costs - supplier services ,Research and Evidence Division ,UNIVERSITY OF  OXFORD ,200425-104 ,"262,662.18",
DFID,DFID,11/11/2016,Aid Programme - Voluntary contributions ,Policy Division ,Supplier Name withheld ,203565-102 ,"1,000,000.00",
DFID,DFID,03/11/2016,Aid Programme - Voluntary contributions ,Asia  Caribbean and Overseas Territories ,Supplier Name withheld ,300040-101 ,"204,771.01",
DFID,DFID,23/11/2016,Aid Programme - Joint programme contribution ,West and Southern Africa ,Supplier Name withheld ,203816-106 ,"200,000.00",
DFID,DFID,10/11/2016,Research and development costs - supplier services ,Research and Evidence Division ,UNIVERSITY OF LEEDS ,201025-103 ,"361,302.54",
DFID,DFID,30/11/2016,Aid Programme - Core contributions ,Policy Division ,UN WOMEN ,204440-102 ,"3,750,000.00",
DFID,DFID,29/11/2016,Aid Programme - Voluntary contributions ,West and Southern Africa ,Supplier Name withheld ,205161-101 ,"1,322,504.00",
DFID,DFID,11/11/2016,Aid Programme - Pooled/Basket funding ,West and Southern Africa ,Supplier Name withheld ,204831-101 ,"1,208,553.00",
DFID,DFID,07/11/2016,Aid Programme - Voluntary contributions ,West and Southern Africa ,UNICEF,202637-107 ,"2,000,000.00",
DFID,DFID,18/11/2016,Aid Programme - Joint programme contribution ,Policy Division ,Supplier Name withheld ,204700-102 ,"1,000,000.00",
DFID,DFID,22/11/2016,Aid Programme - Voluntary contributions ,West and Southern Africa ,Supplier Name withheld ,202345-102 ,"1,289,697.00",
DFID,DFID,22/11/2016,Aid Programme - Voluntary contributions ,West and Southern Africa ,Supplier Name withheld ,202345-102 ,"168,858.00",
DFID,DFID,01/11/2016,Aid Programme - Core contributions ,Conflict  Humanitarian  Security & Stabilisation Division ,Supplier Name withheld ,205038-105 ,"4,000,000.00",
DFID,DFID,30/11/2016,Aid Programme - Joint programme contribution ,Asia  Caribbean and Overseas Territories ,Supplier Name withheld ,203885-102 ,"366,560.00",
DFID,DFID,15/11/2016,Aid Programme - Humanitarian Material Relief Assistance and Services ,Middle East and North Africa Division ,Supplier Name withheld ,205094-104 ,"8,000,000.00",
DFID,DFID,18/11/2016,Aid Programme - Voluntary contributions ,East and Central Africa ,Supplier Name withheld ,203387-104 ,"2,665,978.00",
DFID,DFID,18/11/2016,Aid Programme - Voluntary contributions ,East and Central Africa ,Supplier Name withheld ,203387-104 ,"534,009.00",
DFID,DFID,28/11/2016,Aid Programme - Voluntary contributions ,West and Southern Africa ,UNICEF,202691-101 ,"500,000.00",
DFID,DFID,14/11/2016,Aid Programme - Accountable Grant Payments ,Conflict  Humanitarian  Security & Stabilisation Division ,Supplier Name withheld ,300334-101 ,"1,300,000.00",
DFID,DFID,24/11/2016,Aid Programme - Voluntary contributions ,East and Central Africa ,Supplier Name withheld ,204903-103 ,"2,000,000.00",
DFID,DFID,09/11/2016,Aid Programme - Accountable Grant Payments ,West and Southern Africa ,VOLUNTARY SERVICE OVERSEAS ,203428-106 ,"10,625.96",
DFID,DFID,10/11/2016,Project delivery costs – supplier services ,Policy Division ,VOLUNTARY SERVICE OVERSEAS ,204894-101 ,"1,385,468.26",
DFID,DFID,01/11/2016,Research and development costs - supplier services ,Research and Evidence Division ,VALID EVALUATIONS LTD ,203706-109 ,"155,000.00",
DFID,DFID,30/11/2016,Research and development costs - supplier services ,Research and Evidence Division ,VALID EVALUATIONS LTD ,203706-109 ,"185,000.00",
DFID,DFID,18/11/2016,Mobile telephones & accessories ,Asia  Caribbean and Overseas Territories ,Supplier Name withheld ,101601-110 ,816.00,
DFID,DFID,16/11/2016,Telephone Usage & services ,Business Solutions Division Level ,VODAFONE CORPORATE ,200002-170 ,"29,123.23",UK mobile rental and usage vatable charges for October  2016 
DFID,DFID,16/11/2016,Telephone Usage & services ,Business Solutions Division Level ,VODAFONE CORPORATE ,200002-170 ,"11,606.17",
DFID,DFID,30/11/2016,Aid Programme - Accountable Grant Payments ,Policy Division ,UNICEF UK ,203559-118 ,"487,646.00",
DFID,DFID,21/11/2016,Training Providers/Facilitation Services ,Group Operations ,VULCAN FIRE TRAINING CO LTD ,203717-101 ,675.00,
DFID,DFID,25/11/2016,Data Network - land lines ,Business Solutions Division Level ,VERIZON UK LIMITED ,200002-126 ,"7,557.92",
DFID,DFID,02/11/2016,Aid Programme - Accountable Grant Payments ,Policy Division ,WOMANKIND WORLDWIDE (JFS) ,203559-146 ,"34,456.89",
DFID,DFID,08/11/2016,Aid Programme - Humanitarian Material Relief Assistance and Services ,Conflict  Humanitarian  Security & Stabilisation Division ,WORLD VISION ,203044-101 ,"51,628.51",
DFID,DFID,30/11/2016,Aid Programme - Accountable Grant Payments ,West and Southern Africa ,WORLD VISION ,205234-103 ,"2,073,933.43",
DFID,DFID,01/11/2016,Aid Programme - Accountable Grant Payments ,West and Southern Africa ,WORLD VISION ,300298-102 ,"2,184,427.00",
DFID,DFID,22/11/2016,Aid Programme - Accountable Grant Payments ,Policy Division ,WATERAID ,203559-116 ,"216,946.00",
DFID,DFID,24/11/2016,Aid Programme - Accountable Grant Payments ,Policy Division ,WESTMINSTER FOUNDATION FOR DEMOCRACY ,204757-101 ,"1,176,132.00",
DFID,DFID,24/11/2016,Aid Programme - Accountable Grant Payments ,Asia  Caribbean and Overseas Territories ,BRAC ,204916-101 ,"4,500,000.00",
DFID,DFID,24/11/2016,Aid Programme - Accountable Grant Payments ,Asia  Caribbean and Overseas Territories ,BRAC ,204916-102 ,"7,000,000.00",
DFID,DFID,24/11/2016,Aid Programme - Accountable Grant Payments ,Asia  Caribbean and Overseas Territories ,BRAC ,204916-103 ,"8,500,000.00",
DFID,DFID,03/11/2016,Aid Programme - Accountable Grant Payments ,Asia  Caribbean and Overseas Territories ,BRAC ,107460-111 ,"90,000.00",
DFID,DFID,17/11/2016,Air fares ,Asia  Caribbean and Overseas Territories ,Saimon Overseas Ltd ,101603-102 ,702.57,
DFID,DFID,17/11/2016,Air fares ,Asia  Caribbean and Overseas Territories ,Saimon Overseas Ltd ,101603-101 ,"2,153.66",
DFID,DFID,30/11/2016,Air fares ,Research and Evidence Division ,Saimon Overseas Ltd ,203874-102 ,"1,767.56",
DFID,DFID,14/11/2016,Hotels - Accommodation only ,Economic Development Division ,HOTEL DES MILLE COLLINES ,100276-101 ,699.40,
DFID,DFID,09/11/2016,Hotels - Accommodation only ,Policy Division ,Ryalls Hotel ,100045-101 ,752.68,
DFID,DFID,03/11/2016,Hotels - Accommodation only ,Policy Division ,Ryalls Hotel ,100045-101 ,729.64,
DFID,DFID,03/11/2016,Project delivery costs – supplier services ,West and Southern Africa ,Deloitte ,202214-108 ,"55,754.59",
DFID,DFID,16/11/2016,Air fares ,West and Southern Africa ,Mukwa Travel and Tours ,101618-101 ,657.20,
DFID,DFID,03/11/2016,Project delivery costs – supplier services ,West and Southern Africa ,Games Store ,203627-102 ,"10,598.95",
DFID,DFID,22/11/2016,Project delivery costs – supplier services ,West and Southern Africa ,Games Store ,203627-102 ,762.65,
DFID,DFID,24/11/2016,Project delivery costs – supplier services ,West and Southern Africa ,Games Store ,203627-102 ,"1,134.50",
DFID,DFID,04/11/2016,Air fares ,West and Southern Africa ,Jaya Travels & Tours Ltd ,205189-103 ,"2,840.48",
DFID,DFID,04/11/2016,Air fares ,Asia  Caribbean and Overseas Territories ,Jaya Travels & Tours Ltd ,101621-101 ,"1,307.39",
DFID,DFID,04/11/2016,Air fares ,Asia  Caribbean and Overseas Territories ,Jaya Travels & Tours Ltd ,101621-108 ,"1,651.79",
DFID,DFID,27/11/2016,Air fares ,Asia  Caribbean and Overseas Territories ,Jaya Travels & Tours Ltd ,101621-108 ,"1,026.06",
DFID,DFID,23/11/2016,Aid Programme - Accountable Grant Payments ,Asia  Caribbean and Overseas Territories ,Helvetas Nepal ,204857-103 ,"31,724.15",
DFID,DFID,18/11/2016,Hotels - Accommodation only ,West and Southern Africa ,Accra City Hotel ,204918-101 ,704.00,
DFID,DFID,22/11/2016,Hotels - Accommodation only ,West and Southern Africa ,Accra City Hotel ,204918-101 ,697.13,
DFID,DFID,23/11/2016,Hotels - Accommodation only ,West and Southern Africa ,Accra City Hotel ,204918-101 ,697.13,
DFID,DFID,28/11/2016,Hotels - Accommodation only ,East and Central Africa ,Sheraton Hotel ,101635-101 ,"1,343.82",
DFID,DFID,25/11/2016,Hotels - Accommodation only ,Research and Evidence Division ,Sheraton Hotel ,202348-103 ,560.00,
DFID,DFID,30/11/2016,Hotels - Accommodation only ,Research and Evidence Division ,Sheraton Hotel ,202392-104 ,982.47,
DFID,DFID,14/11/2016,Air fares ,East and Central Africa ,WFP Somalia ,101630-101 ,"3,499.60",
DFID,DFID,14/11/2016,Air fares ,East and Central Africa ,WFP Somalia ,101630-101 ,"2,131.94",
DFID,DFID,09/11/2016,Hotels - Accommodation only ,Policy Division ,Fairview Hotel ,204963-101 ,"1,279.77",
DFID,DFID,07/11/2016,Repairs  Maint  Alter - Property & Constrct. Services ,West and Southern Africa ,Pekolyn Tech. Services ,101622-108 ,"2,472.28",
DFID,DFID,15/11/2016,Repairs  Maint  Alter - Property & Constrct. Services ,West and Southern Africa ,Pekolyn Tech. Services ,101622-108 ,"1,105.91",
DFID,DFID,15/11/2016,Repairs  Maint  Alter - Property & Constrct. Services ,West and Southern Africa ,Pekolyn Tech. Services ,101622-108 ,"1,214.69",
DFID,DFID,22/11/2016,Vehicle Petrol & Oil ,West and Southern Africa ,British  High Commission Abuja ,101622-108 ,872.58,
DFID,DFID,15/11/2016,Repairs  Maint  Alter - Property & Constrct. Services ,West and Southern Africa ,Fracham Company ,101622-108 ,"1,424.41",
DFID,DFID,16/11/2016,Hotels - Accommodation only ,West and Southern Africa ,Supplier Name withheld ,101622-108 ,859.59,
DFID,DFID,01/11/2016,Hotels - Accommodation only ,West and Southern Africa ,Supplier Name withheld ,101622-108 ,743.78,
DFID,DFID,29/11/2016,Hotels - Accommodation only ,West and Southern Africa ,Supplier Name withheld ,101622-108 ,"1,468.50",
DFID,DFID,01/11/2016,Hotels - Accommodation only ,West and Southern Africa ,Supplier Name withheld ,101622-108 ,505.48,
DFID,DFID,15/11/2016,Cleaning Costs ,West and Southern Africa ,Sparklean Services Nig Ltd ,101622-108 ,"3,287.20",
DFID,DFID,15/11/2016,Cleaning Costs ,West and Southern Africa ,Sparklean Services Nig Ltd ,100152-117 ,922.81,
DFID,DFID,15/11/2016,Project delivery costs – supplier services ,East and Central Africa ,Supplier Name withheld ,205207-101 ,"18,963.46",
DFID,DFID,02/11/2016,Aid Programme - Accountable Grant Payments ,Economic Development Division ,Supplier Name withheld ,204254-101 ,"322,215.35",
DFID,DFID,04/11/2016,Project delivery costs – supplier services ,Policy Division ,Supplier Name withheld ,202921-103 ,"487,317.50",
DFID,DFID,28/11/2016,Aid Programme - Accountable Grant Payments ,Conflict  Humanitarian  Security & Stabilisation Division ,Supplier Name withheld ,203978-102 ,"12,751.86",
DFID,DFID,28/11/2016,Project delivery costs – supplier services ,Policy Division ,Supplier Name withheld ,203034-111 ,"5,179.69",
DFID,DFID,24/11/2016,Aid Programme - Accountable Grant Payments ,Economic Development Division ,ISEAL ALLIANCE ,203448-101 ,"342,343.00",
DFID,DFID,28/11/2016,Aid Programme - Trust Funds contributions ,East and Central Africa ,International Development Association ,204456-101 ,"6,958,694.58",
DFID,DFID,28/11/2016,Aid Programme - Trust Funds contributions ,East and Central Africa ,International Development Association ,204456-104 ,"3,659,829.18",
DFID,DFID,23/11/2016,Aid Programme - Accountable Grant Payments ,Conflict  Humanitarian  Security & Stabilisation Division ,BUSINESS IN THE COMMUNITY ,203417-101 ,"22,805.51",
DFID,DFID,02/11/2016,Aid Programme - Accountable Grant Payments ,Asia  Caribbean and Overseas Territories ,THE ASIA FOUNDATION ,203996-107 ,"102,619.32",
DFID,DFID,23/11/2016,Project delivery costs – supplier services ,International Relations Division ,ART OF LIVING ,205081-101 ,"2,461.00",
DFID,DFID,07/11/2016,Project delivery costs – supplier services ,International Relations Division ,ART OF LIVING ,205081-101,950.00,
DFID,DFID,18/11/2016,Project delivery costs – supplier services ,International Relations Division ,ART OF LIVING ,205081-101,"1,045.00",
DFID,DFID,29/11/2016,Aid Programme - Voluntary contributions ,Middle East and North Africa Division ,UN OCHA ,204530-101 ,"2,500,000.00",
DFID,DFID,03/11/2016,Hardware -Laptop PCs ,Business Solutions Division Level ,SOFTWARE BOX LTD (SBL) ,200002-197 ,"2,618.88",
DFID,DFID,04/11/2016,Aid Programme - Core contributions ,West and Southern Africa ,FAO ,300047-105 ,"4,800,000.00",
DFID,DFID,23/11/2016,Aid Programme - Voluntary contributions ,East and Central Africa ,FAO ,203462-112 ,"250,000.00",
DFID,DFID,30/11/2016,Aid Programme - Joint programme contribution ,West and Southern Africa ,Supplier Name withheld ,205122-106 ,"7,900,000.00",
DFID,DFID,02/11/2016,Aid Programme - Core contributions ,Conflict  Humanitarian  Security & Stabilisation Division ,Supplier Name withheld ,205038-106 ,"20,000,000.00",
DFID,DFID,28/11/2016,Aid Programme - Humanitarian Material Relief Assistance and Services ,East and Central Africa ,Supplier Name withheld ,204439-111 ,"7,500,000.00",
DFID,DFID,15/11/2016,Aid Programme - Core contributions ,West and Southern Africa ,Supplier Name withheld ,205161-106 ,"462,015.00",
DFID,DFID,28/11/2016,Aid Programme - Voluntary contributions ,East and Central Africa ,Supplier Name withheld ,203603-111 ,"7,166,199.00",
DFID,DFID,07/11/2016,Aid Programme - Core contributions ,West and Southern Africa ,Supplier Name withheld ,300047-101 ,"740,000.00",
DFID,DFID,25/11/2016,Aid Programme - Voluntary contributions ,Middle East and North Africa Division ,Supplier Name withheld ,204513-101 ,"21,000,000.00",
DFID,DFID,25/11/2016,Aid Programme - Trust Funds contributions ,East and Central Africa ,Supplier Name withheld ,202580-104 ,"351,700.00",
DFID,DFID,22/11/2016,Aid Programme - Refugee Relief Payments ,East and Central Africa ,Supplier Name withheld ,203462-102 ,"1,178,637.00",
DFID,DFID,02/11/2016,Aid Programme - Humanitarian Material Relief Assistance and Services ,Asia  Caribbean and Overseas Territories ,Supplier Name withheld ,204603-108 ,"500,000.00",
DFID,DFID,28/11/2016,Aid Programme - Voluntary contributions ,Asia  Caribbean and Overseas Territories ,Supplier Name withheld ,202972-104 ,"300,000.00",
DFID,DFID,16/11/2016,Aid Programme - Refugee Relief Payments ,East and Central Africa ,Supplier Name withheld ,300327-101 ,"3,000,000.00",
DFID,DFID,04/11/2016,Research and development costs - supplier services ,Research and Evidence Division ,International Food PolicyResearch Institute (IFRI ,201448-104 ,"505,040.00",
DFID,DFID,08/11/2016,Data Network - land lines ,Business Solutions Division Level ,KUBE NETWORKS LTD ,200002-130 ,"1,094.72",
DFID,DFID,29/11/2016,Aid Programme - Joint programme contribution ,Asia  Caribbean and Overseas Territories ,GIZ GmbH Eschborn ,203106-101 ,"173,000.00",
DFID,DFID,18/11/2016,Aid Programme - Joint programme contribution ,East and Central Africa ,GIZ GmbH Eschborn ,204639-101 ,"3,650,000.00",
DFID,DFID,02/11/2016,Aid Programme - Joint programme contribution ,Asia  Caribbean and Overseas Territories ,GIZ GmbH Eschborn ,205101-111 ,"445,000.00",
DFID,DFID,02/11/2016,Aid Programme - Joint programme contribution ,Asia  Caribbean and Overseas Territories ,GIZ GmbH Eschborn ,205101-111 ,"550,000.00",
DFID,DFID,23/11/2016,DFID Purchased Relief Supplies ,East and Central Africa ,IPA-International Procurement Agency (BV) ,204861-101 ,"10,288.22",
DFID,DFID,03/11/2016,DFID Purchased Relief Supplies ,East and Central Africa ,IPA-International Procurement Agency (BV) ,204861-101 ,"86,027.88",
DFID,DFID,24/11/2016,DFID Purchased Relief Supplies ,East and Central Africa ,IPA-International Procurement Agency (BV) ,203109-111 ,"487,549.43",
DFID,DFID,28/11/2016,DFID Purchased Relief Supplies ,East and Central Africa ,IPA-International Procurement Agency (BV) ,203109-111 ,"9,310.34",
DFID,DFID,28/11/2016,DFID Purchased Relief Supplies ,East and Central Africa ,IPA-International Procurement Agency (BV) ,203109-111 ,"873,700.59",
DFID,DFID,28/11/2016,DFID Purchased Relief Supplies ,East and Central Africa ,IPA-International Procurement Agency (BV) ,203109-111 ,"315,604.67",
DFID,DFID,28/11/2016,DFID Purchased Relief Supplies ,East and Central Africa ,IPA-International Procurement Agency (BV) ,203109-111 ,"25,774.17",
DFID,DFID,03/11/2016,DFID Purchased Relief Supplies ,East and Central Africa ,IPA-International Procurement Agency (BV) ,203109-111 ,"10,828.53",
DFID,DFID,02/11/2016,DFID Purchased Relief Supplies ,East and Central Africa ,IPA-International Procurement Agency (BV) ,203109-111 ,"367,068.72",
DFID,DFID,04/11/2016,DFID Purchased Relief Supplies ,East and Central Africa ,IPA-International Procurement Agency (BV) ,203109-111 ,"143,915.20",
DFID,DFID,16/11/2016,Aid Programme - Voluntary contributions ,Policy Division ,ICAR (UK) ,300292-112 ,"1,000,000.00",
DFID,DFID,18/11/2016,Aid Programme - Accountable Grant Payments ,East and Central Africa ,AGRA IN AFRICA (NO2) ,201575-104 ,"170,544.00",
DFID,DFID,17/11/2016,Project delivery costs – supplier services ,Asia  Caribbean and Overseas Territories ,Sustainable Development Associates ,113287-102 ,"1,684.43",
DFID,DFID,14/11/2016,Aid Programme - Accountable Grant Payments ,Asia  Caribbean and Overseas Territories ,Save the Children Fund UK ,204131-101 ,"932,132.00",
DFID,DFID,16/11/2016,Project delivery costs – supplier services ,Policy Division ,KPMG EAST AFRICA LTD ,202921-102 ,"360,055.20",
DFID,DFID,28/11/2016,Project delivery costs – supplier services ,Policy Division ,KPMG EAST AFRICA LTD ,201724-102 ,"53,619.00",
DFID,DFID,02/11/2016,Project delivery costs – supplier services ,Policy Division ,KPMG EAST AFRICA LTD ,201724-102 ,"50,388.00",
DFID,DFID,28/11/2016,Research and development costs - supplier services ,Research and Evidence Division ,LONDON SCHOOL OF ECONOMICS AND POLITICAL SCIENCE ,201006-104 ,"166,287.29",
DFID,DFID,01/11/2016,Aid Programme - Accountable Grant Payments ,East and Central Africa ,LONDON SCHOOL OF ECONOMICS AND POLITICAL SCIENCE ,204803-103 ,"2,373.75",
DFID,DFID,22/11/2016,Aid Programme - Accountable Grant Payments ,East and Central Africa ,LONDON SCHOOL OF ECONOMICS AND POLITICAL SCIENCE ,204803-103 ,853.67,
DFID,DFID,21/11/2016,Aid Programme - Voluntary contributions ,East and Central Africa ,United Nations Economic Commission ,204624-102 ,"787,000.00",
DFID,DFID,02/11/2016,Project delivery costs – supplier services ,West and Southern Africa ,UPPER QUARTILE ,201857-101 ,"13,194.00",
DFID,DFID,25/11/2016,Aid Programme - Accountable Grant Payments ,Economic Development Division ,UNITED NATIONS FOUNDATION ,203448-101 ,"125,000.00",
DFID,DFID,24/11/2016,Aid Programme - Accountable Grant Payments ,Policy Division ,UNITED NATIONS FOUNDATION ,204202-101 ,"1,176,644.00",
DFID,DFID,08/11/2016,Aid Programme - Joint programme contribution ,West and Southern Africa ,Supplier Name withheld ,204228-101 ,"3,588,068.00",
DFID,DFID,30/11/2016,Aid Programme - Voluntary contributions ,Asia  Caribbean and Overseas Territories ,UNFPA,204079-103 ,"600,000.00",
DFID,DFID,28/11/2016,Aid Programme - Voluntary contributions ,West and Southern Africa ,Supplier Name withheld ,202640-110 ,"1,972,184.00",
DFID,DFID,01/11/2016,Project delivery costs – supplier services ,West and Southern Africa ,Cambridge  Education Limited ,104200-101 ,"794,575.52",
DFID,DFID,30/11/2016,Aid Programme - Voluntary contributions ,Conflict  Humanitarian  Security & Stabilisation Division ,Supplier Name withheld ,300263-101 ,"3,036,032.00",
DFID,DFID,25/11/2016,Aid Programme - Core contributions ,Conflict  Humanitarian  Security & Stabilisation Division ,Supplier Name withheld ,205038-104 ,"17,500,000.00",
DFID,DFID,30/11/2016,Aid Programme - Voluntary contributions ,Asia  Caribbean and Overseas Territories ,Supplier Name withheld ,203904-109 ,"5,000,000.00",
DFID,DFID,25/11/2016,Aid Programme - Voluntary contributions ,East and Central Africa ,Supplier Name withheld ,203462-104 ,"2,457,011.00",
DFID,DFID,08/11/2016,Aid Programme - Humanitarian Material Relief Assistance and Services ,East and Central Africa ,Supplier Name withheld ,205286-106 ,"1,000,000.00",
DFID,DFID,30/11/2016,Aid Programme - Voluntary contributions ,Middle East and North Africa Division ,Supplier Name withheld ,204536-102 ,"9,300,000.00",
DFID,DFID,30/11/2016,Aid Programme - Voluntary contributions ,Middle East and North Africa Division ,Supplier Name withheld ,204536-103 ,"21,000,000.00",
DFID,DFID,15/11/2016,Aid Programme - Voluntary contributions ,East and Central Africa ,Supplier Name withheld ,203155-104 ,"3,297,112.00",
DFID,DFID,21/11/2016,Aid Programme - Pooled/Basket funding ,Research and Evidence Division ,Supplier Name withheld ,201900-106 ,"86,800.00",
DFID,DFID,14/11/2016,Aid Programme - Joint programme contribution ,Policy Division ,Supplier Name withheld ,203599-101 ,"1,000,000.00",
DFID,DFID,23/11/2016,Aid Programme - Voluntary contributions ,East and Central Africa ,Supplier Name withheld ,204929-105 ,"3,200,000.00",
DFID,DFID,30/11/2016,Aid Programme - Core contributions ,Research and Evidence Division ,Supplier Name withheld ,203082-102 ,"1,000,000.00",
DFID,DFID,17/11/2016,other information and communication technologies ,West and Southern Africa ,Osmat Network Solutions Ventures ,101622-108 ,654.34,
DFID,DFID,17/11/2016,Office Equipment - Maintenance ,West and Southern Africa ,Osmat Network Solutions Ventures ,100152-117 ,"1,678.87",
DFID,DFID,28/11/2016,Aid Programme - Voluntary contributions ,Conflict  Humanitarian  Security & Stabilisation Division ,IOM ,300264-102 ,"2,000,000.00",
DFID,DFID,22/11/2016,Project delivery costs – supplier services ,Asia  Caribbean and Overseas Territories ,IPE Global Ltd. ,204623-113 ,"94,029.00",
DFID,DFID,25/11/2016,Project delivery costs – supplier services ,West and Southern Africa ,IPE Global Ltd. ,203164-102 ,"246,321.00",
DFID,DFID,29/11/2016,Project delivery costs – supplier services ,Asia  Caribbean and Overseas Territories ,IPE Global Ltd. ,204237-101 ,"52,293.60",
DFID,DFID,28/11/2016,Project delivery costs – supplier services ,Asia  Caribbean and Overseas Territories ,IPE Global Ltd. ,114040-101 ,"73,156.10",
DFID,DFID,28/11/2016,Project delivery costs – supplier services ,Asia  Caribbean and Overseas Territories ,IPE Global Ltd. ,114040-101 ,"36,578.06",
DFID,DFID,28/11/2016,Project delivery costs – supplier services ,Asia  Caribbean and Overseas Territories ,IPE Global Ltd. ,114040-101 ,"85,349.56",
DFID,DFID,10/11/2016,Project delivery costs – supplier services ,Asia  Caribbean and Overseas Territories ,IPE Global Ltd. ,203217-101 ,"88,793.80",
DFID,DFID,09/11/2016,Repairs  Maint  Alter - Removal & waste disposal services ,Group Operations ,BYWATERS ,203717-101 ,"4,090.00",
DFID,DFID,15/11/2016,Project delivery costs – supplier services ,West and Southern Africa ,Social Development Direct ,300043-101 ,"30,791.35",
DFID,DFID,02/11/2016,Contract & Agency Staff ,Group Operations ,Michael Page Int. Recruitment Ltd ,100270-106 ,"1,941.58",
DFID,DFID,17/11/2016,Contract & Agency Staff ,Finance and Corporate Performance Division ,Michael Page Int. Recruitment Ltd ,100201-101 ,"10,846.42",
DFID,DFID,21/11/2016,Contract & Agency Staff ,Finance and Corporate Performance Division ,Michael Page Int. Recruitment Ltd ,100201-101 ,"8,134.81",
DFID,DFID,18/11/2016,Aid Programme - Voluntary contributions ,East and Central Africa ,UNEP ,205115-102 ,"2,069,900.00",
DFID,DFID,29/11/2016,Aid Programme - Voluntary contributions ,Middle East and North Africa Division ,Supplier Name withheld ,300345-101 ,"5,000,000.00",
DFID,DFID,15/11/2016,Aid Programme - Accountable Grant Payments ,East and Central Africa ,MEDAIR ,204019-126 ,"272,441.00",
DFID,DFID,29/11/2016,Project delivery costs – supplier services ,West and Southern Africa ,Rural Widows Action Centre ,204438-112 ,"38,217.45",
DFID,DFID,28/11/2016,Aid Programme - Accountable Grant Payments ,East and Central Africa ,EISA ,204458-108 ,"231,627.49",
DFID,DFID,16/11/2016,Aid Programme - Accountable Grant Payments ,West and Southern Africa ,The Carter Center ,204889-102 ,"194,958.00",
DFID,DFID,30/11/2016,Aid Programme - Accountable Grant Payments ,Middle East and North Africa Division ,Supplier Name withheld ,204520-101 ,"3,807,363.00",
DFID,DFID,29/11/2016,Aid Programme - Accountable Grant Payments ,Middle East and North Africa Division ,Supplier Name withheld ,204520-103 ,"1,097,529.00",
DFID,DFID,29/11/2016,Aid Programme - Accountable Grant Payments ,West and Southern Africa ,Supplier Name withheld ,205161-104 ,"799,422.02",
DFID,DFID,17/11/2016,Aid Programme - Accountable Grant Payments ,Conflict  Humanitarian  Security & Stabilisation Division ,Supplier Name withheld ,204060-101 ,"842,935.00",
DFID,DFID,23/11/2016,Aid Programme - Accountable Grant Payments ,West and Southern Africa ,FDC ,202349-104 ,"150,859.68",
DFID,DFID,03/11/2016,Aid Programme - Core contributions ,Conflict  Humanitarian  Security & Stabilisation Division ,United Nations General Trust Fund Account ,205038-101 ,"27,500,000.00",
DFID,DFID,10/11/2016,Project delivery costs – supplier services ,Middle East and North Africa Division ,Crown Agents Bank ,204061-101 ,"420,219.80",
DFID,DFID,01/11/2016,Project delivery costs – supplier services ,Middle East and North Africa Division ,Crown Agents Bank ,204061-101 ,"1,227,436.00",
DFID,DFID,01/11/2016,Project delivery costs – supplier services ,Middle East and North Africa Division ,Crown Agents Bank ,204061-101 ,"677,506.25",
DFID,DFID,16/11/2016,Project delivery costs – supplier services ,Asia  Caribbean and Overseas Territories ,Crown Agents Bank ,201645-105 ,"208,893.93",
DFID,DFID,01/11/2016,Project delivery costs – supplier services ,West and Southern Africa ,Crown Agents Bank ,200469-110 ,"177,091.58",
DFID,DFID,17/11/2016,Aid Programme - Partnership Programme Arrangements ,Policy Division ,COLLABORATIVE LEARNING PROJECTS ,202829-101 ,"342,115.00",
DFID,DFID,11/11/2016,Aid Programme - Accountable Grant Payments ,East and Central Africa ,Twaweza East Africa ,204436-101 ,"176,032.00",
DFID,DFID,24/11/2016,Project delivery costs – supplier services ,Asia  Caribbean and Overseas Territories ,Institute of Educational Development  BRAC University ,202123-105 ,"47,475.75",
DFID,DFID,04/11/2016,Aid Programme - Core contributions ,East and Central Africa ,EITI Secretariat ,203308-107 ,"287,000.00",
DFID,DFID,04/11/2016,Aid Programme - Voluntary contributions ,East and Central Africa ,EITI Secretariat ,203308-107 ,"48,000.00",
DFID,DFID,16/11/2016,Aid Programme - Voluntary contributions ,East and Central Africa ,EITI Secretariat ,203308-114 ,"500,000.00",
DFID,DFID,07/11/2016,Aid Programme - Partnership Programme Arrangements ,Policy Division ,BILL & MELINDA GATES FOUNDATION (USD) ,201101-112 ,"542,125.13",
DFID,DFID,21/11/2016,Hotels - Accommodation only ,East and Central Africa ,Southern Sun Hotels(T) Ltd (USD) ,204334-102 ,"1,016.67",
DFID,DFID,21/11/2016,Hotels - Accommodation only ,East and Central Africa ,Southern Sun Hotels(T) Ltd (USD) ,204334-102 ,903.41,
DFID,DFID,17/11/2016,Aid Programme - Accountable Grant Payments ,Asia  Caribbean and Overseas Territories ,Chinadialogue ,202775-104 ,"54,503.00",
DFID,DFID,23/11/2016,Aid Programme - Accountable Grant Payments ,Asia  Caribbean and Overseas Territories ,Chinadialogue ,202775-104 ,"39,188.00",
DFID,DFID,21/11/2016,Aid Programme - Accountable Grant Payments ,West and Southern Africa ,Southern Africa Trust ,203622-120 ,"337,223.33",
DFID,DFID,02/11/2016,Aid Programme - Accountable Grant Payments ,West and Southern Africa ,Southern Africa Trust ,205016-101 ,"550,474.07",
DFID,DFID,14/11/2016,Contract & Agency Staff ,Business Solutions Division Level ,Capita Business Serivces Ltd ,200001-101 ,"5,508.00",
DFID,DFID,04/11/2016,Contract & Agency Staff ,Business Solutions Division Level ,Capita Business Serivces Ltd ,200001-101 ,"14,904.00",
DFID,DFID,04/11/2016,Project delivery costs – supplier services ,Business Solutions Division Level ,Capita Business Serivces Ltd ,200001-101 ,"7,788.00",
DFID,DFID,16/11/2016,Project delivery costs – supplier services ,Business Solutions Division Level ,Capita Business Serivces Ltd ,200001-101 ,"7,434.00",
DFID,DFID,17/11/2016,Project delivery costs – supplier services ,Business Solutions Division Level ,Capita Business Serivces Ltd ,200001-101 ,"7,434.00",
DFID,DFID,29/11/2016,Project delivery costs – supplier services ,East and Central Africa ,BMB  MOTT  MACDONALD ,202511-102 ,"2,197,672.37",
DFID,DFID,29/11/2016,Project delivery costs – supplier services ,East and Central Africa ,BMB  MOTT  MACDONALD ,202511-102 ,"174,221.50",
DFID,DFID,02/11/2016,Project delivery costs – supplier services ,East and Central Africa ,BMB  MOTT  MACDONALD ,202511-102 ,"134,656.25",
DFID,DFID,02/11/2016,Project delivery costs – supplier services ,East and Central Africa ,BMB  MOTT  MACDONALD ,202511-102 ,"819,666.08",
DFID,DFID,25/11/2016,Project delivery costs – supplier services ,West and Southern Africa ,BMB  MOTT  MACDONALD ,204242-102 ,"60,000.00",
DFID,DFID,03/11/2016,Fund monies to be managed and dispersed by the supplier ,East and Central Africa ,BMB  MOTT  MACDONALD ,203383-101 ,"400,000.00",
DFID,DFID,03/11/2016,Aid Programme - Voluntary contributions ,Policy Division ,IUCN - THE WORLD CONSERVATION UNION ,203034-112 ,"960,500.00",
DFID,DFID,04/11/2016,Project delivery costs – supplier services ,East and Central Africa ,INTERNATIONAL EDUCATION PARTNERS LTD ,204463-102 ,"18,500.00",
DFID,DFID,29/11/2016,Repairs  Maint  Alter - Property & Constrct. Services ,West and Southern Africa ,Shell Nigeria Closed pension Fund Administration Ltd ,101622-108 ,"10,955.67",
DFID,DFID,22/11/2016,Aid Programme - Strategic Grant Arrangement payments ,Asia  Caribbean and Overseas Territories ,International Water Management Institute (IWMI) ,202775-111 ,"5,872.00",
DFID,DFID,07/11/2016,Storage & Distribution costs ,West and Southern Africa ,Conote Services Ltd ,101622-108 ,842.40,
DFID,DFID,07/11/2016,Storage & Distribution costs ,West and Southern Africa ,Conote Services Ltd ,101622-108 ,"1,674.69",
DFID,DFID,29/11/2016,Storage & Distribution costs ,West and Southern Africa ,Conote Services Ltd ,101622-108 ,"1,210.22",
DFID,DFID,07/11/2016,Storage & Distribution costs ,West and Southern Africa ,Conote Services Ltd ,100152-117 ,698.25,
DFID,DFID,21/11/2016,Aid Programme - Accountable Grant Payments ,Asia  Caribbean and Overseas Territories ,Manusher Jonno Foundation (mother account) ,202972-106 ,"200,000.00",
DFID,DFID,17/11/2016,Aid Programme - Accountable Grant Payments ,Asia  Caribbean and Overseas Territories ,Manusher Jonno Foundation (mother account) ,202958-101 ,"900,000.00",
DFID,DFID,17/11/2016,Aid Programme - Accountable Grant Payments ,Asia  Caribbean and Overseas Territories ,Manusher Jonno Foundation (mother account) ,202958-101 ,"1,000,000.00",
DFID,DFID,14/11/2016,Aid Programme - Accountable Grant Payments ,Asia  Caribbean and Overseas Territories ,Transparency International (Bangladesh) ,203488-101 ,"210,000.00",
DFID,DFID,14/11/2016,Aid Programme - Accountable Grant Payments ,Asia  Caribbean and Overseas Territories ,Transparency International (Bangladesh) ,203488-102 ,"115,000.00",
DFID,DFID,14/11/2016,Aid Programme - Accountable Grant Payments ,Asia  Caribbean and Overseas Territories ,Transparency International (Bangladesh) ,203488-104 ,"125,000.00",
DFID,DFID,11/11/2016,Aid Programme - Accountable Grant Payments ,Policy Division ,THE TIDES CENTER ,204178-101 ,"86,969.00",
DFID,DFID,10/11/2016,Aid Programme - Accountable Grant Payments ,Research and Evidence Division ,International Center for Research on Women (ICRW) ,203199-111 ,"17,084.56",
DFID,DFID,27/11/2016,Air fares ,Asia  Caribbean and Overseas Territories ,Jaya Travels & Tours Pvt Ltd. (US$) ,202433-109 ,"1,789.56",
DFID,DFID,27/11/2016,Air fares ,Asia  Caribbean and Overseas Territories ,Jaya Travels & Tours Pvt Ltd. (US$) ,101621-101 ,562.25,
DFID,DFID,27/11/2016,Air fares ,Asia  Caribbean and Overseas Territories ,Jaya Travels & Tours Pvt Ltd. (US$) ,101621-108 ,946.99,
DFID,DFID,03/11/2016,Fund monies to be managed and dispersed by the supplier ,Research and Evidence Division ,CARDNO EMERGING MARKETS (UK) LTD ,203048-105 ,"107,543.46",
DFID,DFID,04/11/2016,Fund monies to be managed and dispersed by the supplier ,Research and Evidence Division ,CARDNO EMERGING MARKETS (UK) LTD ,203048-105 ,"174,026.79",
DFID,DFID,04/11/2016,Fund monies to be managed and dispersed by the supplier ,Research and Evidence Division ,CARDNO EMERGING MARKETS (UK) LTD ,203048-106 ,"59,103.56",
DFID,DFID,03/11/2016,Fund monies to be managed and dispersed by the supplier ,Research and Evidence Division ,CARDNO EMERGING MARKETS (UK) LTD ,203048-106 ,"204,667.29",
DFID,DFID,25/11/2016,Project delivery costs – supplier services ,Economic Development Division ,CARDNO EMERGING MARKETS (UK) LTD ,203535-103 ,"45,512.00",
DFID,DFID,16/11/2016,Project delivery costs – supplier services ,Asia  Caribbean and Overseas Territories ,CARDNO EMERGING MARKETS (UK) LTD ,203535-105 ,"18,852.27",
DFID,DFID,11/11/2016,Project delivery costs – supplier services ,East and Central Africa ,CARDNO EMERGING MARKETS (UK) LTD ,202551-102 ,"378,278.04",
DFID,DFID,17/11/2016,Project delivery costs – supplier services ,West and Southern Africa ,CARDNO EMERGING MARKETS (UK) LTD ,201791-112 ,"90,300.00",
DFID,DFID,29/11/2016,Aid Programme - Joint programme contribution ,East and Central Africa , USAID ,204375-101 ,"2,000,000.00",
DFID,DFID,29/11/2016,Aid Programme - Joint programme contribution ,West and Southern Africa , USAID ,204911-101 ,"316,156.00",
DFID,DFID,17/11/2016,Project delivery costs – supplier services ,Asia  Caribbean and Overseas Territories ,DELOITTE TOUCHE TOHAMATSU INDIA PRIVATE LTD (DTTIPL) ,202736-102 ,"103,500.00",
DFID,DFID,17/11/2016,Project delivery costs – supplier services ,Asia  Caribbean and Overseas Territories ,DELOITTE TOUCHE TOHAMATSU INDIA PRIVATE LTD (DTTIPL) ,202736-102 ,"105,025.00",
DFID,DFID,17/11/2016,Project delivery costs – supplier services ,Asia  Caribbean and Overseas Territories ,DELOITTE TOUCHE TOHAMATSU INDIA PRIVATE LTD (DTTIPL) ,202736-102 ,"198,273.00",
DFID,DFID,18/11/2016,Project delivery costs – supplier services ,Asia  Caribbean and Overseas Territories ,DELOITTE TOUCHE TOHAMATSU INDIA PRIVATE LTD (DTTIPL) ,202736-102 ,"29,211.00",
DFID,DFID,10/11/2016,Aid Programme - Accountable Grant Payments ,East and Central Africa ,International Initiative for Impact Evaluation(3ie) ,203308-109 ,"3,948.00",
DFID,DFID,16/11/2016,Aid Programme - Accountable Grant Payments ,Asia  Caribbean and Overseas Territories ,NATIONAL DEMOCRATIC INSTITUTE (NDI) ,203454-102 ,"149,543.00",
DFID,DFID,23/11/2016,Aid Programme - Joint programme contribution ,West and Southern Africa ,UNDP MULTI-PARTNER TRUST FUND OFFICE (USD) ACCOUNT ,205122-102 ,"341,104.29",
DFID,DFID,25/11/2016,Project delivery costs – supplier services ,East and Central Africa ,UNDP MULTI-PARTNER TRUST FUND OFFICE (USD) ACCOUNT ,205091-103 ,"1,000,000.00",
DFID,DFID,25/11/2016,Aid Programme - Voluntary contributions ,East and Central Africa ,UNDP MULTI-PARTNER TRUST FUND OFFICE (USD) ACCOUNT ,205069-101 ,"1,500,000.00",
DFID,DFID,25/11/2016,Aid Programme - Voluntary contributions ,East and Central Africa ,UNDP MULTI-PARTNER TRUST FUND OFFICE (USD) ACCOUNT ,203383-111 ,"500,000.00",
DFID,DFID,29/11/2016,Project delivery costs – supplier services ,Asia  Caribbean and Overseas Territories ,RURAL RECONSTRUCTION NEPAL ,203764-110 ,"135,000.00",
DFID,DFID,29/11/2016,Project delivery costs – supplier services ,Asia  Caribbean and Overseas Territories ,RURAL RECONSTRUCTION NEPAL ,203764-104 ,"125,000.00",
DFID,DFID,01/11/2016,Aid Programme - Voluntary contributions ,Research and Evidence Division , OECD ,200300-101 ,"2,000,000.00",
DFID,DFID,24/11/2016,Air fares ,Asia  Caribbean and Overseas Territories ,BONDS TRAVEL BUREAU ,101624-101 ,500.48,
DFID,DFID,22/11/2016,Project delivery costs – supplier services ,Asia  Caribbean and Overseas Territories ,ISLAMABAD MARRIOTT HOTEL ,202488-109 ,943.83,
DFID,DFID,21/11/2016,Data Network - land lines ,Business Solutions Division Level ,NAYATEL (PVT) LTD ,203329-102 ,725.30,
DFID,DFID,21/11/2016,Data Network - land lines ,Business Solutions Division Level ,NAYATEL (PVT) LTD ,200002-121 ,725.30,
DFID,DFID,22/11/2016,Training - Travel & Subsistence ,Research and Evidence Division ,OMAR TRAVELS ,203874-102 ,602.36,
DFID,DFID,02/11/2016,Hotels - Accommodation only ,Asia  Caribbean and Overseas Territories ,Supplier Name withheld ,101624-101 ,607.80,
DFID,DFID,02/11/2016,Hotels - Accommodation only ,Asia  Caribbean and Overseas Territories ,Supplier Name withheld ,101624-101 ,762.24,
DFID,DFID,29/11/2016,Hotels - Accommodation only ,Asia  Caribbean and Overseas Territories ,Supplier Name withheld ,101624-101 ,745.35,
DFID,DFID,14/11/2016,Aid Programme - Core contributions ,International Relations Division ,European Investment Bank (EIB) ,200236-101 ,"6,557,850.00",
DFID,DFID,01/11/2016,Air fares ,Asia  Caribbean and Overseas Territories ,HM Revenue & Customs Acc No 11963228 ,204024-106 ,"2,072.67",
DFID,DFID,01/11/2016,Project delivery costs � supplier services,Asia  Caribbean and Overseas Territories ,HM Revenue & Customs Acc No 11963228 ,204024-106 ,"1,100.00",
DFID,DFID,23/11/2016,Aid Programme - Accountable Grant Payments ,Research and Evidence Division ,Practical Action (GBP) ,204343-106 ,"43,717.05",
DFID,DFID,30/11/2016,Aid Programme - Accountable Grant Payments ,International Relations Division ,IFPRI ,203707-101 ,"100,000.00",
DFID,DFID,07/11/2016,Aid Programme - Joint programme contribution ,Research and Evidence Division ,Supplier Name withheld ,205053-105 ,"98,000.00",
DFID,DFID,22/11/2016,Aid Programme - Humanitarian Material Relief Assistance and Services ,Asia  Caribbean and Overseas Territories ,Supplier Name withheld ,204603-115 ,"891,049.00",
DFID,DFID,22/11/2016,Aid Programme - Humanitarian Material Relief Assistance and Services ,Asia  Caribbean and Overseas Territories ,Supplier Name withheld ,204603-104 ,"222,762.00",
DFID,DFID,16/11/2016,Aid Programme - Voluntary contributions ,Conflict  Humanitarian  Security & Stabilisation Division ,Supplier Name withheld ,205141-102 ,"1,250,000.00",
DFID,DFID,09/11/2016,Aid Programme - Core contributions ,Research and Evidence Division ,Drugs for Neglected Diseases Initiative ,204075-103 ,"6,050,000.00",
DFID,DFID,23/11/2016,Secure Staff Accommodation ,West and Southern Africa ,Supplier Name withheld ,101622-108 ,"230,503.86","2 years  rental payment for Secure Staff Accommodation for 5 properties,  for the period  October 2016 � September 2018  � DFID Nigeria"
DFID,DFID,03/11/2016,Project delivery costs – supplier services ,East and Central Africa ,Futures Group Europe ,202547-102 ,"746,276.09",
DFID,DFID,29/11/2016,Project delivery costs – supplier services ,Asia  Caribbean and Overseas Territories ,Futures Group Europe ,202488-105 ,"205,271.40",
DFID,DFID,29/11/2016,Project delivery costs – supplier services ,West and Southern Africa ,Futures Group Europe ,202992-101 ,"1,171,469.00",
DFID,DFID,09/11/2016,Project delivery costs – supplier services ,West and Southern Africa ,Futures Group Europe ,202992-101 ,"1,465,092.00",
DFID,DFID,18/11/2016,Project delivery costs – supplier services ,West and Southern Africa ,Futures Group Europe ,202819-102 ,"331,385.13",
DFID,DFID,04/11/2016,Recruitment costs ,Human Resources ,HM REVENUE AND CUSTOMS Acc ,100269-117 ,"135,950.61",DFID�s contribution to the Civil Service Fast Stream Generalist  programme for the period April - June 2016 
DFID,DFID,04/11/2016,Training - Course Fees ,Human Resources ,HM REVENUE AND CUSTOMS Acc ,100269-117 ,"19,257.75",
DFID,DFID,17/11/2016,Recruitment costs ,Human Resources ,HM REVENUE AND CUSTOMS Acc ,100269-117 ,"2,390.92",
DFID,DFID,18/11/2016,Project delivery costs – supplier services ,West and Southern Africa ,HM REVENUE AND CUSTOMS Acc ,204918-101 ,"7,478.45",
DFID,DFID,21/11/2016,Aid Programme - Accountable Grant Payments ,West and Southern Africa ,Basel Institute On Governance ,205173-101 ,"72,086.00",
DFID,DFID,23/11/2016,Training Providers/Facilitation Services ,West and Southern Africa ,Nova Escola de Linguas Lda ,101620-101 ,809.06,
DFID,DFID,29/11/2016,Auditors Assurance Service ,West and Southern Africa ,Baker Tilly Nigeria ,202992-103 ,"26,513.95",
DFID,DFID,23/11/2016,Auditors Remuneration & Expenses - Cash ,West and Southern Africa ,Baker Tilly Nigeria ,202694-102 ,"25,142.14",
DFID,DFID,23/11/2016,Aid Programme - Other Financial Aid to Government ,Asia  Caribbean and Overseas Territories ,STATE BANK OF PAKISTAN  ,202697-108 ,"12,000,000.00",
DFID,DFID,02/11/2016,Hotels - Accommodation only ,Asia  Caribbean and Overseas Territories ,Supplier Name withheld ,101624-101 ,544.46,
DFID,DFID,09/11/2016,Furniture & Fittings ,Group Operations ,Senator International  ,203717-101 ,"2,821.80",
DFID,DFID,17/11/2016,Aid Programme - Voluntary contributions ,East and Central Africa ,UNDP (USD) ACCOUNT ,202891-112 ,"100,330.00",
DFID,DFID,11/11/2016,Aid Programme - Accountable Grant Payments ,East and Central Africa ,IIED  ,204364-104 ,"320,000.00",
DFID,DFID,15/11/2016,Aid Programme - Accountable Grant Payments ,Policy Division ,IIED  ,202834-101 ,"1,011,943.88",
DFID,DFID,18/11/2016,Project delivery costs – supplier services ,Conflict  Humanitarian  Security & Stabilisation Division ,IIED  ,204273-102 ,"479,166.78",
DFID,DFID,07/11/2016,Aid Programme - Partnership Programme Arrangements ,Policy Division ,Development Initiatives Poverty Research Ltd ,202828-101 ,"293,148.00",
DFID,DFID,01/11/2016,Air fares ,East and Central Africa ,Bon Voyage Travel Centre Ltd(USD) ,204288-103 ,"1,009.02",
DFID,DFID,15/11/2016,Air fares ,East and Central Africa ,Bon Voyage Travel Centre Ltd(USD) ,101634-101 ,"1,066.45",
DFID,DFID,01/11/2016,Air fares ,East and Central Africa ,Bon Voyage Travel Centre Ltd(USD) ,101634-101 ,976.21,
DFID,DFID,15/11/2016,Air fares ,East and Central Africa ,Bon Voyage Travel Centre Ltd(USD) ,101634-101 ,"1,100.79",
DFID,DFID,30/11/2016,Air fares ,East and Central Africa ,Bon Voyage Travel Centre Ltd(USD) ,101634-101 ,991.17,
DFID,DFID,11/11/2016,Aid Programme - Accountable Grant Payments ,Research and Evidence Division ,The Royal Society ,203041-102 ,"636,683.00",
DFID,DFID,25/11/2016,Aid Programme - Core contributions ,Research and Evidence Division ,AERAS ,204136-103 ,"800,000.00",
DFID,DFID,26/11/2016,Aid Programme - Accountable Grant Payments ,Asia  Caribbean and Overseas Territories ,International Institute for Environment and Development (IIED) ,204794-102 ,"7,715.00",
DFID,DFID,08/11/2016,Aid Programme - Accountable Grant Payments ,Asia  Caribbean and Overseas Territories ,Shoklo Malaria Research Unit ,203400-108 ,"41,704.02",
DFID,DFID,10/11/2016,Project delivery costs – supplier services ,Asia  Caribbean and Overseas Territories ,Landell Mills Ltd ,202787-102 ,"111,707.49",
DFID,DFID,04/11/2016,Aid Programme - Trust Funds contributions ,Research and Evidence Division ,USAID Washington ,204584-125 ,"25,000.00",
DFID,DFID,24/11/2016,Aid Programme - Core contributions ,Research and Evidence Division ,Program for Appropriate Technology in Health ,204139-105 ,"400,000.00",
DFID,DFID,24/11/2016,Aid Programme - Core contributions ,Research and Evidence Division ,Program for Appropriate Technology in Health ,204139-106 ,"600,000.00",
DFID,DFID,24/11/2016,Aid Programme - Core contributions ,Research and Evidence Division ,Program for Appropriate Technology in Health ,204139-107 ,"300,000.00",
DFID,DFID,28/11/2016,Aid Programme - Accountable Grant Payments ,Policy Division ,Program for Appropriate Technology in Health ,203663-101 ,"412,915.26",
DFID,DFID,22/11/2016,Aid Programme - Core contributions ,Economic Development Division ,SG HAMBROS BANK & TRUST LTD (USD) ,203232-101 ,"2,535,830.00",
DFID,DFID,22/11/2016,Aid Programme - Core contributions ,Economic Development Division ,SG HAMBROS BANK & TRUST LTD (USD) ,203232-128 ,"7,000,000.00",
DFID,DFID,22/11/2016,Aid Programme - Core contributions ,Economic Development Division ,SG HAMBROS BANK & TRUST LTD (USD) ,203232-129 ,"4,000,000.00",
DFID,DFID,23/11/2016,Aid Programme - Core contributions ,Economic Development Division ,SG HAMBROS BANK & TRUST LTD (USD) ,203232-130 ,"800,000.00",
DFID,DFID,10/11/2016,Project delivery costs – supplier services ,Asia  Caribbean and Overseas Territories ,Harewelle International Limited. ,107402-101 ,"199,350.87",
DFID,DFID,10/11/2016,Aid Programme - Challenge Fund payments ,Asia  Caribbean and Overseas Territories ,Harewelle International Limited. ,107402-102 ,"214,551.77",
DFID,DFID,10/11/2016,Project delivery costs – supplier services ,Asia  Caribbean and Overseas Territories ,Harewelle International Limited. ,107402-105 ,"2,458.77",
DFID,DFID,14/11/2016,Aid Programme - Core contributions ,West and Southern Africa ,United Nations Office on Drugs and Crime (UNODC) ,204970-103 ,"650,762.00",
DFID,DFID,24/11/2016,Encashment of Promissory Notes ,Policy Division ,Deutsche Gesellschaft fur Internationale Zusammenarbeit (GIZ)Gmbh ,202957-102 ,"724,611.57",
DFID,DFID,24/11/2016,Encashment of Promissory Notes ,Policy Division ,Deutsche Gesellschaft fur Internationale Zusammenarbeit (GIZ)Gmbh ,202957-104 ,"846,335.22",
DFID,DFID,24/11/2016,Encashment of Promissory Notes ,Policy Division ,Deutsche Gesellschaft fur Internationale Zusammenarbeit (GIZ)Gmbh ,202957-104 ,"118,665.65",
DFID,DFID,24/11/2016,Encashment of Promissory Notes ,Policy Division ,Deutsche Gesellschaft fur Internationale Zusammenarbeit (GIZ)Gmbh ,202957-105 ,"791,399.26",
DFID,DFID,24/11/2016,Encashment of Promissory Notes ,Policy Division ,Deutsche Gesellschaft fur Internationale Zusammenarbeit (GIZ)Gmbh ,202957-106 ,"504,413.84",
DFID,DFID,24/11/2016,Encashment of Promissory Notes ,Policy Division ,Deutsche Gesellschaft fur Internationale Zusammenarbeit (GIZ)Gmbh ,202957-106 ,"849,781.13",
DFID,DFID,15/11/2016,Project delivery costs – supplier services ,East and Central Africa ,Supplier Name withheld ,204439-103 ,"13,105.52",
DFID,DFID,02/11/2016,Aid Programme - Accountable Grant Payments ,Middle East and North Africa Division ,Supplier Name withheld ,204534-101 ,"3,241,564.27",
DFID,DFID,02/11/2016,Aid Programme - Accountable Grant Payments ,Middle East and North Africa Division ,Supplier Name withheld ,204534-102 ,"3,537,580.54",
DFID,DFID,29/11/2016,Aid Programme - Accountable Grant Payments ,Middle East and North Africa Division ,Supplier Name withheld ,204007-139 ,"1,505,220.59",
DFID,DFID,28/11/2016,Aid Programme - Accountable Grant Payments ,East and Central Africa ,Supplier Name withheld ,205032-106 ,"280,943.00",
DFID,DFID,18/11/2016,Aid Programme - Accountable Grant Payments ,Conflict  Humanitarian  Security & Stabilisation Division ,Supplier Name withheld ,203419-105 ,"20,713.06",
DFID,DFID,03/11/2016,Aid Programme - Accountable Grant Payments ,Conflict  Humanitarian  Security & Stabilisation Division ,Supplier Name withheld ,203419-105 ,"23,697.17",
DFID,DFID,02/11/2016,Aid Programme - Accountable Grant Payments ,Conflict  Humanitarian  Security & Stabilisation Division ,Supplier Name withheld ,300264-107 ,"527,177.03",
DFID,DFID,17/11/2016,Project delivery costs – supplier services ,Asia  Caribbean and Overseas Territories ,SIDBI MUMBAI ,114293-103 ,"270,642.51",
DFID,DFID,24/11/2016,Project delivery costs – supplier services ,Asia  Caribbean and Overseas Territories ,SIDBI MUMBAI ,114293-103 ,"25,631.89",
DFID,DFID,24/11/2016,Project delivery costs – supplier services ,Asia  Caribbean and Overseas Territories ,SIDBI MUMBAI ,114293-103 ,"39,029.21",
DFID,DFID,24/11/2016,Project delivery costs – supplier services ,Asia  Caribbean and Overseas Territories ,SIDBI MUMBAI ,114293-103 ,"261,584.24",
DFID,DFID,10/11/2016,Hotels - Accommodation only ,East and Central Africa ,DOUBLE TREE by Hilton ,202844-101 ,"1,710.72",
DFID,DFID,24/11/2016,Aid Programme - Accountable Grant Payments ,East and Central Africa ,TRADEMARK EAST AFRICA ,204362-102 ,"300,000.00",
DFID,DFID,24/11/2016,Aid Programme - Accountable Grant Payments ,East and Central Africa ,TRADEMARK EAST AFRICA ,204362-103 ,"1,700,000.00",
DFID,DFID,30/11/2016,Aid Programme - Accountable Grant Payments ,East and Central Africa ,TRADEMARK EAST AFRICA ,200713-102 ,"1,000,000.00",
DFID,DFID,28/11/2016,Aid Programme - Pooled/Basket funding ,East and Central Africa ,TRADEMARK EAST AFRICA ,203357-105 ,"300,000.00",
DFID,DFID,28/11/2016,Aid Programme - Pooled/Basket funding ,East and Central Africa ,TRADEMARK EAST AFRICA ,203357-113 ,"800,000.00",
DFID,DFID,28/11/2016,Aid Programme - Pooled/Basket funding ,East and Central Africa ,TRADEMARK EAST AFRICA ,203357-104 ,"3,000,000.00",
DFID,DFID,28/11/2016,Aid Programme - Pooled/Basket funding ,East and Central Africa ,TRADEMARK EAST AFRICA ,203357-105 ,"400,000.00",
DFID,DFID,24/11/2016,Aid Programme - Pooled/Basket funding ,East and Central Africa ,TRADEMARK EAST AFRICA ,200171-112 ,"7,000,000.00",
DFID,DFID,23/11/2016,Aid Programme - Accountable Grant Payments ,Global Funds ,Clinton Health Access Initiative ,202575-102 ,"2,311,449.00",
DFID,DFID,28/11/2016,Aid Programme - Accountable Grant Payments ,Research and Evidence Division ,Clinton Health Access Initiative ,205105-102 ,"163,832.00",
DFID,DFID,24/11/2016,Project delivery costs – supplier services ,East and Central Africa ,SEHC Consultancy Ltd ,202169-103 ,"16,613.94",
DFID,DFID,03/11/2016,Aid Programme - Accountable Grant Payments ,Asia  Caribbean and Overseas Territories ,The Asia Foundation (GBP) ,204623-101 ,"394,212.00",
DFID,DFID,04/11/2016,Aid Programme - Accountable Grant Payments ,Asia  Caribbean and Overseas Territories ,Supplier Name withheld ,300041-101 ,"83,048.00",
DFID,DFID,10/11/2016,Project delivery costs – supplier services ,Asia  Caribbean and Overseas Territories ,The Asia Foundation (GBP) ,202775-109 ,"478,665.00",
DFID,DFID,01/11/2016,Research and development costs - supplier services ,Research and Evidence Division ,DEVELOPMENT PATHWAYS LTD ,204584-134 ,"38,936.25",
DFID,DFID,30/11/2016,Air fares ,West and Southern Africa ,Supplier Name withheld ,101622-105 ,"1,918.14",
DFID,DFID,29/11/2016,Property rates,West and Southern Africa ,Supplier Name withheld ,101622-108 ,"26,139.67",2 years property rates and service charges for Nigeria HQ office for the period  01/12/2016 to 30/11/2018
DFID,DFID,29/11/2016,Repairs  Maint  Alter - Property & Constrct. Services ,West and Southern Africa ,Biga Projects Ltd ,101622-108 ,"15,683.80",
DFID,DFID,09/11/2016,Project delivery costs – supplier services ,East and Central Africa ,Supplier Name withheld ,300270-103 ,"39,721.00",
DFID,DFID,09/11/2016,Aid Programme - Humanitarian Material Relief Assistance and Services ,Conflict  Humanitarian  Security & Stabilisation Division ,Supplier Name withheld ,204610-102 ,"145,450.00",
DFID,DFID,10/11/2016,Aid Programme - Humanitarian Material Relief Assistance and Services ,Middle East and North Africa Division ,Supplier Name withheld ,204516-103 ,"10,477.61",
DFID,DFID,10/11/2016,Aid Programme - Humanitarian Material Relief Assistance and Services ,Middle East and North Africa Division ,Supplier Name withheld ,204516-103 ,"9,312.72",
DFID,DFID,25/11/2016,Aid Programme - Accountable Grant Payments ,East and Central Africa ,Supplier Name withheld ,205116-104 ,"450,872.00",
DFID,DFID,25/11/2016,Aid Programme - Refugee Relief Payments ,East and Central Africa ,Supplier Name withheld ,203462-102 ,"3,800,000.00",
DFID,DFID,21/11/2016,Aid Programme - Accountable Grant Payments ,East and Central Africa ,Supplier Name withheld ,203462-110 ,"2,112,316.61",
DFID,DFID,21/11/2016,Aid Programme - Accountable Grant Payments ,East and Central Africa ,Supplier Name withheld ,203462-117 ,"639,421.99",
DFID,DFID,03/11/2016,Aid Programme - Accountable Grant Payments ,Conflict  Humanitarian  Security & Stabilisation Division ,Supplier Name withheld ,203419-105 ,"16,681.31",
DFID,DFID,01/11/2016,Aid Programme - Accountable Grant Payments ,Conflict  Humanitarian  Security & Stabilisation Division ,Supplier Name withheld ,203419-105 ,"32,176.93",
DFID,DFID,15/11/2016,Project delivery costs – supplier services ,East and Central Africa ,CfBT Education Trust ,204463-102 ,"24,733.93",
DFID,DFID,15/11/2016,Project delivery costs – supplier services ,East and Central Africa ,CfBT Education Trust ,204463-102 ,"14,420.00",
DFID,DFID,15/11/2016,Project delivery costs – supplier services ,East and Central Africa ,CfBT Education Trust ,204463-102 ,"58,571.00",
DFID,DFID,10/11/2016,Aid Programme - Accountable Grant Payments ,Research and Evidence Division ,University of Edinburgh - Research Into Results Ltd ,203665-103 ,"56,423.00",
DFID,DFID,30/11/2016,Aid Programme - Accountable Grant Payments ,Asia  Caribbean and Overseas Territories ,Supplier Name withheld ,201000-120 ,"71,395.07",
DFID,DFID,10/11/2016,Aid Programme - Accountable Grant Payments ,East and Central Africa ,Supplier Name withheld ,203928-103 ,"81,488.99",
